Workbook

Sheet Cover
B27: 2023-01-31
B30: Attachment 5.4.h: 132kV Cables 9E1 and 9E2 Sydney East to Kuringai CBA model
B35: Ausgrid’s 2024-29 Regulatory Proposal

Sheet Summary
B2: PROJECT OVERVIEW | D2: TOTAL PROJECT COST (Cons $) | F2: TRIGGER YEAR | K2: Version 4.6
B3: REP 132KV FDRS 9E1 & 9E2 SYD EAST-KURINGAI | D3: ='Global inputs'!D25 -> 7967409.864 | F3: =E52+D62 -> 2022
B6: General parameter inputs
B8: ='Global inputs'!B4 -> Parameter | D8: ='Global inputs'!D4 -> Unit | E8: ='Global inputs'!E4 -> Value | F8: ='Global inputs'!F4 -> Source
B9: ='Global inputs'!B5 -> Commercial discount rate (real, pre-tax): estimate | D9: ='Global inputs'!D5 -> Percentage | E9: ='Global inputs'!E5 -> 0.0344 | F9: ='Global inputs'!F5 -> AG Assumption | G9: ='Global inputs'!G5 -> 0 | H9: ='Global inputs'!H5 -> 0 | K9: Description cell
B10: ='Global inputs'!B6 -> Sydney Subtransmission network VCR | D10: ='Global inputs'!D6 -> $/MWh | E10: ='Global inputs'!E6 -> 46025 | F10: ='Global inputs'!F6 -> AEMO (with adjusted annual CPI) | G10: ='Global inputs'!G6 -> 0 | H10: ='Global inputs'!H6 -> 0 | K10: Input cell (user defined)
B11: ='Global inputs'!B7 -> Inner Sydney VCR | D11: ='Global inputs'!D7 -> $/MWh | E11: ='Global inputs'!E7 -> 46025 | F11: ='Global inputs'!F7 -> AEMO (with adjusted annual CPI) | G11: ='Global inputs'!G7 -> 0 | H11: ='Global inputs'!H7 -> 0 | K11: Calculation cell
B12: ='Global inputs'!B8 -> Capex multiplier | D12: ='Global inputs'!D8 -> Percentage | E12: ='Global inputs'!E8 -> 1 | F12: ='Global inputs'!F8 -> For sensitivity analysis | G12: ='Global inputs'!G8 -> 0 | H12: ='Global inputs'!H8 -> 0
B52: CATEGORY | E52: ='Global inputs'!E11 -> 2022 | F52: =E52+1 -> 2023 | G52: =F52+1 -> 2024 | H52: 2025 | I52: 2026 | J52: 2027 | K52: 2028 | L52: 2029 | M52: 2030 | N52: 2031 | O52: 2032 | P52: 2033 | Q52: 2034 | R52: 2035 | S52: 2036 | T52: 2037 | U52: 2038 | V52: 2039 | W52: 2040 | X52: 2041 | Y52: 2042
B53: Avoided repair costs | E53: =Calculation!D64 -> 34543.52585 | F53: =Calculation!E64 -> 35001.73521 | G53: =Calculation!F64 -> 35507.94738 | H53: =Calculation!G64 -> 36066.75863 | I53: =Calculation!H64 -> 36681.30463 | J53: =Calculation!I64 -> 37354.93559 | K53: =Calculation!J64 -> 38092.74775 | L53: =Calculation!K64 -> 38900.50812 | M53: =Calculation!L64 -> 39781.89245 | N53: =Calculation!M64 -> 40740.71249 | O53: =Calculation!N64 -> 41783.30365 | P53: =Calculation!O64 -> 42916.79237 | Q53: =Calculation!P64 -> 44145.4137 | R53: =Calculation!Q64 -> 45473.38827 | S53: =Calculation!R64 -> 46908.4982 | T53: =Calculation!S64 -> 48459.43667 | U53: =Calculation!T64 -> 50131.01087 | V53: =Calculation!U64 -> 51927.76607 | W53: =Calculation!V64 -> 53859.16495 | X53: =Calculation!W64 -> 55935.69451 | Y53: =Calculation!X64 -> 58162.74056
B54: Avoided environmental impact | E54: =Calculation!D65 -> 1697.597539 | F54: =Calculation!E65 -> 1782.065207 | G54: =Calculation!F65 -> 1875.847308 | H54: =Calculation!G65 -> 1979.746102 | I54: =Calculation!H65 -> 2094.812045 | J54: =Calculation!I65 -> 2221.371857 | K54: =Calculation!J65 -> 2360.599247 | L54: =Calculation!K65 -> 2513.492267 | M54: =Calculation!L65 -> 2681.400691 | N54: =Calculation!M65 -> 2864.595728 | O54: =Calculation!N65 -> 3064.577109 | P54: =Calculation!O65 -> 3282.564891 | Q54: =Calculation!P65 -> 3520.267492 | R54: =Calculation!Q65 -> 3777.841805 | S54: =Calculation!R65 -> 4057.178235 | T54: =Calculation!S65 -> 4359.74632 | U54: =Calculation!T65 -> 4687.68089 | V54: =Calculation!U65 -> 5040.949148 | W54: =Calculation!V65 -> 5421.906232 | X54: =Calculation!W65 -> 5832.299922 | Y54: =Calculation!X65 -> 6274.768521
B55: Reduced Expected Unserved Energy | E55: =Calculation!D63+Calculation!D66 -> 342591.5651 | F55: =Calculation!E63+Calculation!E66 -> 364985.423 | G55: =Calculation!F63+Calculation!F66 -> 388904.778 | H55: =Calculation!G63+Calculation!G66 -> 412274.7206 | I55: =Calculation!H63+Calculation!H66 -> 435957.5694 | J55: =Calculation!I63+Calculation!I66 -> 462214.6324 | K55: =Calculation!J63+Calculation!J66 -> 490193.7941 | L55: =Calculation!K63+Calculation!K66 -> 521096.5689 | M55: =Calculation!L63+Calculation!L66 -> 557696.8805 | N55: =Calculation!M63+Calculation!M66 -> 597995.9352 | O55: =Calculation!N63+Calculation!N66 -> 643328.4461 | P55: =Calculation!O63+Calculation!O66 -> 695365.8803 | Q55: =Calculation!P63+Calculation!P66 -> 748771.8969 | R55: =Calculation!Q63+Calculation!Q66 -> 806969.8803 | S55: =Calculation!R63+Calculation!R66 -> 872184.6346 | T55: =Calculation!S63+Calculation!S66 -> 942182.0474 | U55: =Calculation!T63+Calculation!T66 -> 1025315.625 | V55: =Calculation!U63+Calculation!U66 -> 1104820.421 | W55: =Calculation!V63+Calculation!V66 -> 1189633.445 | X55: =Calculation!W63+Calculation!W66 -> 1274964.062 | Y55: =Calculation!X63+Calculation!X66 -> 1381043.966
B56: Switchgear repair costs | E56: =Calculation!D67 -> 0 | F56: =Calculation!E67 -> 0 | G56: =Calculation!F67 -> 0 | H56: =Calculation!G67 -> 0 | I56: =Calculation!H67 -> 0 | J56: =Calculation!I67 -> 0 | K56: =Calculation!J67 -> 0 | L56: =Calculation!K67 -> 0 | M56: =Calculation!L67 -> 0 | N56: =Calculation!M67 -> 0 | O56: =Calculation!N67 -> 0 | P56: =Calculation!O67 -> 0 | Q56: =Calculation!P67 -> 0 | R56: =Calculation!Q67 -> 0 | S56: =Calculation!R67 -> 0 | T56: =Calculation!S67 -> 0 | U56: =Calculation!T67 -> 0 | V56: =Calculation!U67 -> 0 | W56: =Calculation!V67 -> 0 | X56: =Calculation!W67 -> 0 | Y56: =Calculation!X67 -> 0
B57: Switchgear safety costs | E57: =Calculation!D68 -> 0 | F57: =Calculation!E68 -> 0 | G57: =Calculation!F68 -> 0 | H57: =Calculation!G68 -> 0 | I57: =Calculation!H68 -> 0 | J57: =Calculation!I68 -> 0 | K57: =Calculation!J68 -> 0 | L57: =Calculation!K68 -> 0 | M57: =Calculation!L68 -> 0 | N57: =Calculation!M68 -> 0 | O57: =Calculation!N68 -> 0 | P57: =Calculation!O68 -> 0 | Q57: =Calculation!P68 -> 0 | R57: =Calculation!Q68 -> 0 | S57: =Calculation!R68 -> 0 | T57: =Calculation!S68 -> 0 | U57: =Calculation!T68 -> 0 | V57: =Calculation!U68 -> 0 | W57: =Calculation!V68 -> 0 | X57: =Calculation!W68 -> 0 | Y57: =Calculation!X68 -> 0
B58: Total Risk Costs | E58: =SUM(E53:E57) -> 378832.6885 | F58: =SUM(F53:F57) -> 401769.2234 | G58: 426288.5727 | H58: 450321.2253 | I58: 474733.686 | J58: 501790.9399 | K58: 530647.1411 | L58: 562510.5693 | M58: 600160.1736 | N58: 641601.2434 | O58: 688176.3269 | P58: 741565.2376 | Q58: 796437.5781 | R58: 856221.1104 | S58: 923150.311 | T58: 995001.2304 | U58: 1080134.316 | V58: 1161789.136 | W58: 1248914.517 | X58: 1336732.056 | Y58: =SUM(Y53:Y57) -> 1445481.475
B60: Annualised deferral benefit | E60: ='Global inputs'!$D$26 -> 264964.1331 | F60: ='Global inputs'!$D$26 -> 264964.1331 | G60: ='Global inputs'!$D$26 -> 264964.1331 | H60: ='Global inputs'!$D$26 -> 264964.1331 | I60: ='Global inputs'!$D$26 -> 264964.1331 | J60: ='Global inputs'!$D$26 -> 264964.1331 | K60: ='Global inputs'!$D$26 -> 264964.1331 | L60: ='Global inputs'!$D$26 -> 264964.1331 | M60: ='Global inputs'!$D$26 -> 264964.1331 | N60: ='Global inputs'!$D$26 -> 264964.1331 | O60: ='Global inputs'!$D$26 -> 264964.1331 | P60: ='Global inputs'!$D$26 -> 264964.1331 | Q60: ='Global inputs'!$D$26 -> 264964.1331 | R60: ='Global inputs'!$D$26 -> 264964.1331 | S60: ='Global inputs'!$D$26 -> 264964.1331 | T60: ='Global inputs'!$D$26 -> 264964.1331 | U60: ='Global inputs'!$D$26 -> 264964.1331 | V60: ='Global inputs'!$D$26 -> 264964.1331 | W60: ='Global inputs'!$D$26 -> 264964.1331 | X60: ='Global inputs'!$D$26 -> 264964.1331 | Y60: ='Global inputs'!$D$26 -> 264964.1331
B61: Net Benefit | E61: =E60-E58 -> -113868.5553 | F61: =F60-F58 -> -136805.0902 | G61: -161324.4395 | H61: -185357.0922 | I61: -209769.5529 | J61: -236826.8067 | K61: -265683.008 | L61: -297546.4361 | M61: -335196.0405 | N61: -376637.1103 | O61: -423212.1937 | P61: -476601.1044 | Q61: -531473.445 | R61: -591256.9773 | S61: -658186.1779 | T61: -730037.0972 | U61: -815170.1833 | V61: -896825.0032 | W61: =W60-W58 -> -983950.3835 | X61: =X60-X58 -> -1071767.923 | Y61: -1180517.342
D62: =SUM(E62:X62) -> 0 | E62: =IF(E61>0,1,0) -> 0 | F62: =IF(F61>0,IF(E62=0,0,1),0) -> 0 | G62: =IF(G61>0,IF(F62=0,0,1),0) -> 0 | H62: 0 | I62: 0 | J62: 0 | K62: 0 | L62: 0 | M62: 0 | N62: 0 | O62: 0 | P62: 0 | Q62: 0 | R62: 0 | S62: 0 | T62: 0 | U62: 0 | V62: 0 | W62: 0 | X62: 0

Sheet Global inputs
B2: Cost Benefit Analysis Global parameters | J2: Sensitivities
B4: Parameter | D4: Unit | E4: Value | F4: Source | J4: Parameter | L4: Base | M4: Low | N4: High
B5: Commercial discount rate (real, pre-tax): estimate | D5: Percentage | E5: 0.0344 | F5: AG Assumption | J5: Demand | L5: POE50 | M5: POE90 | N5: POE10
B6: Sydney Subtransmission network VCR | D6: $/MWh | E6: 46025 | F6: AEMO (with adjusted annual CPI) | J6: Discount rate | L6: 0.0344 | M6: 0.0348 | N6: 0.09
B7: Inner Sydney VCR | D7: $/MWh | E7: 46025 | F7: AEMO (with adjusted annual CPI) | J7: Sydney CBD VCR | L7: 170000 | M7: 34150 | N7: 300000
B8: Capex multiplier | D8: Percentage | E8: 1 | F8: For sensitivity analysis | J8: Inner Sydney VCR | L8: 90000 | M8: 39000 | N8: 180000
J9: Average SRMC | L9: 30 | M9: NA | N9: NA
J10: Capex multiplier | L10: 1 | M10: 0.75 | N10: 1.25
B11: Start year | E11: 2022
B13: Region | C13: Urban
B14: (This is used to calculate switchgear repair costs)
B17: Option | C17: Works Component | D17: Amount
B18: Option 1 | C18: REP 132KV FDRS 9E1 & 9E2 SYD EAST-KURINGAI | D18: 7967409.864
D20: =E20 -> 0
D21: =E21*0.25 -> 0
D22: 0
D23: 0
D24: 0
C25: Total Project Cost | D25: =SUM(D18:D24)*E8 -> 7967409.864
C26: One Year Deferral Benefit | D26: =D25*E5/(1+E5) -> 264964.1331

Sheet Risk parameters
A2: REPAIR COSTS IMPACT - PARAMETERS
L3: Environmental Critically
A4: Feeder - Repair Costs | J4: Feeder (short name) | K4: Feeder Name | L4: M2 | M4: M3 | N4: M5
J5: 202 | K5: Drummoyne - Rozelle STS | L5: 20945.02925 | M5: 341283.299 | N5: 206343.2712
A6: Type | B6: (M2 - Corrective) | C6: (M3 - Breakdown) | D6: (M5 - Third Party) | J6: 203 | K6: Homebush TP - Drummoyne | L6: 8756.996809 | M6: 142688.5933 | N6: 86270.94028
A7: Oil-filled Cable | B7: 5431 | C7: 861315 | D7: 545498 | J7: 204 | K7: Homebush TP - Drummoyne | L7: 8653.25369 | M7: 140998.1782 | N7: 85248.89852
A8: Gas Pressure Cable | B8: 3545.48 | C8: 101973.99 | D8: 126055.14 | J8: 262 | K8: Clovelly - Double Bay | L8: 7768.832878 | M8: 126587.2147 | N8: 76535.88689
A9: Solid/HSL Cable | B9: 9861.96637 | C9: 85780.02367 | D9: 126151.5133 | J9: 264 | K9: Beaconsfield BSP - Kingsford ZN | L9: 8702.044763 | M9: 141793.1916 | N9: 85729.5715
A10: XLPE Cable | B10: 18968.91697 | C10: 22683.2875 | D10: 45644.575 | J10: 265 | K10: Maroubra - Bunnerong STSS | L10: 8439.365012 | M10: 137513.0251 | N10: 83141.74036
A11: 132 kV XLPE Cable | B11: 8070.175 | C11: 275504.925 | D11: 0 | J11: 270 | K11: Kingsford - Maroubra | L11: 7768.832878 | M11: 126587.2147 | N11: 76535.88689
J12: 290 | K12: Lane Cove STSS - Lane Cove Test Substation | L12: 7768.832878 | M12: 126587.2147 | N12: 76535.88689
A13: Switchgear - Repair Costs | J13: 292 | K13: Potts Hill - Greenacre Park | L13: 1942.208219 | M13: 31646.80367 | N13: 19133.97172
J14: 813 | K14: Carlingford STSS - Epping | L14: 1942.208219 | M14: 31646.80367 | N14: 19133.97172
A15: Type | B15: Region | C15: Repair cost | J15: 820 | K15: Carlingford STSS - Epping | L15: 1942.208219 | M15: 31646.80367 | N15: 19133.97172
A16: Major | B16: Rural | C16: 104320 | J16: 900 | K16: Mason Park STSS - Rozelle STS | L16: 11503.2847 | M16: 187437.2628 | N16: 113326.4301
A17: Minor | B17: Rural | C17: 52160 | J17: 961 | K17: GLEBE 132 SWITCHING STATION TW403 TO MEREWETHER 132 TS405 | L17: 7768.832878 | M17: 126587.2147 | N17: 76535.88689
A18: Major | B18: Urban | C18: 181920 | J18: 3022 | K18: 3022 TEE 1 TO MAYFIELD 33 ZN209 | L18: 7768.832878 | M18: 126587.2147 | N18: 76535.88689
A19: Minor | B19: Urban | C19: 90960 | D19: ` | J19: 260-1 | K19: Beaconsfield BSP - Zetland | L19: 13660.41349 | M19: 222586.0334 | N19: 134577.7259
A20: Major | B20: City | C20: 277480 | J20: 260-2 | K20: Zetland - Clovelly | L20: 7768.832878 | M20: 126587.2147 | N20: 76535.88689
A21: Minor | B21: City | C21: 138740 | J21: 261-1 | K21: Beaconsfield BSP - Zetland | L21: 12521.91954 | M21: 204035.1417 | N21: 123361.6726
A22: Major | B22: CBD | C22: 277480 | J22: 261-2 | K22: Zetland - Clovelly | L22: 7768.832878 | M22: 126587.2147 | N22: 76535.88689
A23: Minor | B23: CBD | C23: 138740 | J23: 282-1 | K23: Sydney South BSP - Revesby | L23: 3740.988365 | M23: 60956.55612 | N23: 36854.93907
J24: 283-1 | K24: Sydney South BSP - Revesby | L24: 4144.274077 | M24: 67527.78963 | N24: 40827.9721
J25: 283-2 | K25: Revesby - Milperra | L25: 2207.488471 | M25: 35969.34331 | N25: 21747.42211
A26: ENVIRONMENTAL IMPACT COSTS - PARAMETERS | J26: 291-1 | K26: Potts Hill - Greenacre Park | L26: 1942.208219 | M26: 31646.80367 | N26: 19133.97172
J27: 760A | K27: Merewether - Dudley Zone | L27: 9712.516778 | M27: 158258.0634 | N27: 95684.39651
A28: Feeder - Environmental Impact Costs | J28: 760B | K28: Merewether - Dudley Zone | L28: 9979.224454 | M28: 162603.8619 | N28: 98311.9094
J29: 770-1 | K29: Merewether - City Main | L29: 7768.832878 | M29: 126587.2147 | N29: 76535.88689
A30: Type | B30: (M2 - Corrective) | C30: (M3 - Breakdown) | D30: (M5 - Third Party) | F30: OF Feeders | J30: 770-2 | K30: Merewether - City Main | L30: 7768.832878 | M30: 126587.2147 | N30: 76535.88689
A31: Oil-filled Cable | F31: 9E1 | J31: 90A | K31: Mason Park STSS - Homebush STS T1 | L31: 7639.492992 | M31: 124479.7198 | N31: 75261.67453
A32: Gas Pressure Cable | F32: 9E2 | J32: 90L | K32: Mason Park STSS - Homebush STS T3 | L32: 7673.749157 | M32: 125037.8979 | N32: 75599.15456
A33: Solid/HSL Cable | J33: 90R | K33: Campbell St - Double Bay | L33: 7768.832878 | M33: 126587.2147 | N33: 76535.88689
A34: XLPE Cable | J34: 90T-1 | K34: Green Square - Haymarket | L34: 8443.521907 | M34: 137580.7585 | N34: 83182.69266
A35: 132 kV XLPE Cable | J35: 90XA | K35: Meadowbank - Homebush Bay TP | L35: 19942.02348 | M35: 324940.0839 | N35: 196462.0011
J36: 90XB | K36: Meadowbank - Homebush Bay TP | L36: 19968.70262 | M36: 325374.8001 | N36: 196724.8348
A37: Grossly Disproportionate Factor | B37: 1 | J37: 91A | K37: Beaconsfield BSP - St Peters | L37: 10754.06999 | M37: 175229.3798 | N37: 105945.4229
J38: 91B | K38: Beaconsfield BSP - St Peters | L38: 12376.23601 | M38: 201661.3395 | N38: 121926.4482
J39: 91L | K39: Peakhurst STS - Bunnerong STSS | L39: 8594.058015 | M39: 140033.6298 | N39: 84665.72296
A40: SAFETY IMPACT COSTS - PARAMETERS | J40: 91M-1 | K40: Beaconsfield BSP - Peakhurst | L40: 8238.609651 | M40: 134241.8694 | N40: 81163.96713
J41: 91M-3 | K41: Beaconsfield BSP - Bunnerong STSS | L41: 9625.341471 | M41: 156837.6082 | N41: 94825.57518
A42: Switchgear Safety | J42: 91X-1 | K42: BEACONSFIELD BS18005 TO MARRICKVILLE ZN262 | L42: 10568.68783 | M42: 172208.7186 | N42: 104119.1011
J43: 91X-2 | K43: Marrickville - Chullora STSS | L43: 3796.49554 | M43: 61861.00326 | N43: 37401.77679
A44: Parameter | B44: Repair cost | J44: 91Y-1 | K44: MARRICKVILLE ZN262 TO BEACONSFIELD BS18005 | L44: 9170.55515 | M44: 149427.2115 | N44: 90345.17575
A45: Days in year | B45: 365 | J45: 91Y-2 | K45: Marrickville - Chullora STSS | L45: 3811.024259 | M45: 62097.73767 | N45: 37544.90877
A46: Site visits per annum | B46: 150 | J46: 923-2 | K46: Strathfield STS - Burwood | L46: 5092.344368 | M46: 82975.87293 | N46: 50168.03665
A47: Duration of site visit (Hrs) | B47: 8 | J47: 924-2 | K47: Strathfield STSS - Burwood | L47: 5557.631682 | M47: 90557.37533 | N47: 54751.88827
A48: Exposure Rate | B48: =B46*B47/B45/24 -> 0.1369863014 | J48: 925-3 | K48: Lindfield STSS 4 - Castle Cove | L48: 3719.071635 | M48: 60599.43969 | N48: 36639.02294
A49: Conditional Probability | B49: 0.1 | J49: 928-1 | K49: DALLEY ST ZN263 to SURRY HILLS TS7170 | L49: 7768.832878 | M49: 126587.2147 | N49: 76535.88689
A50: Alpha Factor | B50: =B48*B49 -> 0.01369863014 | J50: 928-3 | K50: Lane Cove STSS - Dalley St | L50: 8106.317118 | M50: 132086.2633 | N50: 79860.6663
J51: 929-1 | K51: LANE COVE TW7200 to DALLEY ST ZN263 | L51: 7728.879551 | M51: 125936.2057 | N51: 76142.28037
A52: Value of Saved Life (VSL) ($m) | B52: 4.4256 | J52: 929-2 | K52: DALLEY ST ZN263 to SURRY HILLS TS7170 | L52: 7768.832878 | M52: 126587.2147 | N52: 76535.88689
A53: Grossly Disproportionate Factor | B53: 6 | J53: 92C | K53: St Peters - Chullora STSS | L53: 2844.554305 | M53: 46349.84586 | N53: 28023.57702
A54: Safety Consequence ($) | B54: =B52*B53*1000000 -> 26553600 | J54: 92FA | K54: Homebush Bay TP - East Ryde TP | L54: 13141.98952 | M54: 214138.7097 | N54: 129470.3901
J55: 92FB | K55: Homebush Bay TP - East Ryde TP | L55: 13215.82732 | M55: 215341.8404 | N55: 130197.8149
J56: 92GA | K56: Top Ryde - Lane Cove | L56: 6775.812912 | M56: 110406.7107 | N56: 66752.99351
J57: 92GB | K57: Top Ryde - Lane Cove | L57: 6757.77374 | M57: 110112.7761 | N57: 66575.27774
J58: 92JA | K58: Meadowbank - East Ryde TP | L58: 4481.264858 | M58: 73018.79775 | N58: 44147.89013
J59: 92JB | K59: Meadowbank - East Ryde TP | L59: 4555.785245 | M59: 74233.0507 | N59: 44882.03952
J60: 92L-1 | K60: 92L TEE1 - 92L TEE2 (Dalley St - SH) | L60: 7768.832878 | M60: 126587.2147 | N60: 76535.88689
J61: 92L-3 | K61: Lane Cove STSS - 92L TEE1 (Lane Cove - Dalley St) | L61: 9857.571648 | M61: 160621.6221 | N61: 97113.42753
J62: 92M/2 | K62: Dalley St - Surry Hills STS | L62: 7768.832878 | M62: 126587.2147 | N62: 76535.88689
J63: 92M-1 | K63: Lane Cove - Dalley St - Surry Hills STS | L63: 9878.03998 | M63: 160955.138 | N63: 97315.07454
J64: 92P | K64: Beaconsfield BSP - Surry Hills Annex | L64: 7768.832878 | M64: 126587.2147 | N64: 76535.88689
J65: 92X | K65: St Peters - Chullora STSS | L65: 2875.883971 | M65: 46860.33891 | N65: 28332.22618
J66: 9E1 | K66: Sydney East BSP - Kuringai STS | L66: 1942.208219 | M66: 31646.80367 | N66: 19133.97172
J67: 9E2 | K67: Sydney East BSP - Kuringai STS | L67: 1942.208219 | M67: 31646.80367 | N67: 19133.97172
J68: 9E3 | K68: LINDFIELD 132KV TW7210 TO WILLOUGHBY TS7220 | L68: 3620.75974 | M68: 58997.52225 | N68: 35670.48774
J69: 9E3 | K69: Sydney East BSP - DAVIDSON TP15676 | L69: 6625.746226 | M69: 107961.4883 | N69: 65274.58779
J70: 9E4-1 | K70: Sydney East BSP - DAVIDSON TP15676 | L70: 2494.996453 | M70: 40654.06691 | N70: 24579.85251
J71: 9E4-2 | K71: Lindfield STSS 1 - Willoughby STS T1 | L71: 3569.217945 | M71: 58157.68795 | N71: 35162.71559
J72: 9E4-3 | K72: Lindfield STSS 1 - Castle Cove | L72: 3763.295859 | M72: 61320.03974 | N72: 37074.70488
J73: 9F8 | K73: MEREWETHER 132 TS405 TO BROADMEADOW 132 ZN257 | L73: 7768.832878 | M73: 126587.2147 | N73: 76535.88689
J74: 9F9 | K74: MEREWETHER 132 TS405 TO GLEBE 132 SWITCHING STATION TW403 | L74: 9580.936421 | M74: 156114.0617 | N74: 94388.11179
J75: 9M1 | K75: Sydney East BSP - Warringah STS | L75: 1942.208219 | M75: 31646.80367 | N75: 19133.97172
J76: 9M2 | K76: Sydney East BSP - Warringah STS | L76: 1942.208219 | M76: 31646.80367 | N76: 19133.97172
J77: 9N9 | K77: WARATAH 132 TS413 TO BROADMEADOW 132 ZN257 | L77: 7671.099612 | M77: 124994.7256 | N77: 75573.05215
J78: 9P7 | K78: WILLOUGHBY TS7220 TO MOSMAN ZN180 | L78: 2398.650874 | M78: 39084.18907 | N78: 23630.68878
J79: 9S6-1 | K79: Prymont - Haymarket | L79: 7768.832878 | M79: 126587.2147 | N79: 76535.88689
J80: 9S9-1 | K80: HAYMARKET BSP BS18030 TO PYRMONT 132/33kV TS7150 | L80: 7768.832878 | M80: 126587.2147 | N80: 76535.88689
J81: 9SA | K81: Beaconsfield BSP - Surry Hills Annex | L81: 7768.832878 | M81: 126587.2147 | N81: 76535.88689
J82: 9SB-2 | K82: Surry Hills Annex - Double Bay | L82: 7768.832878 | M82: 126587.2147 | N82: 76535.88689
J83: 9SE | K83: Beaconsfield BSP - Green Square | L83: 8214.627835 | M83: 133851.104 | N83: 80927.70647
J84: 9Y7-2 | K84: Castle Cove - Mosman | L84: 3484.96433 | M84: 56784.83947 | N84: 34332.67776
J85: 9Y9-2 | K85: Castle Cove - Mosman | L85: 3489.293142 | M85: 56855.37416 | N85: 34375.32374
J86: Drum Tx 1 | K86: Drummoyne zone Tx 1 tails | L86: 1942.208219 | M86: 31646.80367 | N86: 19133.97172
J87: Drum Tx 2 | K87: Drummoyne zone Tx 2 tails | L87: 1942.208219 | M87: 31646.80367 | N87: 19133.97172
J88: H766 | K88: H766 TEE 1 to MEREWETHER 132 TS405 | L88: 7768.832878 | M88: 126587.2147 | N88: 76535.88689
J89: H773 | K89: KOTARA 33 ZN205 TO MEREWETHER 132 TS405 | L89: 8465.294131 | M89: 137935.5203 | N89: 83397.18517
J90: H775 | K90: MEREWETHER 132 TS405 to KOTARA 33 ZN205 | L90: 8498.527192 | M90: 138477.0278 | N90: 83724.58594
J91: S9S2 | K91: Beaconsfield - Haymarket | L91: 8324.017592 | M91: 135633.5267 | N91: 82005.37699
J92: TX7 | K92: Sydney East Tx 7 | L92: 1942.208219 | M92: 31646.80367 | N92: 19133.97172
J93: TX8 | K93: Sydney East Tx 8 | L93: 1942.208219 | M93: 31646.80367 | N93: 19133.97172
J94: ZN0256 | K94: ST. PETERS ZN2568 | L94: 7768.832878 | M94: 126587.2147 | N94: 76535.88689

Sheet Unserved energy inputs
A2: FEEDER UNSERVED ENERGY (MWh)
A4: Option | B4: Description | C4: Year | D4: ='Global inputs'!E11 -> 2022 | E4: =D4+1 -> 2023 | F4: =E4+1 -> 2024 | G4: 2025 | H4: 2026 | I4: 2027 | J4: 2028 | K4: 2029 | L4: 2030 | M4: 2031 | N4: 2032 | O4: 2033 | P4: 2034 | Q4: 2035 | R4: 2036 | S4: 2037 | T4: 2038 | U4: 2039 | V4: 2040 | W4: =V4+1 -> 2041 | X4: =W4+1 -> 2042 | Y4: COMMENTS
A5: Base case | B5: M2, M3, M5 | D5: 7.821068754 | E5: 8.393186796 | F5: 9.017825303 | G5: 9.650332674 | H5: 10.31320445 | I5: 11.0641729 | J5: 11.88831481 | K5: 12.82125068 | L5: 13.93878509 | M5: 15.20233272 | N5: 16.65686944 | O5: 18.36097109 | P5: 20.18640412 | Q5: 22.23796502 | R5: 24.59480007 | S5: 27.2162303 | T5: 30.36493132 | U5: 33.57189436 | V5: 37.11668275 | W5: 40.87088383 | X5: 45.50515939 | Y5: From OUTPUT (M2,M3,M5)
A10: DEDUCTIONS
A11: Base case | B11: M2 only | D11: 0.3538120493 | E11: 0.4389650342 | F11: 0.5435539617 | G11: 0.6681453384 | H11: 0.816430056 | I11: 0.9968845641 | J11: 1.213155519 | K11: 1.474708673 | L11: 1.796960189 | M11: 2.184873669 | N11: 2.654387479 | O11: 3.227727763 | P11: 3.892802976 | Q11: 4.679915513 | R11: 5.619819781 | S11: 6.720464125 | T11: 8.062816442 | U11: 9.542553275 | V11: 11.24482979 | W11: 13.14541779 | X11: 15.47501647 | Y11: From OUTPUT (M2)
A12: Replace 9e1 & 9E2 | B12: M2, M3, M5 | D12: 0.0236594186 | E12: 0.02406591302 | F12: 0.02441196048 | G12: 0.02456168507 | H12: 0.02458386115 | I12: 0.02460213831 | J12: 0.02456082957 | K12: 0.0245090036 | L12: 0.02456513844 | M12: 0.02460874801 | N12: 0.02467759375 | O12: 0.02480486497 | P12: 0.02479294995 | Q12: 0.02475498709 | R12: 0.02474379231 | S12: 0.02467334669 | T12: 0.02475203463 | U12: 0.02455192845 | V12: 0.02430390043 | W12: 0.02391120237 | X12: 0.02375582023 | Y12: From OUTPUT (M2,M3,M5)Post Replacement
A16: Total | D16: =SUM(D5:D9)-SUM(D11:D15) -> 7.443597286 | E16: =SUM(E5:E9)-SUM(E11:E15) -> 7.930155849 | F16: 8.449859381 | G16: =SUM(G5:G9)-SUM(G11:G15) -> 8.957625651 | H16: =SUM(H5:H9)-SUM(H11:H15) -> 9.472190535 | I16: =SUM(I5:I9)-SUM(I11:I15) -> 10.0426862 | J16: =SUM(J5:J9)-SUM(J11:J15) -> 10.65059846 | K16: =SUM(K5:K9)-SUM(K11:K15) -> 11.322033 | L16: =SUM(L5:L9)-SUM(L11:L15) -> 12.11725976 | M16: =SUM(M5:M9)-SUM(M11:M15) -> 12.9928503 | N16: =SUM(N5:N9)-SUM(N11:N15) -> 13.97780437 | O16: =SUM(O5:O9)-SUM(O11:O15) -> 15.10843846 | P16: =SUM(P5:P9)-SUM(P11:P15) -> 16.26880819 | Q16: =SUM(Q5:Q9)-SUM(Q11:Q15) -> 17.53329452 | R16: =SUM(R5:R9)-SUM(R11:R15) -> 18.95023649 | S16: =SUM(S5:S9)-SUM(S11:S15) -> 20.47109283 | T16: =SUM(T5:T9)-SUM(T11:T15) -> 22.27736284 | U16: =SUM(U5:U9)-SUM(U11:U15) -> 24.00478916 | V16: =SUM(V5:V9)-SUM(V11:V15) -> 25.84754906 | W16: 27.70155484 | X16: 30.0063871
A19: SWITCHGEAR UNSERVED ENERGY (MWh)
A21: Option | B21: Description | C21: Year | D21: =D4 -> 2022 | E21: =D21+1 -> 2023 | F21: =E21+1 -> 2024 | G21: =F21+1 -> 2025 | H21: =G21+1 -> 2026 | I21: =H21+1 -> 2027 | J21: =I21+1 -> 2028 | K21: =J21+1 -> 2029 | L21: =K21+1 -> 2030 | M21: =L21+1 -> 2031 | N21: =M21+1 -> 2032 | O21: =N21+1 -> 2033 | P21: =O21+1 -> 2034 | Q21: =P21+1 -> 2035 | R21: =Q21+1 -> 2036 | S21: =R21+1 -> 2037 | T21: =S21+1 -> 2038 | U21: =T21+1 -> 2039 | V21: =U21+1 -> 2040 | W21: =V21+1 -> 2041 | X21: =W21+1 -> 2042 | Y21: COMMENTS
A27: DEDUCTIONS
A33: Total | D33: =SUM(D22:D26)-SUM(D28:D32) -> 0 | E33: =SUM(E22:E26)-SUM(E28:E32) -> 0 | F33: 0 | G33: 0 | H33: 0 | I33: 0 | J33: 0 | K33: 0 | L33: 0 | M33: 0 | N33: 0 | O33: 0 | P33: 0 | Q33: 0 | R33: 0 | S33: 0 | T33: 0 | U33: 0 | V33: 0 | W33: 0 | X33: 0

Sheet Failure rates
A1: * requried field | E1: Failure rate (M2 - Corrective)
A2: Option | B2: Feeder | C2: Construction * | D2: Length of cable (km) | E2: ='Global inputs'!E11 -> 2022 | F2: =E2+1 -> 2023 | G2: =F2+1 -> 2024 | H2: 2025 | I2: 2026 | J2: 2027 | K2: 2028 | L2: 2029 | M2: 2030 | N2: 2031 | O2: 2032 | P2: 2033 | Q2: 2034 | R2: 2035 | S2: 2036 | T2: 2037 | U2: 2038 | V2: 2039 | W2: 2040 | X2: 2041 | Y2: 2042
A3: Base case | B3: 9E1 | C3: Oil-filled Cable | D3: 0.914 | E3: 0.1414776258 | F3: 0.161489757 | G3: 0.1837479795 | H3: 0.2084419976 | I3: 0.2358512134 | J3: 0.2660384282 | K3: 0.2992986666 | L3: 0.3358678714 | M3: 0.376109515 | N3: 0.4200655708 | O3: 0.4681155144 | P3: 0.5205474635 | Q3: 0.5778267233 | R3: 0.6399575069 | S3: 0.7074210269 | T3: 0.7805637036 | U3: 0.8599730839 | V3: 0.945594027 | W3: 1.038029343 | X3: 1.137690063 | Y3: 1.245309298
A4: Base case | B4: 9E2 | C4: Oil-filled Cable | D4: 1.045 | E4: 0.134078641 | F4: 0.1528761113 | G4: 0.1737603447 | H4: 0.1969050954 | I4: 0.222567635 | J4: 0.2508020115 | K4: 0.281879265 | L4: 0.3160145791 | M4: 0.3535415286 | N4: 0.3944934028 | O4: 0.4392177483 | P4: 0.487976304 | Q4: 0.5411948241 | R4: 0.598870137 | S4: 0.6614417329 | T4: 0.7292231762 | U4: 0.8027506064 | V4: 0.8819645106 | W4: 0.9674140286 | X4: 1.059469957 | Y4: 1.158799583
A5: Base case
A6: Base case
A7: Base case
A8: Base case
A9: Base case
A10: Base case
A11: Base case
E14: Failure rate (M3 - Breakdown)
A15: Option | B15: Feeder | D15: Length of cable (km) | E15: =E2 -> 2022 | F15: =F2 -> 2023 | G15: 2024 | H15: 2025 | I15: 2026 | J15: 2027 | K15: 2028 | L15: 2029 | M15: 2030 | N15: 2031 | O15: 2032 | P15: 2033 | Q15: 2034 | R15: 2035 | S15: 2036 | T15: 2037 | U15: 2038 | V15: 2039 | W15: 2040 | X15: 2041 | Y15: 2042
A16: Base case | B16: 9E1 | C16: Oil-filled Cable | D16: 0.914 | E16: 0.001156753371 | F16: 0.001304190366 | G16: 0.001466288692 | H16: 0.001644625008 | I16: 0.00183934477 | J16: 0.002052082349 | K16: 0.00228405974 | L16: 0.002537274092 | M16: 0.002811675998 | N16: 0.003109316249 | O16: 0.003431639992 | P16: 0.003781143253 | Q16: 0.004157483473 | R16: 0.004563203799 | S16: 0.004999991188 | T16: 0.005470929237 | U16: 0.005975263517 | V16: 0.00651611557 | W16: 0.007095432816 | X16: 0.007716986231 | Y16: 0.00837946875
A17: Base case | B17: 9E2 | C17: Oil-filled Cable | D17: 1.045 | E17: 0.001107029137 | F17: 0.001246867312 | G17: 0.001400455457 | H17: 0.001569261465 | I17: 0.001753396477 | J17: 0.001954378962 | K17: 0.002173334435 | L17: 0.002412116773 | M17: 0.002670647771 | N17: 0.002950827569 | O17: 0.0032539823 | P17: 0.003582422751 | Q17: 0.00393578988 | R17: 0.004316434191 | S17: 0.004725898427 | T17: 0.005167030388 | U17: 0.005639080328 | V17: 0.006144926811 | W17: 0.006686345123 | X17: 0.007266810062 | Y17: 0.00788505154
A18: =A5 -> Base case | B18: 0 | C18: 0 | D18: 0
A19: Base case | B19: 0 | C19: 0 | D19: 0
A20: Base case | B20: 0 | C20: 0 | D20: 0
A21: Base case | B21: 0 | C21: 0 | D21: 0
A22: Base case | B22: 0 | C22: 0 | D22: 0
A23: Base case | B23: 0 | C23: 0 | D23: 0
A24: Base case | B24: 0 | C24: 0 | D24: 0
A25: 0 | B25: 0 | C25: 0 | D25: 0
E27: Failure rate (M5 - Third Party)
A28: Option | B28: Feeder | D28: Length of cable (km) | E28: =E2 -> 2022 | F28: =F2 -> 2023 | G28: 2024 | H28: 2025 | I28: 2026 | J28: 2027 | K28: 2028 | L28: 2029 | M28: 2030 | N28: 2031 | O28: 2032 | P28: 2033 | Q28: 2034 | R28: 2035 | S28: 2036 | T28: 2037 | U28: 2038 | V28: 2039 | W28: 2040 | X28: 2041 | Y28: 2042
A29: Base case | B29: 9E1 | C29: Oil-filled Cable | D29: 0.914 | E29: 0.0265974 | F29: 0.0265974 | G29: 0.0265974 | H29: 0.0265974 | I29: 0.0265974 | J29: 0.0265974 | K29: 0.0265974 | L29: 0.0265974 | M29: 0.0265974 | N29: 0.0265974 | O29: 0.0265974 | P29: 0.0265974 | Q29: 0.0265974 | R29: 0.0265974 | S29: 0.0265974 | T29: 0.0265974 | U29: 0.0265974 | V29: 0.0265974 | W29: 0.0265974 | X29: 0.0265974 | Y29: 0.0265974
A30: Base case | B30: 9E2 | C30: Oil-filled Cable | D30: 1.045 | E30: 0.0304095 | F30: 0.0304095 | G30: 0.0304095 | H30: 0.0304095 | I30: 0.0304095 | J30: 0.0304095 | K30: 0.0304095 | L30: 0.0304095 | M30: 0.0304095 | N30: 0.0304095 | O30: 0.0304095 | P30: 0.0304095 | Q30: 0.0304095 | R30: 0.0304095 | S30: 0.0304095 | T30: 0.0304095 | U30: 0.0304095 | V30: 0.0304095 | W30: 0.0304095 | X30: 0.0304095 | Y30: 0.0304095
A31: =A5 -> Base case | B31: 0 | C31: 0 | D31: 0
A32: Base case | B32: 0 | C32: 0 | D32: 0
A33: Base case | B33: 0 | C33: 0 | D33: 0
A34: Base case | B34: 0 | C34: 0 | D34: 0
A35: Base case | B35: 0 | C35: 0 | D35: 0
A36: Base case | B36: 0 | C36: 0 | D36: 0
A37: Base case | B37: 0 | C37: 0 | D37: 0
A38: 0 | B38: 0 | C38: 0 | D38: 0
A40: You can enter failure rates data or risk costs directly (calculated from another spreadsheet)
A41: Please select the option to be used ---------------------------> | C41: Failure Rates | E41: Switchgear (Failure Rates)
A42: Option | B42: Switchgear | C42: Construction | D42: Type * | E42: =E2 -> 2022 | F42: =F2 -> 2023 | G42: 2024 | H42: 2025 | I42: 2026 | J42: 2027 | K42: 2028 | L42: 2029 | M42: 2030 | N42: 2031 | O42: 2032 | P42: 2033 | Q42: 2034 | R42: 2035 | S42: 2036 | T42: 2037 | U42: 2038 | V42: 2039 | W42: 2040 | X42: 2041 | Y42: 2042
E53: Switchgear (Repair and Safety Risk Costs)
A54: Option | B54: Switchgear | C54: Construction | D54: Risk Cost | E54: =E2 -> 2022 | F54: =F2 -> 2023 | G54: 2024 | H54: 2025 | I54: 2026 | J54: 2027 | K54: 2028 | L54: 2029 | M54: 2030 | N54: 2031 | O54: 2032 | P54: 2033 | Q54: 2034 | R54: 2035 | S54: 2036 | T54: 2037 | U54: 2038 | V54: 2039 | W54: 2040 | X54: 2041 | Y54: 2042
A55: Repair
A56: Safety

Sheet Calculation
A4: Unserved Energy Costs | D4: =Summary!E52 -> 2022 | E4: =D4+1 -> 2023 | F4: =E4+1 -> 2024 | G4: 2025 | H4: 2026 | I4: 2027 | J4: 2028 | K4: 2029 | L4: 2030 | M4: 2031 | N4: 2032 | O4: 2033 | P4: 2034 | Q4: 2035 | R4: 2036 | S4: 2037 | T4: 2038 | U4: 2039 | V4: 2040 | W4: 2041 | X4: 2042
A5: Feeder Unserved Energy (MWh) | D5: ='Unserved energy inputs'!D16 -> 7.443597286 | E5: ='Unserved energy inputs'!E16 -> 7.930155849 | F5: ='Unserved energy inputs'!F16 -> 8.449859381 | G5: ='Unserved energy inputs'!G16 -> 8.957625651 | H5: ='Unserved energy inputs'!H16 -> 9.472190535 | I5: ='Unserved energy inputs'!I16 -> 10.0426862 | J5: ='Unserved energy inputs'!J16 -> 10.65059846 | K5: ='Unserved energy inputs'!K16 -> 11.322033 | L5: ='Unserved energy inputs'!L16 -> 12.11725976 | M5: ='Unserved energy inputs'!M16 -> 12.9928503 | N5: ='Unserved energy inputs'!N16 -> 13.97780437 | O5: ='Unserved energy inputs'!O16 -> 15.10843846 | P5: ='Unserved energy inputs'!P16 -> 16.26880819 | Q5: ='Unserved energy inputs'!Q16 -> 17.53329452 | R5: ='Unserved energy inputs'!R16 -> 18.95023649 | S5: ='Unserved energy inputs'!S16 -> 20.47109283 | T5: ='Unserved energy inputs'!T16 -> 22.27736284 | U5: ='Unserved energy inputs'!U16 -> 24.00478916 | V5: ='Unserved energy inputs'!V16 -> 25.84754906 | W5: ='Unserved energy inputs'!W16 -> 27.70155484 | X5: ='Unserved energy inputs'!X16 -> 30.0063871
A6: Feeder - Value of Unserved Energy ($) | D6: =D5*'Global inputs'!$E$6 -> 342591.5651 | E6: =E5*'Global inputs'!$E$6 -> 364985.423 | F6: =F5*'Global inputs'!$E$6 -> 388904.778 | G6: =G5*'Global inputs'!$E$6 -> 412274.7206 | H6: =H5*'Global inputs'!$E$6 -> 435957.5694 | I6: =I5*'Global inputs'!$E$6 -> 462214.6324 | J6: =J5*'Global inputs'!$E$6 -> 490193.7941 | K6: =K5*'Global inputs'!$E$6 -> 521096.5689 | L6: =L5*'Global inputs'!$E$6 -> 557696.8805 | M6: =M5*'Global inputs'!$E$6 -> 597995.9352 | N6: =N5*'Global inputs'!$E$6 -> 643328.4461 | O6: =O5*'Global inputs'!$E$6 -> 695365.8803 | P6: =P5*'Global inputs'!$E$6 -> 748771.8969 | Q6: =Q5*'Global inputs'!$E$6 -> 806969.8803 | R6: =R5*'Global inputs'!$E$6 -> 872184.6346 | S6: =S5*'Global inputs'!$E$6 -> 942182.0474 | T6: =T5*'Global inputs'!$E$6 -> 1025315.625 | U6: =U5*'Global inputs'!$E$6 -> 1104820.421 | V6: =V5*'Global inputs'!$E$6 -> 1189633.445 | W6: =W5*'Global inputs'!$E$6 -> 1274964.062 | X6: =X5*'Global inputs'!$E$6 -> 1381043.966
A8: Switchgear Unserved Energy (MWh) | D8: ='Unserved energy inputs'!D33 -> 0 | E8: ='Unserved energy inputs'!E33 -> 0 | F8: ='Unserved energy inputs'!F33 -> 0 | G8: ='Unserved energy inputs'!G33 -> 0 | H8: ='Unserved energy inputs'!H33 -> 0 | I8: ='Unserved energy inputs'!I33 -> 0 | J8: ='Unserved energy inputs'!J33 -> 0 | K8: ='Unserved energy inputs'!K33 -> 0 | L8: ='Unserved energy inputs'!L33 -> 0 | M8: ='Unserved energy inputs'!M33 -> 0 | N8: ='Unserved energy inputs'!N33 -> 0 | O8: ='Unserved energy inputs'!O33 -> 0 | P8: ='Unserved energy inputs'!P33 -> 0 | Q8: ='Unserved energy inputs'!Q33 -> 0 | R8: ='Unserved energy inputs'!R33 -> 0 | S8: ='Unserved energy inputs'!S33 -> 0 | T8: ='Unserved energy inputs'!T33 -> 0 | U8: ='Unserved energy inputs'!U33 -> 0 | V8: ='Unserved energy inputs'!V33 -> 0 | W8: ='Unserved energy inputs'!W33 -> 0 | X8: ='Unserved energy inputs'!X33 -> 0
A9: Switchgear - Value of Unserved Energy ($) | D9: =D8*'Global inputs'!$E$6 -> 0 | E9: =E8*'Global inputs'!$E$6 -> 0 | F9: =F8*'Global inputs'!$E$6 -> 0 | G9: =G8*'Global inputs'!$E$6 -> 0 | H9: =H8*'Global inputs'!$E$6 -> 0 | I9: =I8*'Global inputs'!$E$6 -> 0 | J9: =J8*'Global inputs'!$E$6 -> 0 | K9: =K8*'Global inputs'!$E$6 -> 0 | L9: =L8*'Global inputs'!$E$6 -> 0 | M9: =M8*'Global inputs'!$E$6 -> 0 | N9: =N8*'Global inputs'!$E$6 -> 0 | O9: =O8*'Global inputs'!$E$6 -> 0 | P9: =P8*'Global inputs'!$E$6 -> 0 | Q9: =Q8*'Global inputs'!$E$6 -> 0 | R9: =R8*'Global inputs'!$E$6 -> 0 | S9: =S8*'Global inputs'!$E$6 -> 0 | T9: =T8*'Global inputs'!$E$6 -> 0 | U9: =U8*'Global inputs'!$E$6 -> 0 | V9: =V8*'Global inputs'!$E$6 -> 0 | W9: =W8*'Global inputs'!$E$6 -> 0 | X9: =X8*'Global inputs'!$E$6 -> 0
A11: Repair Costs | D11: =D4 -> 2022 | E11: =D11+1 -> 2023 | F11: =E11+1 -> 2024 | G11: =F11+1 -> 2025 | H11: =G11+1 -> 2026 | I11: =H11+1 -> 2027 | J11: =I11+1 -> 2028 | K11: =J11+1 -> 2029 | L11: =K11+1 -> 2030 | M11: =L11+1 -> 2031 | N11: =M11+1 -> 2032 | O11: =N11+1 -> 2033 | P11: =O11+1 -> 2034 | Q11: =P11+1 -> 2035 | R11: =Q11+1 -> 2036 | S11: =R11+1 -> 2037 | T11: =S11+1 -> 2038 | U11: =T11+1 -> 2039 | V11: =U11+1 -> 2040 | W11: =V11+1 -> 2041 | X11: 2042
A13: Feeder - Repair Cost (M2-Corrective) | C13: Oil-filled Cable | D13: =SUMPRODUCT(('Failure rates'!E$3:E$12)*('Failure rates'!$C$3:$C$12=$C13))*VLOOKUP($C13,'Risk parameters'!$A$7:$D$11,2,FALSE) -> 1496.546085 | E13: =SUMPRODUCT(('Failure rates'!F$3:F$12)*('Failure rates'!$C$3:$C$12=$C13))*VLOOKUP($C13,'Risk parameters'!$A$7:$D$11,2,FALSE) -> 1707.321031 | F13: =SUMPRODUCT(('Failure rates'!G$3:G$12)*('Failure rates'!$C$3:$C$12=$C13))*VLOOKUP($C13,'Risk parameters'!$A$7:$D$11,2,FALSE) -> 1941.627709 | G13: =SUMPRODUCT(('Failure rates'!H$3:H$12)*('Failure rates'!$C$3:$C$12=$C13))*VLOOKUP($C13,'Risk parameters'!$A$7:$D$11,2,FALSE) -> 2201.440062 | H13: =SUMPRODUCT(('Failure rates'!I$3:I$12)*('Failure rates'!$C$3:$C$12=$C13))*VLOOKUP($C13,'Risk parameters'!$A$7:$D$11,2,FALSE) -> 2489.672766 | I13: =SUMPRODUCT(('Failure rates'!J$3:J$12)*('Failure rates'!$C$3:$C$12=$C13))*VLOOKUP($C13,'Risk parameters'!$A$7:$D$11,2,FALSE) -> 2806.960428 | J13: =SUMPRODUCT(('Failure rates'!K$3:K$12)*('Failure rates'!$C$3:$C$12=$C13))*VLOOKUP($C13,'Risk parameters'!$A$7:$D$11,2,FALSE) -> 3156.377347 | K13: =SUMPRODUCT(('Failure rates'!L$3:L$12)*('Failure rates'!$C$3:$C$12=$C13))*VLOOKUP($C13,'Risk parameters'!$A$7:$D$11,2,FALSE) -> 3540.373588 | L13: =SUMPRODUCT(('Failure rates'!M$3:M$12)*('Failure rates'!$C$3:$C$12=$C13))*VLOOKUP($C13,'Risk parameters'!$A$7:$D$11,2,FALSE) -> 3962.734818 | M13: =SUMPRODUCT(('Failure rates'!N$3:N$12)*('Failure rates'!$C$3:$C$12=$C13))*VLOOKUP($C13,'Risk parameters'!$A$7:$D$11,2,FALSE) -> 4423.869786 | N13: =SUMPRODUCT(('Failure rates'!O$3:O$12)*('Failure rates'!$C$3:$C$12=$C13))*VLOOKUP($C13,'Risk parameters'!$A$7:$D$11,2,FALSE) -> 4927.72695 | O13: =SUMPRODUCT(('Failure rates'!P$3:P$12)*('Failure rates'!$C$3:$C$12=$C13))*VLOOKUP($C13,'Risk parameters'!$A$7:$D$11,2,FALSE) -> 5477.292581 | P13: =SUMPRODUCT(('Failure rates'!Q$3:Q$12)*('Failure rates'!$C$3:$C$12=$C13))*VLOOKUP($C13,'Risk parameters'!$A$7:$D$11,2,FALSE) -> 6077.406024 | Q13: =SUMPRODUCT(('Failure rates'!R$3:R$12)*('Failure rates'!$C$3:$C$12=$C13))*VLOOKUP($C13,'Risk parameters'!$A$7:$D$11,2,FALSE) -> 6728.072934 | R13: =SUMPRODUCT(('Failure rates'!S$3:S$12)*('Failure rates'!$C$3:$C$12=$C13))*VLOOKUP($C13,'Risk parameters'!$A$7:$D$11,2,FALSE) -> 7434.293649 | S13: =SUMPRODUCT(('Failure rates'!T$3:T$12)*('Failure rates'!$C$3:$C$12=$C13))*VLOOKUP($C13,'Risk parameters'!$A$7:$D$11,2,FALSE) -> 8199.652544 | T13: =SUMPRODUCT(('Failure rates'!U$3:U$12)*('Failure rates'!$C$3:$C$12=$C13))*VLOOKUP($C13,'Risk parameters'!$A$7:$D$11,2,FALSE) -> 9030.252362 | U13: =SUMPRODUCT(('Failure rates'!V$3:V$12)*('Failure rates'!$C$3:$C$12=$C13))*VLOOKUP($C13,'Risk parameters'!$A$7:$D$11,2,FALSE) -> 9925.470417 | V13: =SUMPRODUCT(('Failure rates'!W$3:W$12)*('Failure rates'!$C$3:$C$12=$C13))*VLOOKUP($C13,'Risk parameters'!$A$7:$D$11,2,FALSE) -> 10891.56295 | W13: =SUMPRODUCT(('Failure rates'!X$3:X$12)*('Failure rates'!$C$3:$C$12=$C13))*VLOOKUP($C13,'Risk parameters'!$A$7:$D$11,2,FALSE) -> 11932.77607 | X13: =SUMPRODUCT(('Failure rates'!Y$3:Y$12)*('Failure rates'!$C$3:$C$12=$C13))*VLOOKUP($C13,'Risk parameters'!$A$7:$D$11,2,FALSE) -> 13056.71533
C14: Gas Pressure Cable | D14: =SUMPRODUCT(('Failure rates'!E$3:E$12)*('Failure rates'!$C$3:$C$12=$C14))*VLOOKUP($C14,'Risk parameters'!$A$7:$D$11,2,FALSE) -> 0 | E14: =SUMPRODUCT(('Failure rates'!F$3:F$12)*('Failure rates'!$C$3:$C$12=$C14))*VLOOKUP($C14,'Risk parameters'!$A$7:$D$11,2,FALSE) -> 0 | F14: =SUMPRODUCT(('Failure rates'!G$3:G$12)*('Failure rates'!$C$3:$C$12=$C14))*VLOOKUP($C14,'Risk parameters'!$A$7:$D$11,2,FALSE) -> 0 | G14: =SUMPRODUCT(('Failure rates'!H$3:H$12)*('Failure rates'!$C$3:$C$12=$C14))*VLOOKUP($C14,'Risk parameters'!$A$7:$D$11,2,FALSE) -> 0 | H14: =SUMPRODUCT(('Failure rates'!I$3:I$12)*('Failure rates'!$C$3:$C$12=$C14))*VLOOKUP($C14,'Risk parameters'!$A$7:$D$11,2,FALSE) -> 0 | I14: =SUMPRODUCT(('Failure rates'!J$3:J$12)*('Failure rates'!$C$3:$C$12=$C14))*VLOOKUP($C14,'Risk parameters'!$A$7:$D$11,2,FALSE) -> 0 | J14: =SUMPRODUCT(('Failure rates'!K$3:K$12)*('Failure rates'!$C$3:$C$12=$C14))*VLOOKUP($C14,'Risk parameters'!$A$7:$D$11,2,FALSE) -> 0 | K14: =SUMPRODUCT(('Failure rates'!L$3:L$12)*('Failure rates'!$C$3:$C$12=$C14))*VLOOKUP($C14,'Risk parameters'!$A$7:$D$11,2,FALSE) -> 0 | L14: =SUMPRODUCT(('Failure rates'!M$3:M$12)*('Failure rates'!$C$3:$C$12=$C14))*VLOOKUP($C14,'Risk parameters'!$A$7:$D$11,2,FALSE) -> 0 | M14: =SUMPRODUCT(('Failure rates'!N$3:N$12)*('Failure rates'!$C$3:$C$12=$C14))*VLOOKUP($C14,'Risk parameters'!$A$7:$D$11,2,FALSE) -> 0 | N14: =SUMPRODUCT(('Failure rates'!O$3:O$12)*('Failure rates'!$C$3:$C$12=$C14))*VLOOKUP($C14,'Risk parameters'!$A$7:$D$11,2,FALSE) -> 0 | O14: =SUMPRODUCT(('Failure rates'!P$3:P$12)*('Failure rates'!$C$3:$C$12=$C14))*VLOOKUP($C14,'Risk parameters'!$A$7:$D$11,2,FALSE) -> 0 | P14: =SUMPRODUCT(('Failure rates'!Q$3:Q$12)*('Failure rates'!$C$3:$C$12=$C14))*VLOOKUP($C14,'Risk parameters'!$A$7:$D$11,2,FALSE) -> 0 | Q14: =SUMPRODUCT(('Failure rates'!R$3:R$12)*('Failure rates'!$C$3:$C$12=$C14))*VLOOKUP($C14,'Risk parameters'!$A$7:$D$11,2,FALSE) -> 0 | R14: =SUMPRODUCT(('Failure rates'!S$3:S$12)*('Failure rates'!$C$3:$C$12=$C14))*VLOOKUP($C14,'Risk parameters'!$A$7:$D$11,2,FALSE) -> 0 | S14: =SUMPRODUCT(('Failure rates'!T$3:T$12)*('Failure rates'!$C$3:$C$12=$C14))*VLOOKUP($C14,'Risk parameters'!$A$7:$D$11,2,FALSE) -> 0 | T14: =SUMPRODUCT(('Failure rates'!U$3:U$12)*('Failure rates'!$C$3:$C$12=$C14))*VLOOKUP($C14,'Risk parameters'!$A$7:$D$11,2,FALSE) -> 0 | U14: =SUMPRODUCT(('Failure rates'!V$3:V$12)*('Failure rates'!$C$3:$C$12=$C14))*VLOOKUP($C14,'Risk parameters'!$A$7:$D$11,2,FALSE) -> 0 | V14: =SUMPRODUCT(('Failure rates'!W$3:W$12)*('Failure rates'!$C$3:$C$12=$C14))*VLOOKUP($C14,'Risk parameters'!$A$7:$D$11,2,FALSE) -> 0 | W14: =SUMPRODUCT(('Failure rates'!X$3:X$12)*('Failure rates'!$C$3:$C$12=$C14))*VLOOKUP($C14,'Risk parameters'!$A$7:$D$11,2,FALSE) -> 0 | X14: =SUMPRODUCT(('Failure rates'!Y$3:Y$12)*('Failure rates'!$C$3:$C$12=$C14))*VLOOKUP($C14,'Risk parameters'!$A$7:$D$11,2,FALSE) -> 0
C15: Solid/HSL Cable | D15: =SUMPRODUCT(('Failure rates'!E$3:E$12)*('Failure rates'!$C$3:$C$12=$C15))*VLOOKUP($C15,'Risk parameters'!$A$7:$D$11,2,FALSE) -> 0 | E15: =SUMPRODUCT(('Failure rates'!F$3:F$12)*('Failure rates'!$C$3:$C$12=$C15))*VLOOKUP($C15,'Risk parameters'!$A$7:$D$11,2,FALSE) -> 0 | F15: =SUMPRODUCT(('Failure rates'!G$3:G$12)*('Failure rates'!$C$3:$C$12=$C15))*VLOOKUP($C15,'Risk parameters'!$A$7:$D$11,2,FALSE) -> 0 | G15: =SUMPRODUCT(('Failure rates'!H$3:H$12)*('Failure rates'!$C$3:$C$12=$C15))*VLOOKUP($C15,'Risk parameters'!$A$7:$D$11,2,FALSE) -> 0 | H15: =SUMPRODUCT(('Failure rates'!I$3:I$12)*('Failure rates'!$C$3:$C$12=$C15))*VLOOKUP($C15,'Risk parameters'!$A$7:$D$11,2,FALSE) -> 0 | I15: =SUMPRODUCT(('Failure rates'!J$3:J$12)*('Failure rates'!$C$3:$C$12=$C15))*VLOOKUP($C15,'Risk parameters'!$A$7:$D$11,2,FALSE) -> 0 | J15: =SUMPRODUCT(('Failure rates'!K$3:K$12)*('Failure rates'!$C$3:$C$12=$C15))*VLOOKUP($C15,'Risk parameters'!$A$7:$D$11,2,FALSE) -> 0 | K15: =SUMPRODUCT(('Failure rates'!L$3:L$12)*('Failure rates'!$C$3:$C$12=$C15))*VLOOKUP($C15,'Risk parameters'!$A$7:$D$11,2,FALSE) -> 0 | L15: =SUMPRODUCT(('Failure rates'!M$3:M$12)*('Failure rates'!$C$3:$C$12=$C15))*VLOOKUP($C15,'Risk parameters'!$A$7:$D$11,2,FALSE) -> 0 | M15: =SUMPRODUCT(('Failure rates'!N$3:N$12)*('Failure rates'!$C$3:$C$12=$C15))*VLOOKUP($C15,'Risk parameters'!$A$7:$D$11,2,FALSE) -> 0 | N15: =SUMPRODUCT(('Failure rates'!O$3:O$12)*('Failure rates'!$C$3:$C$12=$C15))*VLOOKUP($C15,'Risk parameters'!$A$7:$D$11,2,FALSE) -> 0 | O15: =SUMPRODUCT(('Failure rates'!P$3:P$12)*('Failure rates'!$C$3:$C$12=$C15))*VLOOKUP($C15,'Risk parameters'!$A$7:$D$11,2,FALSE) -> 0 | P15: =SUMPRODUCT(('Failure rates'!Q$3:Q$12)*('Failure rates'!$C$3:$C$12=$C15))*VLOOKUP($C15,'Risk parameters'!$A$7:$D$11,2,FALSE) -> 0 | Q15: =SUMPRODUCT(('Failure rates'!R$3:R$12)*('Failure rates'!$C$3:$C$12=$C15))*VLOOKUP($C15,'Risk parameters'!$A$7:$D$11,2,FALSE) -> 0 | R15: =SUMPRODUCT(('Failure rates'!S$3:S$12)*('Failure rates'!$C$3:$C$12=$C15))*VLOOKUP($C15,'Risk parameters'!$A$7:$D$11,2,FALSE) -> 0 | S15: =SUMPRODUCT(('Failure rates'!T$3:T$12)*('Failure rates'!$C$3:$C$12=$C15))*VLOOKUP($C15,'Risk parameters'!$A$7:$D$11,2,FALSE) -> 0 | T15: =SUMPRODUCT(('Failure rates'!U$3:U$12)*('Failure rates'!$C$3:$C$12=$C15))*VLOOKUP($C15,'Risk parameters'!$A$7:$D$11,2,FALSE) -> 0 | U15: =SUMPRODUCT(('Failure rates'!V$3:V$12)*('Failure rates'!$C$3:$C$12=$C15))*VLOOKUP($C15,'Risk parameters'!$A$7:$D$11,2,FALSE) -> 0 | V15: =SUMPRODUCT(('Failure rates'!W$3:W$12)*('Failure rates'!$C$3:$C$12=$C15))*VLOOKUP($C15,'Risk parameters'!$A$7:$D$11,2,FALSE) -> 0 | W15: =SUMPRODUCT(('Failure rates'!X$3:X$12)*('Failure rates'!$C$3:$C$12=$C15))*VLOOKUP($C15,'Risk parameters'!$A$7:$D$11,2,FALSE) -> 0 | X15: =SUMPRODUCT(('Failure rates'!Y$3:Y$12)*('Failure rates'!$C$3:$C$12=$C15))*VLOOKUP($C15,'Risk parameters'!$A$7:$D$11,2,FALSE) -> 0
C16: XLPE Cable | D16: =SUMPRODUCT(('Failure rates'!E$3:E$12)*('Failure rates'!$C$3:$C$12=$C16))*VLOOKUP($C16,'Risk parameters'!$A$7:$D$11,2,FALSE) -> 0 | E16: =SUMPRODUCT(('Failure rates'!F$3:F$12)*('Failure rates'!$C$3:$C$12=$C16))*VLOOKUP($C16,'Risk parameters'!$A$7:$D$11,2,FALSE) -> 0 | F16: =SUMPRODUCT(('Failure rates'!G$3:G$12)*('Failure rates'!$C$3:$C$12=$C16))*VLOOKUP($C16,'Risk parameters'!$A$7:$D$11,2,FALSE) -> 0 | G16: =SUMPRODUCT(('Failure rates'!H$3:H$12)*('Failure rates'!$C$3:$C$12=$C16))*VLOOKUP($C16,'Risk parameters'!$A$7:$D$11,2,FALSE) -> 0 | H16: =SUMPRODUCT(('Failure rates'!I$3:I$12)*('Failure rates'!$C$3:$C$12=$C16))*VLOOKUP($C16,'Risk parameters'!$A$7:$D$11,2,FALSE) -> 0 | I16: =SUMPRODUCT(('Failure rates'!J$3:J$12)*('Failure rates'!$C$3:$C$12=$C16))*VLOOKUP($C16,'Risk parameters'!$A$7:$D$11,2,FALSE) -> 0 | J16: =SUMPRODUCT(('Failure rates'!K$3:K$12)*('Failure rates'!$C$3:$C$12=$C16))*VLOOKUP($C16,'Risk parameters'!$A$7:$D$11,2,FALSE) -> 0 | K16: =SUMPRODUCT(('Failure rates'!L$3:L$12)*('Failure rates'!$C$3:$C$12=$C16))*VLOOKUP($C16,'Risk parameters'!$A$7:$D$11,2,FALSE) -> 0 | L16: =SUMPRODUCT(('Failure rates'!M$3:M$12)*('Failure rates'!$C$3:$C$12=$C16))*VLOOKUP($C16,'Risk parameters'!$A$7:$D$11,2,FALSE) -> 0 | M16: =SUMPRODUCT(('Failure rates'!N$3:N$12)*('Failure rates'!$C$3:$C$12=$C16))*VLOOKUP($C16,'Risk parameters'!$A$7:$D$11,2,FALSE) -> 0 | N16: =SUMPRODUCT(('Failure rates'!O$3:O$12)*('Failure rates'!$C$3:$C$12=$C16))*VLOOKUP($C16,'Risk parameters'!$A$7:$D$11,2,FALSE) -> 0 | O16: =SUMPRODUCT(('Failure rates'!P$3:P$12)*('Failure rates'!$C$3:$C$12=$C16))*VLOOKUP($C16,'Risk parameters'!$A$7:$D$11,2,FALSE) -> 0 | P16: =SUMPRODUCT(('Failure rates'!Q$3:Q$12)*('Failure rates'!$C$3:$C$12=$C16))*VLOOKUP($C16,'Risk parameters'!$A$7:$D$11,2,FALSE) -> 0 | Q16: =SUMPRODUCT(('Failure rates'!R$3:R$12)*('Failure rates'!$C$3:$C$12=$C16))*VLOOKUP($C16,'Risk parameters'!$A$7:$D$11,2,FALSE) -> 0 | R16: =SUMPRODUCT(('Failure rates'!S$3:S$12)*('Failure rates'!$C$3:$C$12=$C16))*VLOOKUP($C16,'Risk parameters'!$A$7:$D$11,2,FALSE) -> 0 | S16: =SUMPRODUCT(('Failure rates'!T$3:T$12)*('Failure rates'!$C$3:$C$12=$C16))*VLOOKUP($C16,'Risk parameters'!$A$7:$D$11,2,FALSE) -> 0 | T16: =SUMPRODUCT(('Failure rates'!U$3:U$12)*('Failure rates'!$C$3:$C$12=$C16))*VLOOKUP($C16,'Risk parameters'!$A$7:$D$11,2,FALSE) -> 0 | U16: =SUMPRODUCT(('Failure rates'!V$3:V$12)*('Failure rates'!$C$3:$C$12=$C16))*VLOOKUP($C16,'Risk parameters'!$A$7:$D$11,2,FALSE) -> 0 | V16: =SUMPRODUCT(('Failure rates'!W$3:W$12)*('Failure rates'!$C$3:$C$12=$C16))*VLOOKUP($C16,'Risk parameters'!$A$7:$D$11,2,FALSE) -> 0 | W16: =SUMPRODUCT(('Failure rates'!X$3:X$12)*('Failure rates'!$C$3:$C$12=$C16))*VLOOKUP($C16,'Risk parameters'!$A$7:$D$11,2,FALSE) -> 0 | X16: =SUMPRODUCT(('Failure rates'!Y$3:Y$12)*('Failure rates'!$C$3:$C$12=$C16))*VLOOKUP($C16,'Risk parameters'!$A$7:$D$11,2,FALSE) -> 0
C17: 132 kV XLPE Cable | D17: =SUMPRODUCT(('Failure rates'!E$3:E$12)*('Failure rates'!$C$3:$C$12=$C17))*VLOOKUP($C17,'Risk parameters'!$A$7:$D$11,2,FALSE) -> 0 | E17: =SUMPRODUCT(('Failure rates'!F$3:F$12)*('Failure rates'!$C$3:$C$12=$C17))*VLOOKUP($C17,'Risk parameters'!$A$7:$D$11,2,FALSE) -> 0 | F17: =SUMPRODUCT(('Failure rates'!G$3:G$12)*('Failure rates'!$C$3:$C$12=$C17))*VLOOKUP($C17,'Risk parameters'!$A$7:$D$11,2,FALSE) -> 0 | G17: =SUMPRODUCT(('Failure rates'!H$3:H$12)*('Failure rates'!$C$3:$C$12=$C17))*VLOOKUP($C17,'Risk parameters'!$A$7:$D$11,2,FALSE) -> 0 | H17: =SUMPRODUCT(('Failure rates'!I$3:I$12)*('Failure rates'!$C$3:$C$12=$C17))*VLOOKUP($C17,'Risk parameters'!$A$7:$D$11,2,FALSE) -> 0 | I17: =SUMPRODUCT(('Failure rates'!J$3:J$12)*('Failure rates'!$C$3:$C$12=$C17))*VLOOKUP($C17,'Risk parameters'!$A$7:$D$11,2,FALSE) -> 0 | J17: =SUMPRODUCT(('Failure rates'!K$3:K$12)*('Failure rates'!$C$3:$C$12=$C17))*VLOOKUP($C17,'Risk parameters'!$A$7:$D$11,2,FALSE) -> 0 | K17: =SUMPRODUCT(('Failure rates'!L$3:L$12)*('Failure rates'!$C$3:$C$12=$C17))*VLOOKUP($C17,'Risk parameters'!$A$7:$D$11,2,FALSE) -> 0 | L17: =SUMPRODUCT(('Failure rates'!M$3:M$12)*('Failure rates'!$C$3:$C$12=$C17))*VLOOKUP($C17,'Risk parameters'!$A$7:$D$11,2,FALSE) -> 0 | M17: =SUMPRODUCT(('Failure rates'!N$3:N$12)*('Failure rates'!$C$3:$C$12=$C17))*VLOOKUP($C17,'Risk parameters'!$A$7:$D$11,2,FALSE) -> 0 | N17: =SUMPRODUCT(('Failure rates'!O$3:O$12)*('Failure rates'!$C$3:$C$12=$C17))*VLOOKUP($C17,'Risk parameters'!$A$7:$D$11,2,FALSE) -> 0 | O17: =SUMPRODUCT(('Failure rates'!P$3:P$12)*('Failure rates'!$C$3:$C$12=$C17))*VLOOKUP($C17,'Risk parameters'!$A$7:$D$11,2,FALSE) -> 0 | P17: =SUMPRODUCT(('Failure rates'!Q$3:Q$12)*('Failure rates'!$C$3:$C$12=$C17))*VLOOKUP($C17,'Risk parameters'!$A$7:$D$11,2,FALSE) -> 0 | Q17: =SUMPRODUCT(('Failure rates'!R$3:R$12)*('Failure rates'!$C$3:$C$12=$C17))*VLOOKUP($C17,'Risk parameters'!$A$7:$D$11,2,FALSE) -> 0 | R17: =SUMPRODUCT(('Failure rates'!S$3:S$12)*('Failure rates'!$C$3:$C$12=$C17))*VLOOKUP($C17,'Risk parameters'!$A$7:$D$11,2,FALSE) -> 0 | S17: =SUMPRODUCT(('Failure rates'!T$3:T$12)*('Failure rates'!$C$3:$C$12=$C17))*VLOOKUP($C17,'Risk parameters'!$A$7:$D$11,2,FALSE) -> 0 | T17: =SUMPRODUCT(('Failure rates'!U$3:U$12)*('Failure rates'!$C$3:$C$12=$C17))*VLOOKUP($C17,'Risk parameters'!$A$7:$D$11,2,FALSE) -> 0 | U17: =SUMPRODUCT(('Failure rates'!V$3:V$12)*('Failure rates'!$C$3:$C$12=$C17))*VLOOKUP($C17,'Risk parameters'!$A$7:$D$11,2,FALSE) -> 0 | V17: =SUMPRODUCT(('Failure rates'!W$3:W$12)*('Failure rates'!$C$3:$C$12=$C17))*VLOOKUP($C17,'Risk parameters'!$A$7:$D$11,2,FALSE) -> 0 | W17: =SUMPRODUCT(('Failure rates'!X$3:X$12)*('Failure rates'!$C$3:$C$12=$C17))*VLOOKUP($C17,'Risk parameters'!$A$7:$D$11,2,FALSE) -> 0 | X17: =SUMPRODUCT(('Failure rates'!Y$3:Y$12)*('Failure rates'!$C$3:$C$12=$C17))*VLOOKUP($C17,'Risk parameters'!$A$7:$D$11,2,FALSE) -> 0
A19: Feeder - Repair Cost (M3-Breakdown) | C19: Oil-filled Cable | D19: =SUMPRODUCT(('Failure rates'!E$16:E$25)*('Failure rates'!$C$3:$C$12=$C19))*VLOOKUP($C19,'Risk parameters'!$A$7:$D$11,3,FALSE) -> 1949.829831 | E19: =SUMPRODUCT(('Failure rates'!F$16:F$25)*('Failure rates'!$C$3:$C$12=$C19))*VLOOKUP($C19,'Risk parameters'!$A$7:$D$11,3,FALSE) -> 2197.264244 | F19: =SUMPRODUCT(('Failure rates'!G$16:G$25)*('Failure rates'!$C$3:$C$12=$C19))*VLOOKUP($C19,'Risk parameters'!$A$7:$D$11,3,FALSE) -> 2469.169737 | G19: =SUMPRODUCT(('Failure rates'!H$16:H$25)*('Failure rates'!$C$3:$C$12=$C19))*VLOOKUP($C19,'Risk parameters'!$A$7:$D$11,3,FALSE) -> 2768.168627 | H19: =SUMPRODUCT(('Failure rates'!I$16:I$25)*('Failure rates'!$C$3:$C$12=$C19))*VLOOKUP($C19,'Risk parameters'!$A$7:$D$11,3,FALSE) -> 3094.481927 | I19: =SUMPRODUCT(('Failure rates'!J$16:J$25)*('Failure rates'!$C$3:$C$12=$C19))*VLOOKUP($C19,'Risk parameters'!$A$7:$D$11,3,FALSE) -> 3450.825224 | J19: =SUMPRODUCT(('Failure rates'!K$16:K$25)*('Failure rates'!$C$3:$C$12=$C19))*VLOOKUP($C19,'Risk parameters'!$A$7:$D$11,3,FALSE) -> 3839.220464 | K19: =SUMPRODUCT(('Failure rates'!L$16:L$25)*('Failure rates'!$C$3:$C$12=$C19))*VLOOKUP($C19,'Risk parameters'!$A$7:$D$11,3,FALSE) -> 4262.984592 | L19: =SUMPRODUCT(('Failure rates'!M$16:M$25)*('Failure rates'!$C$3:$C$12=$C19))*VLOOKUP($C19,'Risk parameters'!$A$7:$D$11,3,FALSE) -> 4722.007697 | M19: =SUMPRODUCT(('Failure rates'!N$16:N$25)*('Failure rates'!$C$3:$C$12=$C19))*VLOOKUP($C19,'Risk parameters'!$A$7:$D$11,3,FALSE) -> 5219.692773 | N19: =SUMPRODUCT(('Failure rates'!O$16:O$25)*('Failure rates'!$C$3:$C$12=$C19))*VLOOKUP($C19,'Risk parameters'!$A$7:$D$11,3,FALSE) -> 5758.426764 | O19: =SUMPRODUCT(('Failure rates'!P$16:P$25)*('Failure rates'!$C$3:$C$12=$C19))*VLOOKUP($C19,'Risk parameters'!$A$7:$D$11,3,FALSE) -> 6342.349853 | P19: =SUMPRODUCT(('Failure rates'!Q$16:Q$25)*('Failure rates'!$C$3:$C$12=$C19))*VLOOKUP($C19,'Risk parameters'!$A$7:$D$11,3,FALSE) -> 6970.857738 | Q19: =SUMPRODUCT(('Failure rates'!R$16:R$25)*('Failure rates'!$C$3:$C$12=$C19))*VLOOKUP($C19,'Risk parameters'!$A$7:$D$11,3,FALSE) -> 7648.165395 | R19: =SUMPRODUCT(('Failure rates'!S$16:S$25)*('Failure rates'!$C$3:$C$12=$C19))*VLOOKUP($C19,'Risk parameters'!$A$7:$D$11,3,FALSE) -> 8377.054614 | S19: =SUMPRODUCT(('Failure rates'!T$16:T$25)*('Failure rates'!$C$3:$C$12=$C19))*VLOOKUP($C19,'Risk parameters'!$A$7:$D$11,3,FALSE) -> 9162.634194 | T19: =SUMPRODUCT(('Failure rates'!U$16:U$25)*('Failure rates'!$C$3:$C$12=$C19))*VLOOKUP($C19,'Risk parameters'!$A$7:$D$11,3,FALSE) -> 10003.60857 | U19: =SUMPRODUCT(('Failure rates'!V$16:V$25)*('Failure rates'!$C$3:$C$12=$C19))*VLOOKUP($C19,'Risk parameters'!$A$7:$D$11,3,FALSE) -> 10905.14572 | V19: =SUMPRODUCT(('Failure rates'!W$16:W$25)*('Failure rates'!$C$3:$C$12=$C19))*VLOOKUP($C19,'Risk parameters'!$A$7:$D$11,3,FALSE) -> 11870.45207 | W19: =SUMPRODUCT(('Failure rates'!X$16:X$25)*('Failure rates'!$C$3:$C$12=$C19))*VLOOKUP($C19,'Risk parameters'!$A$7:$D$11,3,FALSE) -> 12905.7685 | X19: =SUMPRODUCT(('Failure rates'!Y$16:Y$25)*('Failure rates'!$C$3:$C$12=$C19))*VLOOKUP($C19,'Risk parameters'!$A$7:$D$11,3,FALSE) -> 14008.87529
C20: Gas Pressure Cable | D20: =SUMPRODUCT(('Failure rates'!E$16:E$25)*('Failure rates'!$C$3:$C$12=$C20))*VLOOKUP($C20,'Risk parameters'!$A$7:$D$11,3,FALSE) -> 0 | E20: =SUMPRODUCT(('Failure rates'!F$16:F$25)*('Failure rates'!$C$3:$C$12=$C20))*VLOOKUP($C20,'Risk parameters'!$A$7:$D$11,3,FALSE) -> 0 | F20: =SUMPRODUCT(('Failure rates'!G$16:G$25)*('Failure rates'!$C$3:$C$12=$C20))*VLOOKUP($C20,'Risk parameters'!$A$7:$D$11,3,FALSE) -> 0 | G20: =SUMPRODUCT(('Failure rates'!H$16:H$25)*('Failure rates'!$C$3:$C$12=$C20))*VLOOKUP($C20,'Risk parameters'!$A$7:$D$11,3,FALSE) -> 0 | H20: =SUMPRODUCT(('Failure rates'!I$16:I$25)*('Failure rates'!$C$3:$C$12=$C20))*VLOOKUP($C20,'Risk parameters'!$A$7:$D$11,3,FALSE) -> 0 | I20: =SUMPRODUCT(('Failure rates'!J$16:J$25)*('Failure rates'!$C$3:$C$12=$C20))*VLOOKUP($C20,'Risk parameters'!$A$7:$D$11,3,FALSE) -> 0 | J20: =SUMPRODUCT(('Failure rates'!K$16:K$25)*('Failure rates'!$C$3:$C$12=$C20))*VLOOKUP($C20,'Risk parameters'!$A$7:$D$11,3,FALSE) -> 0 | K20: =SUMPRODUCT(('Failure rates'!L$16:L$25)*('Failure rates'!$C$3:$C$12=$C20))*VLOOKUP($C20,'Risk parameters'!$A$7:$D$11,3,FALSE) -> 0 | L20: =SUMPRODUCT(('Failure rates'!M$16:M$25)*('Failure rates'!$C$3:$C$12=$C20))*VLOOKUP($C20,'Risk parameters'!$A$7:$D$11,3,FALSE) -> 0 | M20: =SUMPRODUCT(('Failure rates'!N$16:N$25)*('Failure rates'!$C$3:$C$12=$C20))*VLOOKUP($C20,'Risk parameters'!$A$7:$D$11,3,FALSE) -> 0 | N20: =SUMPRODUCT(('Failure rates'!O$16:O$25)*('Failure rates'!$C$3:$C$12=$C20))*VLOOKUP($C20,'Risk parameters'!$A$7:$D$11,3,FALSE) -> 0 | O20: =SUMPRODUCT(('Failure rates'!P$16:P$25)*('Failure rates'!$C$3:$C$12=$C20))*VLOOKUP($C20,'Risk parameters'!$A$7:$D$11,3,FALSE) -> 0 | P20: =SUMPRODUCT(('Failure rates'!Q$16:Q$25)*('Failure rates'!$C$3:$C$12=$C20))*VLOOKUP($C20,'Risk parameters'!$A$7:$D$11,3,FALSE) -> 0 | Q20: =SUMPRODUCT(('Failure rates'!R$16:R$25)*('Failure rates'!$C$3:$C$12=$C20))*VLOOKUP($C20,'Risk parameters'!$A$7:$D$11,3,FALSE) -> 0 | R20: =SUMPRODUCT(('Failure rates'!S$16:S$25)*('Failure rates'!$C$3:$C$12=$C20))*VLOOKUP($C20,'Risk parameters'!$A$7:$D$11,3,FALSE) -> 0 | S20: =SUMPRODUCT(('Failure rates'!T$16:T$25)*('Failure rates'!$C$3:$C$12=$C20))*VLOOKUP($C20,'Risk parameters'!$A$7:$D$11,3,FALSE) -> 0 | T20: =SUMPRODUCT(('Failure rates'!U$16:U$25)*('Failure rates'!$C$3:$C$12=$C20))*VLOOKUP($C20,'Risk parameters'!$A$7:$D$11,3,FALSE) -> 0 | U20: =SUMPRODUCT(('Failure rates'!V$16:V$25)*('Failure rates'!$C$3:$C$12=$C20))*VLOOKUP($C20,'Risk parameters'!$A$7:$D$11,3,FALSE) -> 0 | V20: =SUMPRODUCT(('Failure rates'!W$16:W$25)*('Failure rates'!$C$3:$C$12=$C20))*VLOOKUP($C20,'Risk parameters'!$A$7:$D$11,3,FALSE) -> 0 | W20: =SUMPRODUCT(('Failure rates'!X$16:X$25)*('Failure rates'!$C$3:$C$12=$C20))*VLOOKUP($C20,'Risk parameters'!$A$7:$D$11,3,FALSE) -> 0 | X20: =SUMPRODUCT(('Failure rates'!Y$16:Y$25)*('Failure rates'!$C$3:$C$12=$C20))*VLOOKUP($C20,'Risk parameters'!$A$7:$D$11,3,FALSE) -> 0
C21: Solid/HSL Cable | D21: =SUMPRODUCT(('Failure rates'!E$16:E$25)*('Failure rates'!$C$3:$C$12=$C21))*VLOOKUP($C21,'Risk parameters'!$A$7:$D$11,3,FALSE) -> 0 | E21: =SUMPRODUCT(('Failure rates'!F$16:F$25)*('Failure rates'!$C$3:$C$12=$C21))*VLOOKUP($C21,'Risk parameters'!$A$7:$D$11,3,FALSE) -> 0 | F21: =SUMPRODUCT(('Failure rates'!G$16:G$25)*('Failure rates'!$C$3:$C$12=$C21))*VLOOKUP($C21,'Risk parameters'!$A$7:$D$11,3,FALSE) -> 0 | G21: =SUMPRODUCT(('Failure rates'!H$16:H$25)*('Failure rates'!$C$3:$C$12=$C21))*VLOOKUP($C21,'Risk parameters'!$A$7:$D$11,3,FALSE) -> 0 | H21: =SUMPRODUCT(('Failure rates'!I$16:I$25)*('Failure rates'!$C$3:$C$12=$C21))*VLOOKUP($C21,'Risk parameters'!$A$7:$D$11,3,FALSE) -> 0 | I21: =SUMPRODUCT(('Failure rates'!J$16:J$25)*('Failure rates'!$C$3:$C$12=$C21))*VLOOKUP($C21,'Risk parameters'!$A$7:$D$11,3,FALSE) -> 0 | J21: =SUMPRODUCT(('Failure rates'!K$16:K$25)*('Failure rates'!$C$3:$C$12=$C21))*VLOOKUP($C21,'Risk parameters'!$A$7:$D$11,3,FALSE) -> 0 | K21: =SUMPRODUCT(('Failure rates'!L$16:L$25)*('Failure rates'!$C$3:$C$12=$C21))*VLOOKUP($C21,'Risk parameters'!$A$7:$D$11,3,FALSE) -> 0 | L21: =SUMPRODUCT(('Failure rates'!M$16:M$25)*('Failure rates'!$C$3:$C$12=$C21))*VLOOKUP($C21,'Risk parameters'!$A$7:$D$11,3,FALSE) -> 0 | M21: =SUMPRODUCT(('Failure rates'!N$16:N$25)*('Failure rates'!$C$3:$C$12=$C21))*VLOOKUP($C21,'Risk parameters'!$A$7:$D$11,3,FALSE) -> 0 | N21: =SUMPRODUCT(('Failure rates'!O$16:O$25)*('Failure rates'!$C$3:$C$12=$C21))*VLOOKUP($C21,'Risk parameters'!$A$7:$D$11,3,FALSE) -> 0 | O21: =SUMPRODUCT(('Failure rates'!P$16:P$25)*('Failure rates'!$C$3:$C$12=$C21))*VLOOKUP($C21,'Risk parameters'!$A$7:$D$11,3,FALSE) -> 0 | P21: =SUMPRODUCT(('Failure rates'!Q$16:Q$25)*('Failure rates'!$C$3:$C$12=$C21))*VLOOKUP($C21,'Risk parameters'!$A$7:$D$11,3,FALSE) -> 0 | Q21: =SUMPRODUCT(('Failure rates'!R$16:R$25)*('Failure rates'!$C$3:$C$12=$C21))*VLOOKUP($C21,'Risk parameters'!$A$7:$D$11,3,FALSE) -> 0 | R21: =SUMPRODUCT(('Failure rates'!S$16:S$25)*('Failure rates'!$C$3:$C$12=$C21))*VLOOKUP($C21,'Risk parameters'!$A$7:$D$11,3,FALSE) -> 0 | S21: =SUMPRODUCT(('Failure rates'!T$16:T$25)*('Failure rates'!$C$3:$C$12=$C21))*VLOOKUP($C21,'Risk parameters'!$A$7:$D$11,3,FALSE) -> 0 | T21: =SUMPRODUCT(('Failure rates'!U$16:U$25)*('Failure rates'!$C$3:$C$12=$C21))*VLOOKUP($C21,'Risk parameters'!$A$7:$D$11,3,FALSE) -> 0 | U21: =SUMPRODUCT(('Failure rates'!V$16:V$25)*('Failure rates'!$C$3:$C$12=$C21))*VLOOKUP($C21,'Risk parameters'!$A$7:$D$11,3,FALSE) -> 0 | V21: =SUMPRODUCT(('Failure rates'!W$16:W$25)*('Failure rates'!$C$3:$C$12=$C21))*VLOOKUP($C21,'Risk parameters'!$A$7:$D$11,3,FALSE) -> 0 | W21: =SUMPRODUCT(('Failure rates'!X$16:X$25)*('Failure rates'!$C$3:$C$12=$C21))*VLOOKUP($C21,'Risk parameters'!$A$7:$D$11,3,FALSE) -> 0 | X21: =SUMPRODUCT(('Failure rates'!Y$16:Y$25)*('Failure rates'!$C$3:$C$12=$C21))*VLOOKUP($C21,'Risk parameters'!$A$7:$D$11,3,FALSE) -> 0
C22: XLPE Cable | D22: =SUMPRODUCT(('Failure rates'!E$16:E$25)*('Failure rates'!$C$3:$C$12=$C22))*VLOOKUP($C22,'Risk parameters'!$A$7:$D$11,3,FALSE) -> 0 | E22: =SUMPRODUCT(('Failure rates'!F$16:F$25)*('Failure rates'!$C$3:$C$12=$C22))*VLOOKUP($C22,'Risk parameters'!$A$7:$D$11,3,FALSE) -> 0 | F22: =SUMPRODUCT(('Failure rates'!G$16:G$25)*('Failure rates'!$C$3:$C$12=$C22))*VLOOKUP($C22,'Risk parameters'!$A$7:$D$11,3,FALSE) -> 0 | G22: =SUMPRODUCT(('Failure rates'!H$16:H$25)*('Failure rates'!$C$3:$C$12=$C22))*VLOOKUP($C22,'Risk parameters'!$A$7:$D$11,3,FALSE) -> 0 | H22: =SUMPRODUCT(('Failure rates'!I$16:I$25)*('Failure rates'!$C$3:$C$12=$C22))*VLOOKUP($C22,'Risk parameters'!$A$7:$D$11,3,FALSE) -> 0 | I22: =SUMPRODUCT(('Failure rates'!J$16:J$25)*('Failure rates'!$C$3:$C$12=$C22))*VLOOKUP($C22,'Risk parameters'!$A$7:$D$11,3,FALSE) -> 0 | J22: =SUMPRODUCT(('Failure rates'!K$16:K$25)*('Failure rates'!$C$3:$C$12=$C22))*VLOOKUP($C22,'Risk parameters'!$A$7:$D$11,3,FALSE) -> 0 | K22: =SUMPRODUCT(('Failure rates'!L$16:L$25)*('Failure rates'!$C$3:$C$12=$C22))*VLOOKUP($C22,'Risk parameters'!$A$7:$D$11,3,FALSE) -> 0 | L22: =SUMPRODUCT(('Failure rates'!M$16:M$25)*('Failure rates'!$C$3:$C$12=$C22))*VLOOKUP($C22,'Risk parameters'!$A$7:$D$11,3,FALSE) -> 0 | M22: =SUMPRODUCT(('Failure rates'!N$16:N$25)*('Failure rates'!$C$3:$C$12=$C22))*VLOOKUP($C22,'Risk parameters'!$A$7:$D$11,3,FALSE) -> 0 | N22: =SUMPRODUCT(('Failure rates'!O$16:O$25)*('Failure rates'!$C$3:$C$12=$C22))*VLOOKUP($C22,'Risk parameters'!$A$7:$D$11,3,FALSE) -> 0 | O22: =SUMPRODUCT(('Failure rates'!P$16:P$25)*('Failure rates'!$C$3:$C$12=$C22))*VLOOKUP($C22,'Risk parameters'!$A$7:$D$11,3,FALSE) -> 0 | P22: =SUMPRODUCT(('Failure rates'!Q$16:Q$25)*('Failure rates'!$C$3:$C$12=$C22))*VLOOKUP($C22,'Risk parameters'!$A$7:$D$11,3,FALSE) -> 0 | Q22: =SUMPRODUCT(('Failure rates'!R$16:R$25)*('Failure rates'!$C$3:$C$12=$C22))*VLOOKUP($C22,'Risk parameters'!$A$7:$D$11,3,FALSE) -> 0 | R22: =SUMPRODUCT(('Failure rates'!S$16:S$25)*('Failure rates'!$C$3:$C$12=$C22))*VLOOKUP($C22,'Risk parameters'!$A$7:$D$11,3,FALSE) -> 0 | S22: =SUMPRODUCT(('Failure rates'!T$16:T$25)*('Failure rates'!$C$3:$C$12=$C22))*VLOOKUP($C22,'Risk parameters'!$A$7:$D$11,3,FALSE) -> 0 | T22: =SUMPRODUCT(('Failure rates'!U$16:U$25)*('Failure rates'!$C$3:$C$12=$C22))*VLOOKUP($C22,'Risk parameters'!$A$7:$D$11,3,FALSE) -> 0 | U22: =SUMPRODUCT(('Failure rates'!V$16:V$25)*('Failure rates'!$C$3:$C$12=$C22))*VLOOKUP($C22,'Risk parameters'!$A$7:$D$11,3,FALSE) -> 0 | V22: =SUMPRODUCT(('Failure rates'!W$16:W$25)*('Failure rates'!$C$3:$C$12=$C22))*VLOOKUP($C22,'Risk parameters'!$A$7:$D$11,3,FALSE) -> 0 | W22: =SUMPRODUCT(('Failure rates'!X$16:X$25)*('Failure rates'!$C$3:$C$12=$C22))*VLOOKUP($C22,'Risk parameters'!$A$7:$D$11,3,FALSE) -> 0 | X22: =SUMPRODUCT(('Failure rates'!Y$16:Y$25)*('Failure rates'!$C$3:$C$12=$C22))*VLOOKUP($C22,'Risk parameters'!$A$7:$D$11,3,FALSE) -> 0
C23: 132 kV XLPE Cable | D23: =SUMPRODUCT(('Failure rates'!E$16:E$25)*('Failure rates'!$C$3:$C$12=$C23))*VLOOKUP($C23,'Risk parameters'!$A$7:$D$11,3,FALSE) -> 0 | E23: =SUMPRODUCT(('Failure rates'!F$16:F$25)*('Failure rates'!$C$3:$C$12=$C23))*VLOOKUP($C23,'Risk parameters'!$A$7:$D$11,3,FALSE) -> 0 | F23: =SUMPRODUCT(('Failure rates'!G$16:G$25)*('Failure rates'!$C$3:$C$12=$C23))*VLOOKUP($C23,'Risk parameters'!$A$7:$D$11,3,FALSE) -> 0 | G23: =SUMPRODUCT(('Failure rates'!H$16:H$25)*('Failure rates'!$C$3:$C$12=$C23))*VLOOKUP($C23,'Risk parameters'!$A$7:$D$11,3,FALSE) -> 0 | H23: =SUMPRODUCT(('Failure rates'!I$16:I$25)*('Failure rates'!$C$3:$C$12=$C23))*VLOOKUP($C23,'Risk parameters'!$A$7:$D$11,3,FALSE) -> 0 | I23: =SUMPRODUCT(('Failure rates'!J$16:J$25)*('Failure rates'!$C$3:$C$12=$C23))*VLOOKUP($C23,'Risk parameters'!$A$7:$D$11,3,FALSE) -> 0 | J23: =SUMPRODUCT(('Failure rates'!K$16:K$25)*('Failure rates'!$C$3:$C$12=$C23))*VLOOKUP($C23,'Risk parameters'!$A$7:$D$11,3,FALSE) -> 0 | K23: =SUMPRODUCT(('Failure rates'!L$16:L$25)*('Failure rates'!$C$3:$C$12=$C23))*VLOOKUP($C23,'Risk parameters'!$A$7:$D$11,3,FALSE) -> 0 | L23: =SUMPRODUCT(('Failure rates'!M$16:M$25)*('Failure rates'!$C$3:$C$12=$C23))*VLOOKUP($C23,'Risk parameters'!$A$7:$D$11,3,FALSE) -> 0 | M23: =SUMPRODUCT(('Failure rates'!N$16:N$25)*('Failure rates'!$C$3:$C$12=$C23))*VLOOKUP($C23,'Risk parameters'!$A$7:$D$11,3,FALSE) -> 0 | N23: =SUMPRODUCT(('Failure rates'!O$16:O$25)*('Failure rates'!$C$3:$C$12=$C23))*VLOOKUP($C23,'Risk parameters'!$A$7:$D$11,3,FALSE) -> 0 | O23: =SUMPRODUCT(('Failure rates'!P$16:P$25)*('Failure rates'!$C$3:$C$12=$C23))*VLOOKUP($C23,'Risk parameters'!$A$7:$D$11,3,FALSE) -> 0 | P23: =SUMPRODUCT(('Failure rates'!Q$16:Q$25)*('Failure rates'!$C$3:$C$12=$C23))*VLOOKUP($C23,'Risk parameters'!$A$7:$D$11,3,FALSE) -> 0 | Q23: =SUMPRODUCT(('Failure rates'!R$16:R$25)*('Failure rates'!$C$3:$C$12=$C23))*VLOOKUP($C23,'Risk parameters'!$A$7:$D$11,3,FALSE) -> 0 | R23: =SUMPRODUCT(('Failure rates'!S$16:S$25)*('Failure rates'!$C$3:$C$12=$C23))*VLOOKUP($C23,'Risk parameters'!$A$7:$D$11,3,FALSE) -> 0 | S23: =SUMPRODUCT(('Failure rates'!T$16:T$25)*('Failure rates'!$C$3:$C$12=$C23))*VLOOKUP($C23,'Risk parameters'!$A$7:$D$11,3,FALSE) -> 0 | T23: =SUMPRODUCT(('Failure rates'!U$16:U$25)*('Failure rates'!$C$3:$C$12=$C23))*VLOOKUP($C23,'Risk parameters'!$A$7:$D$11,3,FALSE) -> 0 | U23: =SUMPRODUCT(('Failure rates'!V$16:V$25)*('Failure rates'!$C$3:$C$12=$C23))*VLOOKUP($C23,'Risk parameters'!$A$7:$D$11,3,FALSE) -> 0 | V23: =SUMPRODUCT(('Failure rates'!W$16:W$25)*('Failure rates'!$C$3:$C$12=$C23))*VLOOKUP($C23,'Risk parameters'!$A$7:$D$11,3,FALSE) -> 0 | W23: =SUMPRODUCT(('Failure rates'!X$16:X$25)*('Failure rates'!$C$3:$C$12=$C23))*VLOOKUP($C23,'Risk parameters'!$A$7:$D$11,3,FALSE) -> 0 | X23: =SUMPRODUCT(('Failure rates'!Y$16:Y$25)*('Failure rates'!$C$3:$C$12=$C23))*VLOOKUP($C23,'Risk parameters'!$A$7:$D$11,3,FALSE) -> 0
A26: Feeder - Repair Cost (M5-Third Party) | C26: Oil-filled Cable | D26: =SUMPRODUCT(('Failure rates'!E$29:E$38)*('Failure rates'!$C$3:$C$12=$C26))*VLOOKUP($C26,'Risk parameters'!$A$7:$D$11,4,FALSE) -> 31097.14994 | E26: =SUMPRODUCT(('Failure rates'!F$29:F$38)*('Failure rates'!$C$3:$C$12=$C26))*VLOOKUP($C26,'Risk parameters'!$A$7:$D$11,4,FALSE) -> 31097.14994 | F26: =SUMPRODUCT(('Failure rates'!G$29:G$38)*('Failure rates'!$C$3:$C$12=$C26))*VLOOKUP($C26,'Risk parameters'!$A$7:$D$11,4,FALSE) -> 31097.14994 | G26: =SUMPRODUCT(('Failure rates'!H$29:H$38)*('Failure rates'!$C$3:$C$12=$C26))*VLOOKUP($C26,'Risk parameters'!$A$7:$D$11,4,FALSE) -> 31097.14994 | H26: =SUMPRODUCT(('Failure rates'!I$29:I$38)*('Failure rates'!$C$3:$C$12=$C26))*VLOOKUP($C26,'Risk parameters'!$A$7:$D$11,4,FALSE) -> 31097.14994 | I26: =SUMPRODUCT(('Failure rates'!J$29:J$38)*('Failure rates'!$C$3:$C$12=$C26))*VLOOKUP($C26,'Risk parameters'!$A$7:$D$11,4,FALSE) -> 31097.14994 | J26: =SUMPRODUCT(('Failure rates'!K$29:K$38)*('Failure rates'!$C$3:$C$12=$C26))*VLOOKUP($C26,'Risk parameters'!$A$7:$D$11,4,FALSE) -> 31097.14994 | K26: =SUMPRODUCT(('Failure rates'!L$29:L$38)*('Failure rates'!$C$3:$C$12=$C26))*VLOOKUP($C26,'Risk parameters'!$A$7:$D$11,4,FALSE) -> 31097.14994 | L26: =SUMPRODUCT(('Failure rates'!M$29:M$38)*('Failure rates'!$C$3:$C$12=$C26))*VLOOKUP($C26,'Risk parameters'!$A$7:$D$11,4,FALSE) -> 31097.14994 | M26: =SUMPRODUCT(('Failure rates'!N$29:N$38)*('Failure rates'!$C$3:$C$12=$C26))*VLOOKUP($C26,'Risk parameters'!$A$7:$D$11,4,FALSE) -> 31097.14994 | N26: =SUMPRODUCT(('Failure rates'!O$29:O$38)*('Failure rates'!$C$3:$C$12=$C26))*VLOOKUP($C26,'Risk parameters'!$A$7:$D$11,4,FALSE) -> 31097.14994 | O26: =SUMPRODUCT(('Failure rates'!P$29:P$38)*('Failure rates'!$C$3:$C$12=$C26))*VLOOKUP($C26,'Risk parameters'!$A$7:$D$11,4,FALSE) -> 31097.14994 | P26: =SUMPRODUCT(('Failure rates'!Q$29:Q$38)*('Failure rates'!$C$3:$C$12=$C26))*VLOOKUP($C26,'Risk parameters'!$A$7:$D$11,4,FALSE) -> 31097.14994 | Q26: =SUMPRODUCT(('Failure rates'!R$29:R$38)*('Failure rates'!$C$3:$C$12=$C26))*VLOOKUP($C26,'Risk parameters'!$A$7:$D$11,4,FALSE) -> 31097.14994 | R26: =SUMPRODUCT(('Failure rates'!S$29:S$38)*('Failure rates'!$C$3:$C$12=$C26))*VLOOKUP($C26,'Risk parameters'!$A$7:$D$11,4,FALSE) -> 31097.14994 | S26: =SUMPRODUCT(('Failure rates'!T$29:T$38)*('Failure rates'!$C$3:$C$12=$C26))*VLOOKUP($C26,'Risk parameters'!$A$7:$D$11,4,FALSE) -> 31097.14994 | T26: =SUMPRODUCT(('Failure rates'!U$29:U$38)*('Failure rates'!$C$3:$C$12=$C26))*VLOOKUP($C26,'Risk parameters'!$A$7:$D$11,4,FALSE) -> 31097.14994 | U26: =SUMPRODUCT(('Failure rates'!V$29:V$38)*('Failure rates'!$C$3:$C$12=$C26))*VLOOKUP($C26,'Risk parameters'!$A$7:$D$11,4,FALSE) -> 31097.14994 | V26: =SUMPRODUCT(('Failure rates'!W$29:W$38)*('Failure rates'!$C$3:$C$12=$C26))*VLOOKUP($C26,'Risk parameters'!$A$7:$D$11,4,FALSE) -> 31097.14994 | W26: =SUMPRODUCT(('Failure rates'!X$29:X$38)*('Failure rates'!$C$3:$C$12=$C26))*VLOOKUP($C26,'Risk parameters'!$A$7:$D$11,4,FALSE) -> 31097.14994 | X26: =SUMPRODUCT(('Failure rates'!Y$29:Y$38)*('Failure rates'!$C$3:$C$12=$C26))*VLOOKUP($C26,'Risk parameters'!$A$7:$D$11,4,FALSE) -> 31097.14994
C27: Gas Pressure Cable | D27: =SUMPRODUCT(('Failure rates'!E$29:E$38)*('Failure rates'!$C$3:$C$12=$C27))*VLOOKUP($C27,'Risk parameters'!$A$7:$D$11,4,FALSE) -> 0 | E27: =SUMPRODUCT(('Failure rates'!F$29:F$38)*('Failure rates'!$C$3:$C$12=$C27))*VLOOKUP($C27,'Risk parameters'!$A$7:$D$11,4,FALSE) -> 0 | F27: =SUMPRODUCT(('Failure rates'!G$29:G$38)*('Failure rates'!$C$3:$C$12=$C27))*VLOOKUP($C27,'Risk parameters'!$A$7:$D$11,4,FALSE) -> 0 | G27: =SUMPRODUCT(('Failure rates'!H$29:H$38)*('Failure rates'!$C$3:$C$12=$C27))*VLOOKUP($C27,'Risk parameters'!$A$7:$D$11,4,FALSE) -> 0 | H27: =SUMPRODUCT(('Failure rates'!I$29:I$38)*('Failure rates'!$C$3:$C$12=$C27))*VLOOKUP($C27,'Risk parameters'!$A$7:$D$11,4,FALSE) -> 0 | I27: =SUMPRODUCT(('Failure rates'!J$29:J$38)*('Failure rates'!$C$3:$C$12=$C27))*VLOOKUP($C27,'Risk parameters'!$A$7:$D$11,4,FALSE) -> 0 | J27: =SUMPRODUCT(('Failure rates'!K$29:K$38)*('Failure rates'!$C$3:$C$12=$C27))*VLOOKUP($C27,'Risk parameters'!$A$7:$D$11,4,FALSE) -> 0 | K27: =SUMPRODUCT(('Failure rates'!L$29:L$38)*('Failure rates'!$C$3:$C$12=$C27))*VLOOKUP($C27,'Risk parameters'!$A$7:$D$11,4,FALSE) -> 0 | L27: =SUMPRODUCT(('Failure rates'!M$29:M$38)*('Failure rates'!$C$3:$C$12=$C27))*VLOOKUP($C27,'Risk parameters'!$A$7:$D$11,4,FALSE) -> 0 | M27: =SUMPRODUCT(('Failure rates'!N$29:N$38)*('Failure rates'!$C$3:$C$12=$C27))*VLOOKUP($C27,'Risk parameters'!$A$7:$D$11,4,FALSE) -> 0 | N27: =SUMPRODUCT(('Failure rates'!O$29:O$38)*('Failure rates'!$C$3:$C$12=$C27))*VLOOKUP($C27,'Risk parameters'!$A$7:$D$11,4,FALSE) -> 0 | O27: =SUMPRODUCT(('Failure rates'!P$29:P$38)*('Failure rates'!$C$3:$C$12=$C27))*VLOOKUP($C27,'Risk parameters'!$A$7:$D$11,4,FALSE) -> 0 | P27: =SUMPRODUCT(('Failure rates'!Q$29:Q$38)*('Failure rates'!$C$3:$C$12=$C27))*VLOOKUP($C27,'Risk parameters'!$A$7:$D$11,4,FALSE) -> 0 | Q27: =SUMPRODUCT(('Failure rates'!R$29:R$38)*('Failure rates'!$C$3:$C$12=$C27))*VLOOKUP($C27,'Risk parameters'!$A$7:$D$11,4,FALSE) -> 0 | R27: =SUMPRODUCT(('Failure rates'!S$29:S$38)*('Failure rates'!$C$3:$C$12=$C27))*VLOOKUP($C27,'Risk parameters'!$A$7:$D$11,4,FALSE) -> 0 | S27: =SUMPRODUCT(('Failure rates'!T$29:T$38)*('Failure rates'!$C$3:$C$12=$C27))*VLOOKUP($C27,'Risk parameters'!$A$7:$D$11,4,FALSE) -> 0 | T27: =SUMPRODUCT(('Failure rates'!U$29:U$38)*('Failure rates'!$C$3:$C$12=$C27))*VLOOKUP($C27,'Risk parameters'!$A$7:$D$11,4,FALSE) -> 0 | U27: =SUMPRODUCT(('Failure rates'!V$29:V$38)*('Failure rates'!$C$3:$C$12=$C27))*VLOOKUP($C27,'Risk parameters'!$A$7:$D$11,4,FALSE) -> 0 | V27: =SUMPRODUCT(('Failure rates'!W$29:W$38)*('Failure rates'!$C$3:$C$12=$C27))*VLOOKUP($C27,'Risk parameters'!$A$7:$D$11,4,FALSE) -> 0 | W27: =SUMPRODUCT(('Failure rates'!X$29:X$38)*('Failure rates'!$C$3:$C$12=$C27))*VLOOKUP($C27,'Risk parameters'!$A$7:$D$11,4,FALSE) -> 0 | X27: =SUMPRODUCT(('Failure rates'!Y$29:Y$38)*('Failure rates'!$C$3:$C$12=$C27))*VLOOKUP($C27,'Risk parameters'!$A$7:$D$11,4,FALSE) -> 0
C28: Solid/HSL Cable | D28: =SUMPRODUCT(('Failure rates'!E$29:E$38)*('Failure rates'!$C$3:$C$12=$C28))*VLOOKUP($C28,'Risk parameters'!$A$7:$D$11,4,FALSE) -> 0 | E28: =SUMPRODUCT(('Failure rates'!F$29:F$38)*('Failure rates'!$C$3:$C$12=$C28))*VLOOKUP($C28,'Risk parameters'!$A$7:$D$11,4,FALSE) -> 0 | F28: =SUMPRODUCT(('Failure rates'!G$29:G$38)*('Failure rates'!$C$3:$C$12=$C28))*VLOOKUP($C28,'Risk parameters'!$A$7:$D$11,4,FALSE) -> 0 | G28: =SUMPRODUCT(('Failure rates'!H$29:H$38)*('Failure rates'!$C$3:$C$12=$C28))*VLOOKUP($C28,'Risk parameters'!$A$7:$D$11,4,FALSE) -> 0 | H28: =SUMPRODUCT(('Failure rates'!I$29:I$38)*('Failure rates'!$C$3:$C$12=$C28))*VLOOKUP($C28,'Risk parameters'!$A$7:$D$11,4,FALSE) -> 0 | I28: =SUMPRODUCT(('Failure rates'!J$29:J$38)*('Failure rates'!$C$3:$C$12=$C28))*VLOOKUP($C28,'Risk parameters'!$A$7:$D$11,4,FALSE) -> 0 | J28: =SUMPRODUCT(('Failure rates'!K$29:K$38)*('Failure rates'!$C$3:$C$12=$C28))*VLOOKUP($C28,'Risk parameters'!$A$7:$D$11,4,FALSE) -> 0 | K28: =SUMPRODUCT(('Failure rates'!L$29:L$38)*('Failure rates'!$C$3:$C$12=$C28))*VLOOKUP($C28,'Risk parameters'!$A$7:$D$11,4,FALSE) -> 0 | L28: =SUMPRODUCT(('Failure rates'!M$29:M$38)*('Failure rates'!$C$3:$C$12=$C28))*VLOOKUP($C28,'Risk parameters'!$A$7:$D$11,4,FALSE) -> 0 | M28: =SUMPRODUCT(('Failure rates'!N$29:N$38)*('Failure rates'!$C$3:$C$12=$C28))*VLOOKUP($C28,'Risk parameters'!$A$7:$D$11,4,FALSE) -> 0 | N28: =SUMPRODUCT(('Failure rates'!O$29:O$38)*('Failure rates'!$C$3:$C$12=$C28))*VLOOKUP($C28,'Risk parameters'!$A$7:$D$11,4,FALSE) -> 0 | O28: =SUMPRODUCT(('Failure rates'!P$29:P$38)*('Failure rates'!$C$3:$C$12=$C28))*VLOOKUP($C28,'Risk parameters'!$A$7:$D$11,4,FALSE) -> 0 | P28: =SUMPRODUCT(('Failure rates'!Q$29:Q$38)*('Failure rates'!$C$3:$C$12=$C28))*VLOOKUP($C28,'Risk parameters'!$A$7:$D$11,4,FALSE) -> 0 | Q28: =SUMPRODUCT(('Failure rates'!R$29:R$38)*('Failure rates'!$C$3:$C$12=$C28))*VLOOKUP($C28,'Risk parameters'!$A$7:$D$11,4,FALSE) -> 0 | R28: =SUMPRODUCT(('Failure rates'!S$29:S$38)*('Failure rates'!$C$3:$C$12=$C28))*VLOOKUP($C28,'Risk parameters'!$A$7:$D$11,4,FALSE) -> 0 | S28: =SUMPRODUCT(('Failure rates'!T$29:T$38)*('Failure rates'!$C$3:$C$12=$C28))*VLOOKUP($C28,'Risk parameters'!$A$7:$D$11,4,FALSE) -> 0 | T28: =SUMPRODUCT(('Failure rates'!U$29:U$38)*('Failure rates'!$C$3:$C$12=$C28))*VLOOKUP($C28,'Risk parameters'!$A$7:$D$11,4,FALSE) -> 0 | U28: =SUMPRODUCT(('Failure rates'!V$29:V$38)*('Failure rates'!$C$3:$C$12=$C28))*VLOOKUP($C28,'Risk parameters'!$A$7:$D$11,4,FALSE) -> 0 | V28: =SUMPRODUCT(('Failure rates'!W$29:W$38)*('Failure rates'!$C$3:$C$12=$C28))*VLOOKUP($C28,'Risk parameters'!$A$7:$D$11,4,FALSE) -> 0 | W28: =SUMPRODUCT(('Failure rates'!X$29:X$38)*('Failure rates'!$C$3:$C$12=$C28))*VLOOKUP($C28,'Risk parameters'!$A$7:$D$11,4,FALSE) -> 0 | X28: =SUMPRODUCT(('Failure rates'!Y$29:Y$38)*('Failure rates'!$C$3:$C$12=$C28))*VLOOKUP($C28,'Risk parameters'!$A$7:$D$11,4,FALSE) -> 0
C29: XLPE Cable | D29: =SUMPRODUCT(('Failure rates'!E$29:E$38)*('Failure rates'!$C$3:$C$12=$C29))*VLOOKUP($C29,'Risk parameters'!$A$7:$D$11,4,FALSE) -> 0 | E29: =SUMPRODUCT(('Failure rates'!F$29:F$38)*('Failure rates'!$C$3:$C$12=$C29))*VLOOKUP($C29,'Risk parameters'!$A$7:$D$11,4,FALSE) -> 0 | F29: =SUMPRODUCT(('Failure rates'!G$29:G$38)*('Failure rates'!$C$3:$C$12=$C29))*VLOOKUP($C29,'Risk parameters'!$A$7:$D$11,4,FALSE) -> 0 | G29: =SUMPRODUCT(('Failure rates'!H$29:H$38)*('Failure rates'!$C$3:$C$12=$C29))*VLOOKUP($C29,'Risk parameters'!$A$7:$D$11,4,FALSE) -> 0 | H29: =SUMPRODUCT(('Failure rates'!I$29:I$38)*('Failure rates'!$C$3:$C$12=$C29))*VLOOKUP($C29,'Risk parameters'!$A$7:$D$11,4,FALSE) -> 0 | I29: =SUMPRODUCT(('Failure rates'!J$29:J$38)*('Failure rates'!$C$3:$C$12=$C29))*VLOOKUP($C29,'Risk parameters'!$A$7:$D$11,4,FALSE) -> 0 | J29: =SUMPRODUCT(('Failure rates'!K$29:K$38)*('Failure rates'!$C$3:$C$12=$C29))*VLOOKUP($C29,'Risk parameters'!$A$7:$D$11,4,FALSE) -> 0 | K29: =SUMPRODUCT(('Failure rates'!L$29:L$38)*('Failure rates'!$C$3:$C$12=$C29))*VLOOKUP($C29,'Risk parameters'!$A$7:$D$11,4,FALSE) -> 0 | L29: =SUMPRODUCT(('Failure rates'!M$29:M$38)*('Failure rates'!$C$3:$C$12=$C29))*VLOOKUP($C29,'Risk parameters'!$A$7:$D$11,4,FALSE) -> 0 | M29: =SUMPRODUCT(('Failure rates'!N$29:N$38)*('Failure rates'!$C$3:$C$12=$C29))*VLOOKUP($C29,'Risk parameters'!$A$7:$D$11,4,FALSE) -> 0 | N29: =SUMPRODUCT(('Failure rates'!O$29:O$38)*('Failure rates'!$C$3:$C$12=$C29))*VLOOKUP($C29,'Risk parameters'!$A$7:$D$11,4,FALSE) -> 0 | O29: =SUMPRODUCT(('Failure rates'!P$29:P$38)*('Failure rates'!$C$3:$C$12=$C29))*VLOOKUP($C29,'Risk parameters'!$A$7:$D$11,4,FALSE) -> 0 | P29: =SUMPRODUCT(('Failure rates'!Q$29:Q$38)*('Failure rates'!$C$3:$C$12=$C29))*VLOOKUP($C29,'Risk parameters'!$A$7:$D$11,4,FALSE) -> 0 | Q29: =SUMPRODUCT(('Failure rates'!R$29:R$38)*('Failure rates'!$C$3:$C$12=$C29))*VLOOKUP($C29,'Risk parameters'!$A$7:$D$11,4,FALSE) -> 0 | R29: =SUMPRODUCT(('Failure rates'!S$29:S$38)*('Failure rates'!$C$3:$C$12=$C29))*VLOOKUP($C29,'Risk parameters'!$A$7:$D$11,4,FALSE) -> 0 | S29: =SUMPRODUCT(('Failure rates'!T$29:T$38)*('Failure rates'!$C$3:$C$12=$C29))*VLOOKUP($C29,'Risk parameters'!$A$7:$D$11,4,FALSE) -> 0 | T29: =SUMPRODUCT(('Failure rates'!U$29:U$38)*('Failure rates'!$C$3:$C$12=$C29))*VLOOKUP($C29,'Risk parameters'!$A$7:$D$11,4,FALSE) -> 0 | U29: =SUMPRODUCT(('Failure rates'!V$29:V$38)*('Failure rates'!$C$3:$C$12=$C29))*VLOOKUP($C29,'Risk parameters'!$A$7:$D$11,4,FALSE) -> 0 | V29: =SUMPRODUCT(('Failure rates'!W$29:W$38)*('Failure rates'!$C$3:$C$12=$C29))*VLOOKUP($C29,'Risk parameters'!$A$7:$D$11,4,FALSE) -> 0 | W29: =SUMPRODUCT(('Failure rates'!X$29:X$38)*('Failure rates'!$C$3:$C$12=$C29))*VLOOKUP($C29,'Risk parameters'!$A$7:$D$11,4,FALSE) -> 0 | X29: =SUMPRODUCT(('Failure rates'!Y$29:Y$38)*('Failure rates'!$C$3:$C$12=$C29))*VLOOKUP($C29,'Risk parameters'!$A$7:$D$11,4,FALSE) -> 0
C30: 132 kV XLPE Cable | D30: =SUMPRODUCT(('Failure rates'!E$29:E$38)*('Failure rates'!$C$3:$C$12=$C30))*VLOOKUP($C30,'Risk parameters'!$A$7:$D$11,4,FALSE) -> 0 | E30: =SUMPRODUCT(('Failure rates'!F$29:F$38)*('Failure rates'!$C$3:$C$12=$C30))*VLOOKUP($C30,'Risk parameters'!$A$7:$D$11,4,FALSE) -> 0 | F30: =SUMPRODUCT(('Failure rates'!G$29:G$38)*('Failure rates'!$C$3:$C$12=$C30))*VLOOKUP($C30,'Risk parameters'!$A$7:$D$11,4,FALSE) -> 0 | G30: =SUMPRODUCT(('Failure rates'!H$29:H$38)*('Failure rates'!$C$3:$C$12=$C30))*VLOOKUP($C30,'Risk parameters'!$A$7:$D$11,4,FALSE) -> 0 | H30: =SUMPRODUCT(('Failure rates'!I$29:I$38)*('Failure rates'!$C$3:$C$12=$C30))*VLOOKUP($C30,'Risk parameters'!$A$7:$D$11,4,FALSE) -> 0 | I30: =SUMPRODUCT(('Failure rates'!J$29:J$38)*('Failure rates'!$C$3:$C$12=$C30))*VLOOKUP($C30,'Risk parameters'!$A$7:$D$11,4,FALSE) -> 0 | J30: =SUMPRODUCT(('Failure rates'!K$29:K$38)*('Failure rates'!$C$3:$C$12=$C30))*VLOOKUP($C30,'Risk parameters'!$A$7:$D$11,4,FALSE) -> 0 | K30: =SUMPRODUCT(('Failure rates'!L$29:L$38)*('Failure rates'!$C$3:$C$12=$C30))*VLOOKUP($C30,'Risk parameters'!$A$7:$D$11,4,FALSE) -> 0 | L30: =SUMPRODUCT(('Failure rates'!M$29:M$38)*('Failure rates'!$C$3:$C$12=$C30))*VLOOKUP($C30,'Risk parameters'!$A$7:$D$11,4,FALSE) -> 0 | M30: =SUMPRODUCT(('Failure rates'!N$29:N$38)*('Failure rates'!$C$3:$C$12=$C30))*VLOOKUP($C30,'Risk parameters'!$A$7:$D$11,4,FALSE) -> 0 | N30: =SUMPRODUCT(('Failure rates'!O$29:O$38)*('Failure rates'!$C$3:$C$12=$C30))*VLOOKUP($C30,'Risk parameters'!$A$7:$D$11,4,FALSE) -> 0 | O30: =SUMPRODUCT(('Failure rates'!P$29:P$38)*('Failure rates'!$C$3:$C$12=$C30))*VLOOKUP($C30,'Risk parameters'!$A$7:$D$11,4,FALSE) -> 0 | P30: =SUMPRODUCT(('Failure rates'!Q$29:Q$38)*('Failure rates'!$C$3:$C$12=$C30))*VLOOKUP($C30,'Risk parameters'!$A$7:$D$11,4,FALSE) -> 0 | Q30: =SUMPRODUCT(('Failure rates'!R$29:R$38)*('Failure rates'!$C$3:$C$12=$C30))*VLOOKUP($C30,'Risk parameters'!$A$7:$D$11,4,FALSE) -> 0 | R30: =SUMPRODUCT(('Failure rates'!S$29:S$38)*('Failure rates'!$C$3:$C$12=$C30))*VLOOKUP($C30,'Risk parameters'!$A$7:$D$11,4,FALSE) -> 0 | S30: =SUMPRODUCT(('Failure rates'!T$29:T$38)*('Failure rates'!$C$3:$C$12=$C30))*VLOOKUP($C30,'Risk parameters'!$A$7:$D$11,4,FALSE) -> 0 | T30: =SUMPRODUCT(('Failure rates'!U$29:U$38)*('Failure rates'!$C$3:$C$12=$C30))*VLOOKUP($C30,'Risk parameters'!$A$7:$D$11,4,FALSE) -> 0 | U30: =SUMPRODUCT(('Failure rates'!V$29:V$38)*('Failure rates'!$C$3:$C$12=$C30))*VLOOKUP($C30,'Risk parameters'!$A$7:$D$11,4,FALSE) -> 0 | V30: =SUMPRODUCT(('Failure rates'!W$29:W$38)*('Failure rates'!$C$3:$C$12=$C30))*VLOOKUP($C30,'Risk parameters'!$A$7:$D$11,4,FALSE) -> 0 | W30: =SUMPRODUCT(('Failure rates'!X$29:X$38)*('Failure rates'!$C$3:$C$12=$C30))*VLOOKUP($C30,'Risk parameters'!$A$7:$D$11,4,FALSE) -> 0 | X30: =SUMPRODUCT(('Failure rates'!Y$29:Y$38)*('Failure rates'!$C$3:$C$12=$C30))*VLOOKUP($C30,'Risk parameters'!$A$7:$D$11,4,FALSE) -> 0
A33: Switchgear | C33: Major | D33: =IF('Failure rates'!$C$41="Failure Rates", SUMPRODUCT(('Failure rates'!E$43:E$50)*('Failure rates'!$D$43:$D$50=$C33))*SUMPRODUCT(('Risk parameters'!$A$16:$A$23=Calculation!$C33)*('Risk parameters'!$B$16:$B$23='Global inputs'!$C$13)*'Risk parameters'!$C$16:$C$23),'Failure rates'!E55) -> 0 | E33: =IF('Failure rates'!$C$41="Failure Rates", SUMPRODUCT(('Failure rates'!F$43:F$50)*('Failure rates'!$D$43:$D$50=$C33))*SUMPRODUCT(('Risk parameters'!$A$16:$A$23=Calculation!$C33)*('Risk parameters'!$B$16:$B$23='Global inputs'!$C$13)*'Risk parameters'!$C$16:$C$23),'Failure rates'!F55) -> 0 | F33: =IF('Failure rates'!$C$41="Failure Rates", SUMPRODUCT(('Failure rates'!G$43:G$50)*('Failure rates'!$D$43:$D$50=$C33))*SUMPRODUCT(('Risk parameters'!$A$16:$A$23=Calculation!$C33)*('Risk parameters'!$B$16:$B$23='Global inputs'!$C$13)*'Risk parameters'!$C$16:$C$23),'Failure rates'!G55) -> 0 | G33: =IF('Failure rates'!$C$41="Failure Rates", SUMPRODUCT(('Failure rates'!H$43:H$50)*('Failure rates'!$D$43:$D$50=$C33))*SUMPRODUCT(('Risk parameters'!$A$16:$A$23=Calculation!$C33)*('Risk parameters'!$B$16:$B$23='Global inputs'!$C$13)*'Risk parameters'!$C$16:$C$23),'Failure rates'!H55) -> 0 | H33: =IF('Failure rates'!$C$41="Failure Rates", SUMPRODUCT(('Failure rates'!I$43:I$50)*('Failure rates'!$D$43:$D$50=$C33))*SUMPRODUCT(('Risk parameters'!$A$16:$A$23=Calculation!$C33)*('Risk parameters'!$B$16:$B$23='Global inputs'!$C$13)*'Risk parameters'!$C$16:$C$23),'Failure rates'!I55) -> 0 | I33: =IF('Failure rates'!$C$41="Failure Rates", SUMPRODUCT(('Failure rates'!J$43:J$50)*('Failure rates'!$D$43:$D$50=$C33))*SUMPRODUCT(('Risk parameters'!$A$16:$A$23=Calculation!$C33)*('Risk parameters'!$B$16:$B$23='Global inputs'!$C$13)*'Risk parameters'!$C$16:$C$23),'Failure rates'!J55) -> 0 | J33: =IF('Failure rates'!$C$41="Failure Rates", SUMPRODUCT(('Failure rates'!K$43:K$50)*('Failure rates'!$D$43:$D$50=$C33))*SUMPRODUCT(('Risk parameters'!$A$16:$A$23=Calculation!$C33)*('Risk parameters'!$B$16:$B$23='Global inputs'!$C$13)*'Risk parameters'!$C$16:$C$23),'Failure rates'!K55) -> 0 | K33: =IF('Failure rates'!$C$41="Failure Rates", SUMPRODUCT(('Failure rates'!L$43:L$50)*('Failure rates'!$D$43:$D$50=$C33))*SUMPRODUCT(('Risk parameters'!$A$16:$A$23=Calculation!$C33)*('Risk parameters'!$B$16:$B$23='Global inputs'!$C$13)*'Risk parameters'!$C$16:$C$23),'Failure rates'!L55) -> 0 | L33: =IF('Failure rates'!$C$41="Failure Rates", SUMPRODUCT(('Failure rates'!M$43:M$50)*('Failure rates'!$D$43:$D$50=$C33))*SUMPRODUCT(('Risk parameters'!$A$16:$A$23=Calculation!$C33)*('Risk parameters'!$B$16:$B$23='Global inputs'!$C$13)*'Risk parameters'!$C$16:$C$23),'Failure rates'!M55) -> 0 | M33: =IF('Failure rates'!$C$41="Failure Rates", SUMPRODUCT(('Failure rates'!N$43:N$50)*('Failure rates'!$D$43:$D$50=$C33))*SUMPRODUCT(('Risk parameters'!$A$16:$A$23=Calculation!$C33)*('Risk parameters'!$B$16:$B$23='Global inputs'!$C$13)*'Risk parameters'!$C$16:$C$23),'Failure rates'!N55) -> 0 | N33: =IF('Failure rates'!$C$41="Failure Rates", SUMPRODUCT(('Failure rates'!O$43:O$50)*('Failure rates'!$D$43:$D$50=$C33))*SUMPRODUCT(('Risk parameters'!$A$16:$A$23=Calculation!$C33)*('Risk parameters'!$B$16:$B$23='Global inputs'!$C$13)*'Risk parameters'!$C$16:$C$23),'Failure rates'!O55) -> 0 | O33: =IF('Failure rates'!$C$41="Failure Rates", SUMPRODUCT(('Failure rates'!P$43:P$50)*('Failure rates'!$D$43:$D$50=$C33))*SUMPRODUCT(('Risk parameters'!$A$16:$A$23=Calculation!$C33)*('Risk parameters'!$B$16:$B$23='Global inputs'!$C$13)*'Risk parameters'!$C$16:$C$23),'Failure rates'!P55) -> 0 | P33: =IF('Failure rates'!$C$41="Failure Rates", SUMPRODUCT(('Failure rates'!Q$43:Q$50)*('Failure rates'!$D$43:$D$50=$C33))*SUMPRODUCT(('Risk parameters'!$A$16:$A$23=Calculation!$C33)*('Risk parameters'!$B$16:$B$23='Global inputs'!$C$13)*'Risk parameters'!$C$16:$C$23),'Failure rates'!Q55) -> 0 | Q33: =IF('Failure rates'!$C$41="Failure Rates", SUMPRODUCT(('Failure rates'!R$43:R$50)*('Failure rates'!$D$43:$D$50=$C33))*SUMPRODUCT(('Risk parameters'!$A$16:$A$23=Calculation!$C33)*('Risk parameters'!$B$16:$B$23='Global inputs'!$C$13)*'Risk parameters'!$C$16:$C$23),'Failure rates'!R55) -> 0 | R33: =IF('Failure rates'!$C$41="Failure Rates", SUMPRODUCT(('Failure rates'!S$43:S$50)*('Failure rates'!$D$43:$D$50=$C33))*SUMPRODUCT(('Risk parameters'!$A$16:$A$23=Calculation!$C33)*('Risk parameters'!$B$16:$B$23='Global inputs'!$C$13)*'Risk parameters'!$C$16:$C$23),'Failure rates'!S55) -> 0 | S33: =IF('Failure rates'!$C$41="Failure Rates", SUMPRODUCT(('Failure rates'!T$43:T$50)*('Failure rates'!$D$43:$D$50=$C33))*SUMPRODUCT(('Risk parameters'!$A$16:$A$23=Calculation!$C33)*('Risk parameters'!$B$16:$B$23='Global inputs'!$C$13)*'Risk parameters'!$C$16:$C$23),'Failure rates'!T55) -> 0 | T33: =IF('Failure rates'!$C$41="Failure Rates", SUMPRODUCT(('Failure rates'!U$43:U$50)*('Failure rates'!$D$43:$D$50=$C33))*SUMPRODUCT(('Risk parameters'!$A$16:$A$23=Calculation!$C33)*('Risk parameters'!$B$16:$B$23='Global inputs'!$C$13)*'Risk parameters'!$C$16:$C$23),'Failure rates'!U55) -> 0 | U33: =IF('Failure rates'!$C$41="Failure Rates", SUMPRODUCT(('Failure rates'!V$43:V$50)*('Failure rates'!$D$43:$D$50=$C33))*SUMPRODUCT(('Risk parameters'!$A$16:$A$23=Calculation!$C33)*('Risk parameters'!$B$16:$B$23='Global inputs'!$C$13)*'Risk parameters'!$C$16:$C$23),'Failure rates'!V55) -> 0 | V33: =IF('Failure rates'!$C$41="Failure Rates", SUMPRODUCT(('Failure rates'!W$43:W$50)*('Failure rates'!$D$43:$D$50=$C33))*SUMPRODUCT(('Risk parameters'!$A$16:$A$23=Calculation!$C33)*('Risk parameters'!$B$16:$B$23='Global inputs'!$C$13)*'Risk parameters'!$C$16:$C$23),'Failure rates'!W55) -> 0 | W33: =IF('Failure rates'!$C$41="Failure Rates", SUMPRODUCT(('Failure rates'!X$43:X$50)*('Failure rates'!$D$43:$D$50=$C33))*SUMPRODUCT(('Risk parameters'!$A$16:$A$23=Calculation!$C33)*('Risk parameters'!$B$16:$B$23='Global inputs'!$C$13)*'Risk parameters'!$C$16:$C$23),'Failure rates'!X55) -> 0 | X33: =IF('Failure rates'!$C$41="Failure Rates", SUMPRODUCT(('Failure rates'!Y$43:Y$50)*('Failure rates'!$D$43:$D$50=$C33))*SUMPRODUCT(('Risk parameters'!$A$16:$A$23=Calculation!$C33)*('Risk parameters'!$B$16:$B$23='Global inputs'!$C$13)*'Risk parameters'!$C$16:$C$23),'Failure rates'!Y55) -> 0
C34: Minor | D34: =IF('Failure rates'!$C$41="Failure Rates",SUMPRODUCT(('Failure rates'!E$43:E$50)*('Failure rates'!$D$43:$D$50=$C34))*SUMPRODUCT(('Risk parameters'!$A$16:$A$23=Calculation!$C34)*('Risk parameters'!$B$16:$B$23='Global inputs'!$C$13)*'Risk parameters'!$C$16:$C$23),0) -> 0 | E34: =IF('Failure rates'!$C$41="Failure Rates",SUMPRODUCT(('Failure rates'!F$43:F$50)*('Failure rates'!$D$43:$D$50=$C34))*SUMPRODUCT(('Risk parameters'!$A$16:$A$23=Calculation!$C34)*('Risk parameters'!$B$16:$B$23='Global inputs'!$C$13)*'Risk parameters'!$C$16:$C$23),0) -> 0 | F34: =IF('Failure rates'!$C$41="Failure Rates",SUMPRODUCT(('Failure rates'!G$43:G$50)*('Failure rates'!$D$43:$D$50=$C34))*SUMPRODUCT(('Risk parameters'!$A$16:$A$23=Calculation!$C34)*('Risk parameters'!$B$16:$B$23='Global inputs'!$C$13)*'Risk parameters'!$C$16:$C$23),0) -> 0 | G34: =IF('Failure rates'!$C$41="Failure Rates",SUMPRODUCT(('Failure rates'!H$43:H$50)*('Failure rates'!$D$43:$D$50=$C34))*SUMPRODUCT(('Risk parameters'!$A$16:$A$23=Calculation!$C34)*('Risk parameters'!$B$16:$B$23='Global inputs'!$C$13)*'Risk parameters'!$C$16:$C$23),0) -> 0 | H34: =IF('Failure rates'!$C$41="Failure Rates",SUMPRODUCT(('Failure rates'!I$43:I$50)*('Failure rates'!$D$43:$D$50=$C34))*SUMPRODUCT(('Risk parameters'!$A$16:$A$23=Calculation!$C34)*('Risk parameters'!$B$16:$B$23='Global inputs'!$C$13)*'Risk parameters'!$C$16:$C$23),0) -> 0 | I34: =IF('Failure rates'!$C$41="Failure Rates",SUMPRODUCT(('Failure rates'!J$43:J$50)*('Failure rates'!$D$43:$D$50=$C34))*SUMPRODUCT(('Risk parameters'!$A$16:$A$23=Calculation!$C34)*('Risk parameters'!$B$16:$B$23='Global inputs'!$C$13)*'Risk parameters'!$C$16:$C$23),0) -> 0 | J34: =IF('Failure rates'!$C$41="Failure Rates",SUMPRODUCT(('Failure rates'!K$43:K$50)*('Failure rates'!$D$43:$D$50=$C34))*SUMPRODUCT(('Risk parameters'!$A$16:$A$23=Calculation!$C34)*('Risk parameters'!$B$16:$B$23='Global inputs'!$C$13)*'Risk parameters'!$C$16:$C$23),0) -> 0 | K34: =IF('Failure rates'!$C$41="Failure Rates",SUMPRODUCT(('Failure rates'!L$43:L$50)*('Failure rates'!$D$43:$D$50=$C34))*SUMPRODUCT(('Risk parameters'!$A$16:$A$23=Calculation!$C34)*('Risk parameters'!$B$16:$B$23='Global inputs'!$C$13)*'Risk parameters'!$C$16:$C$23),0) -> 0 | L34: =IF('Failure rates'!$C$41="Failure Rates",SUMPRODUCT(('Failure rates'!M$43:M$50)*('Failure rates'!$D$43:$D$50=$C34))*SUMPRODUCT(('Risk parameters'!$A$16:$A$23=Calculation!$C34)*('Risk parameters'!$B$16:$B$23='Global inputs'!$C$13)*'Risk parameters'!$C$16:$C$23),0) -> 0 | M34: =IF('Failure rates'!$C$41="Failure Rates",SUMPRODUCT(('Failure rates'!N$43:N$50)*('Failure rates'!$D$43:$D$50=$C34))*SUMPRODUCT(('Risk parameters'!$A$16:$A$23=Calculation!$C34)*('Risk parameters'!$B$16:$B$23='Global inputs'!$C$13)*'Risk parameters'!$C$16:$C$23),0) -> 0 | N34: =IF('Failure rates'!$C$41="Failure Rates",SUMPRODUCT(('Failure rates'!O$43:O$50)*('Failure rates'!$D$43:$D$50=$C34))*SUMPRODUCT(('Risk parameters'!$A$16:$A$23=Calculation!$C34)*('Risk parameters'!$B$16:$B$23='Global inputs'!$C$13)*'Risk parameters'!$C$16:$C$23),0) -> 0 | O34: =IF('Failure rates'!$C$41="Failure Rates",SUMPRODUCT(('Failure rates'!P$43:P$50)*('Failure rates'!$D$43:$D$50=$C34))*SUMPRODUCT(('Risk parameters'!$A$16:$A$23=Calculation!$C34)*('Risk parameters'!$B$16:$B$23='Global inputs'!$C$13)*'Risk parameters'!$C$16:$C$23),0) -> 0 | P34: =IF('Failure rates'!$C$41="Failure Rates",SUMPRODUCT(('Failure rates'!Q$43:Q$50)*('Failure rates'!$D$43:$D$50=$C34))*SUMPRODUCT(('Risk parameters'!$A$16:$A$23=Calculation!$C34)*('Risk parameters'!$B$16:$B$23='Global inputs'!$C$13)*'Risk parameters'!$C$16:$C$23),0) -> 0 | Q34: =IF('Failure rates'!$C$41="Failure Rates",SUMPRODUCT(('Failure rates'!R$43:R$50)*('Failure rates'!$D$43:$D$50=$C34))*SUMPRODUCT(('Risk parameters'!$A$16:$A$23=Calculation!$C34)*('Risk parameters'!$B$16:$B$23='Global inputs'!$C$13)*'Risk parameters'!$C$16:$C$23),0) -> 0 | R34: =IF('Failure rates'!$C$41="Failure Rates",SUMPRODUCT(('Failure rates'!S$43:S$50)*('Failure rates'!$D$43:$D$50=$C34))*SUMPRODUCT(('Risk parameters'!$A$16:$A$23=Calculation!$C34)*('Risk parameters'!$B$16:$B$23='Global inputs'!$C$13)*'Risk parameters'!$C$16:$C$23),0) -> 0 | S34: =IF('Failure rates'!$C$41="Failure Rates",SUMPRODUCT(('Failure rates'!T$43:T$50)*('Failure rates'!$D$43:$D$50=$C34))*SUMPRODUCT(('Risk parameters'!$A$16:$A$23=Calculation!$C34)*('Risk parameters'!$B$16:$B$23='Global inputs'!$C$13)*'Risk parameters'!$C$16:$C$23),0) -> 0 | T34: =IF('Failure rates'!$C$41="Failure Rates",SUMPRODUCT(('Failure rates'!U$43:U$50)*('Failure rates'!$D$43:$D$50=$C34))*SUMPRODUCT(('Risk parameters'!$A$16:$A$23=Calculation!$C34)*('Risk parameters'!$B$16:$B$23='Global inputs'!$C$13)*'Risk parameters'!$C$16:$C$23),0) -> 0 | U34: =IF('Failure rates'!$C$41="Failure Rates",SUMPRODUCT(('Failure rates'!V$43:V$50)*('Failure rates'!$D$43:$D$50=$C34))*SUMPRODUCT(('Risk parameters'!$A$16:$A$23=Calculation!$C34)*('Risk parameters'!$B$16:$B$23='Global inputs'!$C$13)*'Risk parameters'!$C$16:$C$23),0) -> 0 | V34: =IF('Failure rates'!$C$41="Failure Rates",SUMPRODUCT(('Failure rates'!W$43:W$50)*('Failure rates'!$D$43:$D$50=$C34))*SUMPRODUCT(('Risk parameters'!$A$16:$A$23=Calculation!$C34)*('Risk parameters'!$B$16:$B$23='Global inputs'!$C$13)*'Risk parameters'!$C$16:$C$23),0) -> 0 | W34: =IF('Failure rates'!$C$41="Failure Rates",SUMPRODUCT(('Failure rates'!X$43:X$50)*('Failure rates'!$D$43:$D$50=$C34))*SUMPRODUCT(('Risk parameters'!$A$16:$A$23=Calculation!$C34)*('Risk parameters'!$B$16:$B$23='Global inputs'!$C$13)*'Risk parameters'!$C$16:$C$23),0) -> 0 | X34: =IF('Failure rates'!$C$41="Failure Rates",SUMPRODUCT(('Failure rates'!Y$43:Y$50)*('Failure rates'!$D$43:$D$50=$C34))*SUMPRODUCT(('Risk parameters'!$A$16:$A$23=Calculation!$C34)*('Risk parameters'!$B$16:$B$23='Global inputs'!$C$13)*'Risk parameters'!$C$16:$C$23),0) -> 0
A37: Environmental Impact Costs | D37: =D4 -> 2022 | E37: =D37+1 -> 2023 | F37: =E37+1 -> 2024 | G37: =F37+1 -> 2025 | H37: =G37+1 -> 2026 | I37: =H37+1 -> 2027 | J37: =I37+1 -> 2028 | K37: =J37+1 -> 2029 | L37: =K37+1 -> 2030 | M37: =L37+1 -> 2031 | N37: =M37+1 -> 2032 | O37: =N37+1 -> 2033 | P37: =O37+1 -> 2034 | Q37: =P37+1 -> 2035 | R37: =Q37+1 -> 2036 | S37: =R37+1 -> 2037 | T37: =S37+1 -> 2038 | U37: =T37+1 -> 2039 | V37: =U37+1 -> 2040 | W37: =V37+1 -> 2041 | X37: 2042
A39: Feeder (M2-Corrective) | B39: =IF('Risk parameters'!F31="","",'Risk parameters'!F31) -> 9E1 | C39: Oil-filled Cable | D39: =IF($B39="",0,SUMPRODUCT(('Failure rates'!E$3:E$12)*('Failure rates'!$C$3:$C$12=$C39)*('Failure rates'!$B$3:$B$12=$B39))*INDEX('Risk parameters'!$L$5:$L$94,MATCH($B39,'Risk parameters'!$J$5:$J$94,0))*'Risk parameters'!$B$37) -> 274.7790077 | E39: =IF($B39="",0,SUMPRODUCT(('Failure rates'!F$3:F$12)*('Failure rates'!$C$3:$C$12=$C39)*('Failure rates'!$B$3:$B$12=$B39))*INDEX('Risk parameters'!$L$5:$L$94,MATCH($B39,'Risk parameters'!$J$5:$J$94,0))*'Risk parameters'!$B$37) -> 313.6467334 | F39: =IF($B39="",0,SUMPRODUCT(('Failure rates'!G$3:G$12)*('Failure rates'!$C$3:$C$12=$C39)*('Failure rates'!$B$3:$B$12=$B39))*INDEX('Risk parameters'!$L$5:$L$94,MATCH($B39,'Risk parameters'!$J$5:$J$94,0))*'Risk parameters'!$B$37) -> 356.8768361 | G39: =IF($B39="",0,SUMPRODUCT(('Failure rates'!H$3:H$12)*('Failure rates'!$C$3:$C$12=$C39)*('Failure rates'!$B$3:$B$12=$B39))*INDEX('Risk parameters'!$L$5:$L$94,MATCH($B39,'Risk parameters'!$J$5:$J$94,0))*'Risk parameters'!$B$37) -> 404.837761 | H39: =IF($B39="",0,SUMPRODUCT(('Failure rates'!I$3:I$12)*('Failure rates'!$C$3:$C$12=$C39)*('Failure rates'!$B$3:$B$12=$B39))*INDEX('Risk parameters'!$L$5:$L$94,MATCH($B39,'Risk parameters'!$J$5:$J$94,0))*'Risk parameters'!$B$37) -> 458.0721652 | I39: =IF($B39="",0,SUMPRODUCT(('Failure rates'!J$3:J$12)*('Failure rates'!$C$3:$C$12=$C39)*('Failure rates'!$B$3:$B$12=$B39))*INDEX('Risk parameters'!$L$5:$L$94,MATCH($B39,'Risk parameters'!$J$5:$J$94,0))*'Risk parameters'!$B$37) -> 516.7020219 | J39: =IF($B39="",0,SUMPRODUCT(('Failure rates'!K$3:K$12)*('Failure rates'!$C$3:$C$12=$C39)*('Failure rates'!$B$3:$B$12=$B39))*INDEX('Risk parameters'!$L$5:$L$94,MATCH($B39,'Risk parameters'!$J$5:$J$94,0))*'Risk parameters'!$B$37) -> 581.3003303 | K39: =IF($B39="",0,SUMPRODUCT(('Failure rates'!L$3:L$12)*('Failure rates'!$C$3:$C$12=$C39)*('Failure rates'!$B$3:$B$12=$B39))*INDEX('Risk parameters'!$L$5:$L$94,MATCH($B39,'Risk parameters'!$J$5:$J$94,0))*'Risk parameters'!$B$37) -> 652.3253404 | L39: =IF($B39="",0,SUMPRODUCT(('Failure rates'!M$3:M$12)*('Failure rates'!$C$3:$C$12=$C39)*('Failure rates'!$B$3:$B$12=$B39))*INDEX('Risk parameters'!$L$5:$L$94,MATCH($B39,'Risk parameters'!$J$5:$J$94,0))*'Risk parameters'!$B$37) -> 730.4829915 | M39: =IF($B39="",0,SUMPRODUCT(('Failure rates'!N$3:N$12)*('Failure rates'!$C$3:$C$12=$C39)*('Failure rates'!$B$3:$B$12=$B39))*INDEX('Risk parameters'!$L$5:$L$94,MATCH($B39,'Risk parameters'!$J$5:$J$94,0))*'Risk parameters'!$B$37) -> 815.8548043 | N39: =IF($B39="",0,SUMPRODUCT(('Failure rates'!O$3:O$12)*('Failure rates'!$C$3:$C$12=$C39)*('Failure rates'!$B$3:$B$12=$B39))*INDEX('Risk parameters'!$L$5:$L$94,MATCH($B39,'Risk parameters'!$J$5:$J$94,0))*'Risk parameters'!$B$37) -> 909.1777997 | O39: =IF($B39="",0,SUMPRODUCT(('Failure rates'!P$3:P$12)*('Failure rates'!$C$3:$C$12=$C39)*('Failure rates'!$B$3:$B$12=$B39))*INDEX('Risk parameters'!$L$5:$L$94,MATCH($B39,'Risk parameters'!$J$5:$J$94,0))*'Risk parameters'!$B$37) -> 1011.011562 | P39: =IF($B39="",0,SUMPRODUCT(('Failure rates'!Q$3:Q$12)*('Failure rates'!$C$3:$C$12=$C39)*('Failure rates'!$B$3:$B$12=$B39))*INDEX('Risk parameters'!$L$5:$L$94,MATCH($B39,'Risk parameters'!$J$5:$J$94,0))*'Risk parameters'!$B$37) -> 1122.259811 | Q39: =IF($B39="",0,SUMPRODUCT(('Failure rates'!R$3:R$12)*('Failure rates'!$C$3:$C$12=$C39)*('Failure rates'!$B$3:$B$12=$B39))*INDEX('Risk parameters'!$L$5:$L$94,MATCH($B39,'Risk parameters'!$J$5:$J$94,0))*'Risk parameters'!$B$37) -> 1242.93073 | R39: =IF($B39="",0,SUMPRODUCT(('Failure rates'!S$3:S$12)*('Failure rates'!$C$3:$C$12=$C39)*('Failure rates'!$B$3:$B$12=$B39))*INDEX('Risk parameters'!$L$5:$L$94,MATCH($B39,'Risk parameters'!$J$5:$J$94,0))*'Risk parameters'!$B$37) -> 1373.958933 | S39: =IF($B39="",0,SUMPRODUCT(('Failure rates'!T$3:T$12)*('Failure rates'!$C$3:$C$12=$C39)*('Failure rates'!$B$3:$B$12=$B39))*INDEX('Risk parameters'!$L$5:$L$94,MATCH($B39,'Risk parameters'!$J$5:$J$94,0))*'Risk parameters'!$B$37) -> 1516.017241 | T39: =IF($B39="",0,SUMPRODUCT(('Failure rates'!U$3:U$12)*('Failure rates'!$C$3:$C$12=$C39)*('Failure rates'!$B$3:$B$12=$B39))*INDEX('Risk parameters'!$L$5:$L$94,MATCH($B39,'Risk parameters'!$J$5:$J$94,0))*'Risk parameters'!$B$37) -> 1670.246792 | U39: =IF($B39="",0,SUMPRODUCT(('Failure rates'!V$3:V$12)*('Failure rates'!$C$3:$C$12=$C39)*('Failure rates'!$B$3:$B$12=$B39))*INDEX('Risk parameters'!$L$5:$L$94,MATCH($B39,'Risk parameters'!$J$5:$J$94,0))*'Risk parameters'!$B$37) -> 1836.540491 | V39: =IF($B39="",0,SUMPRODUCT(('Failure rates'!W$3:W$12)*('Failure rates'!$C$3:$C$12=$C39)*('Failure rates'!$B$3:$B$12=$B39))*INDEX('Risk parameters'!$L$5:$L$94,MATCH($B39,'Risk parameters'!$J$5:$J$94,0))*'Risk parameters'!$B$37) -> 2016.069121 | W39: =IF($B39="",0,SUMPRODUCT(('Failure rates'!X$3:X$12)*('Failure rates'!$C$3:$C$12=$C39)*('Failure rates'!$B$3:$B$12=$B39))*INDEX('Risk parameters'!$L$5:$L$94,MATCH($B39,'Risk parameters'!$J$5:$J$94,0))*'Risk parameters'!$B$37) -> 2209.630992 | X39: =IF($B39="",0,SUMPRODUCT(('Failure rates'!Y$3:Y$12)*('Failure rates'!$C$3:$C$12=$C39)*('Failure rates'!$B$3:$B$12=$B39))*INDEX('Risk parameters'!$L$5:$L$94,MATCH($B39,'Risk parameters'!$J$5:$J$94,0))*'Risk parameters'!$B$37) -> 2418.649954
A40: Feeder (M2-Corrective) | B40: =IF('Risk parameters'!F32="","",'Risk parameters'!F32) -> 9E2 | C40: Oil-filled Cable | D40: =IF($B40="",0,SUMPRODUCT(('Failure rates'!E$3:E$12)*('Failure rates'!$C$3:$C$12=$C40)*('Failure rates'!$B$3:$B$12=$B40))*INDEX('Risk parameters'!$L$5:$L$94,MATCH($B40,'Risk parameters'!$J$5:$J$94,0))*'Risk parameters'!$B$37) -> 260.4086387 | E40: =IF($B40="",0,SUMPRODUCT(('Failure rates'!F$3:F$12)*('Failure rates'!$C$3:$C$12=$C40)*('Failure rates'!$B$3:$B$12=$B40))*INDEX('Risk parameters'!$L$5:$L$94,MATCH($B40,'Risk parameters'!$J$5:$J$94,0))*'Risk parameters'!$B$37) -> 296.91724 | F40: =IF($B40="",0,SUMPRODUCT(('Failure rates'!G$3:G$12)*('Failure rates'!$C$3:$C$12=$C40)*('Failure rates'!$B$3:$B$12=$B40))*INDEX('Risk parameters'!$L$5:$L$94,MATCH($B40,'Risk parameters'!$J$5:$J$94,0))*'Risk parameters'!$B$37) -> 337.4787696 | G40: =IF($B40="",0,SUMPRODUCT(('Failure rates'!H$3:H$12)*('Failure rates'!$C$3:$C$12=$C40)*('Failure rates'!$B$3:$B$12=$B40))*INDEX('Risk parameters'!$L$5:$L$94,MATCH($B40,'Risk parameters'!$J$5:$J$94,0))*'Risk parameters'!$B$37) -> 382.4306947 | H40: =IF($B40="",0,SUMPRODUCT(('Failure rates'!I$3:I$12)*('Failure rates'!$C$3:$C$12=$C40)*('Failure rates'!$B$3:$B$12=$B40))*INDEX('Risk parameters'!$L$5:$L$94,MATCH($B40,'Risk parameters'!$J$5:$J$94,0))*'Risk parameters'!$B$37) -> 432.2726901 | I40: =IF($B40="",0,SUMPRODUCT(('Failure rates'!J$3:J$12)*('Failure rates'!$C$3:$C$12=$C40)*('Failure rates'!$B$3:$B$12=$B40))*INDEX('Risk parameters'!$L$5:$L$94,MATCH($B40,'Risk parameters'!$J$5:$J$94,0))*'Risk parameters'!$B$37) -> 487.1097282 | J40: =IF($B40="",0,SUMPRODUCT(('Failure rates'!K$3:K$12)*('Failure rates'!$C$3:$C$12=$C40)*('Failure rates'!$B$3:$B$12=$B40))*INDEX('Risk parameters'!$L$5:$L$94,MATCH($B40,'Risk parameters'!$J$5:$J$94,0))*'Risk parameters'!$B$37) -> 547.4682254 | K40: =IF($B40="",0,SUMPRODUCT(('Failure rates'!L$3:L$12)*('Failure rates'!$C$3:$C$12=$C40)*('Failure rates'!$B$3:$B$12=$B40))*INDEX('Risk parameters'!$L$5:$L$94,MATCH($B40,'Risk parameters'!$J$5:$J$94,0))*'Risk parameters'!$B$37) -> 613.7661129 | L40: =IF($B40="",0,SUMPRODUCT(('Failure rates'!M$3:M$12)*('Failure rates'!$C$3:$C$12=$C40)*('Failure rates'!$B$3:$B$12=$B40))*INDEX('Risk parameters'!$L$5:$L$94,MATCH($B40,'Risk parameters'!$J$5:$J$94,0))*'Risk parameters'!$B$37) -> 686.6512627 | M40: =IF($B40="",0,SUMPRODUCT(('Failure rates'!N$3:N$12)*('Failure rates'!$C$3:$C$12=$C40)*('Failure rates'!$B$3:$B$12=$B40))*INDEX('Risk parameters'!$L$5:$L$94,MATCH($B40,'Risk parameters'!$J$5:$J$94,0))*'Risk parameters'!$B$37) -> 766.1883294 | N40: =IF($B40="",0,SUMPRODUCT(('Failure rates'!O$3:O$12)*('Failure rates'!$C$3:$C$12=$C40)*('Failure rates'!$B$3:$B$12=$B40))*INDEX('Risk parameters'!$L$5:$L$94,MATCH($B40,'Risk parameters'!$J$5:$J$94,0))*'Risk parameters'!$B$37) -> 853.0523208 | O40: =IF($B40="",0,SUMPRODUCT(('Failure rates'!P$3:P$12)*('Failure rates'!$C$3:$C$12=$C40)*('Failure rates'!$B$3:$B$12=$B40))*INDEX('Risk parameters'!$L$5:$L$94,MATCH($B40,'Risk parameters'!$J$5:$J$94,0))*'Risk parameters'!$B$37) -> 947.7515885 | P40: =IF($B40="",0,SUMPRODUCT(('Failure rates'!Q$3:Q$12)*('Failure rates'!$C$3:$C$12=$C40)*('Failure rates'!$B$3:$B$12=$B40))*INDEX('Risk parameters'!$L$5:$L$94,MATCH($B40,'Risk parameters'!$J$5:$J$94,0))*'Risk parameters'!$B$37) -> 1051.113036 | Q40: =IF($B40="",0,SUMPRODUCT(('Failure rates'!R$3:R$12)*('Failure rates'!$C$3:$C$12=$C40)*('Failure rates'!$B$3:$B$12=$B40))*INDEX('Risk parameters'!$L$5:$L$94,MATCH($B40,'Risk parameters'!$J$5:$J$94,0))*'Risk parameters'!$B$37) -> 1163.130502 | R40: =IF($B40="",0,SUMPRODUCT(('Failure rates'!S$3:S$12)*('Failure rates'!$C$3:$C$12=$C40)*('Failure rates'!$B$3:$B$12=$B40))*INDEX('Risk parameters'!$L$5:$L$94,MATCH($B40,'Risk parameters'!$J$5:$J$94,0))*'Risk parameters'!$B$37) -> 1284.65757 | S40: =IF($B40="",0,SUMPRODUCT(('Failure rates'!T$3:T$12)*('Failure rates'!$C$3:$C$12=$C40)*('Failure rates'!$B$3:$B$12=$B40))*INDEX('Risk parameters'!$L$5:$L$94,MATCH($B40,'Risk parameters'!$J$5:$J$94,0))*'Risk parameters'!$B$37) -> 1416.303247 | T40: =IF($B40="",0,SUMPRODUCT(('Failure rates'!U$3:U$12)*('Failure rates'!$C$3:$C$12=$C40)*('Failure rates'!$B$3:$B$12=$B40))*INDEX('Risk parameters'!$L$5:$L$94,MATCH($B40,'Risk parameters'!$J$5:$J$94,0))*'Risk parameters'!$B$37) -> 1559.108826 | U40: =IF($B40="",0,SUMPRODUCT(('Failure rates'!V$3:V$12)*('Failure rates'!$C$3:$C$12=$C40)*('Failure rates'!$B$3:$B$12=$B40))*INDEX('Risk parameters'!$L$5:$L$94,MATCH($B40,'Risk parameters'!$J$5:$J$94,0))*'Risk parameters'!$B$37) -> 1712.958722 | V40: =IF($B40="",0,SUMPRODUCT(('Failure rates'!W$3:W$12)*('Failure rates'!$C$3:$C$12=$C40)*('Failure rates'!$B$3:$B$12=$B40))*INDEX('Risk parameters'!$L$5:$L$94,MATCH($B40,'Risk parameters'!$J$5:$J$94,0))*'Risk parameters'!$B$37) -> 1878.919478 | W40: =IF($B40="",0,SUMPRODUCT(('Failure rates'!X$3:X$12)*('Failure rates'!$C$3:$C$12=$C40)*('Failure rates'!$B$3:$B$12=$B40))*INDEX('Risk parameters'!$L$5:$L$94,MATCH($B40,'Risk parameters'!$J$5:$J$94,0))*'Risk parameters'!$B$37) -> 2057.711258 | X40: =IF($B40="",0,SUMPRODUCT(('Failure rates'!Y$3:Y$12)*('Failure rates'!$C$3:$C$12=$C40)*('Failure rates'!$B$3:$B$12=$B40))*INDEX('Risk parameters'!$L$5:$L$94,MATCH($B40,'Risk parameters'!$J$5:$J$94,0))*'Risk parameters'!$B$37) -> 2250.630074
A41: Feeder (M2-Corrective) | B41: =IF('Risk parameters'!F33="","",'Risk parameters'!F33) ->  | C41: Oil-filled Cable | D41: =IF($B41="",0,SUMPRODUCT(('Failure rates'!E$3:E$12)*('Failure rates'!$C$3:$C$12=$C41)*('Failure rates'!$B$3:$B$12=$B41))*INDEX('Risk parameters'!$L$5:$L$94,MATCH($B41,'Risk parameters'!$J$5:$J$94,0))*'Risk parameters'!$B$37) -> 0 | E41: =IF($B41="",0,SUMPRODUCT(('Failure rates'!F$3:F$12)*('Failure rates'!$C$3:$C$12=$C41)*('Failure rates'!$B$3:$B$12=$B41))*INDEX('Risk parameters'!$L$5:$L$94,MATCH($B41,'Risk parameters'!$J$5:$J$94,0))*'Risk parameters'!$B$37) -> 0 | F41: =IF($B41="",0,SUMPRODUCT(('Failure rates'!G$3:G$12)*('Failure rates'!$C$3:$C$12=$C41)*('Failure rates'!$B$3:$B$12=$B41))*INDEX('Risk parameters'!$L$5:$L$94,MATCH($B41,'Risk parameters'!$J$5:$J$94,0))*'Risk parameters'!$B$37) -> 0 | G41: =IF($B41="",0,SUMPRODUCT(('Failure rates'!H$3:H$12)*('Failure rates'!$C$3:$C$12=$C41)*('Failure rates'!$B$3:$B$12=$B41))*INDEX('Risk parameters'!$L$5:$L$94,MATCH($B41,'Risk parameters'!$J$5:$J$94,0))*'Risk parameters'!$B$37) -> 0 | H41: =IF($B41="",0,SUMPRODUCT(('Failure rates'!I$3:I$12)*('Failure rates'!$C$3:$C$12=$C41)*('Failure rates'!$B$3:$B$12=$B41))*INDEX('Risk parameters'!$L$5:$L$94,MATCH($B41,'Risk parameters'!$J$5:$J$94,0))*'Risk parameters'!$B$37) -> 0 | I41: =IF($B41="",0,SUMPRODUCT(('Failure rates'!J$3:J$12)*('Failure rates'!$C$3:$C$12=$C41)*('Failure rates'!$B$3:$B$12=$B41))*INDEX('Risk parameters'!$L$5:$L$94,MATCH($B41,'Risk parameters'!$J$5:$J$94,0))*'Risk parameters'!$B$37) -> 0 | J41: =IF($B41="",0,SUMPRODUCT(('Failure rates'!K$3:K$12)*('Failure rates'!$C$3:$C$12=$C41)*('Failure rates'!$B$3:$B$12=$B41))*INDEX('Risk parameters'!$L$5:$L$94,MATCH($B41,'Risk parameters'!$J$5:$J$94,0))*'Risk parameters'!$B$37) -> 0 | K41: =IF($B41="",0,SUMPRODUCT(('Failure rates'!L$3:L$12)*('Failure rates'!$C$3:$C$12=$C41)*('Failure rates'!$B$3:$B$12=$B41))*INDEX('Risk parameters'!$L$5:$L$94,MATCH($B41,'Risk parameters'!$J$5:$J$94,0))*'Risk parameters'!$B$37) -> 0 | L41: =IF($B41="",0,SUMPRODUCT(('Failure rates'!M$3:M$12)*('Failure rates'!$C$3:$C$12=$C41)*('Failure rates'!$B$3:$B$12=$B41))*INDEX('Risk parameters'!$L$5:$L$94,MATCH($B41,'Risk parameters'!$J$5:$J$94,0))*'Risk parameters'!$B$37) -> 0 | M41: =IF($B41="",0,SUMPRODUCT(('Failure rates'!N$3:N$12)*('Failure rates'!$C$3:$C$12=$C41)*('Failure rates'!$B$3:$B$12=$B41))*INDEX('Risk parameters'!$L$5:$L$94,MATCH($B41,'Risk parameters'!$J$5:$J$94,0))*'Risk parameters'!$B$37) -> 0 | N41: =IF($B41="",0,SUMPRODUCT(('Failure rates'!O$3:O$12)*('Failure rates'!$C$3:$C$12=$C41)*('Failure rates'!$B$3:$B$12=$B41))*INDEX('Risk parameters'!$L$5:$L$94,MATCH($B41,'Risk parameters'!$J$5:$J$94,0))*'Risk parameters'!$B$37) -> 0 | O41: =IF($B41="",0,SUMPRODUCT(('Failure rates'!P$3:P$12)*('Failure rates'!$C$3:$C$12=$C41)*('Failure rates'!$B$3:$B$12=$B41))*INDEX('Risk parameters'!$L$5:$L$94,MATCH($B41,'Risk parameters'!$J$5:$J$94,0))*'Risk parameters'!$B$37) -> 0 | P41: =IF($B41="",0,SUMPRODUCT(('Failure rates'!Q$3:Q$12)*('Failure rates'!$C$3:$C$12=$C41)*('Failure rates'!$B$3:$B$12=$B41))*INDEX('Risk parameters'!$L$5:$L$94,MATCH($B41,'Risk parameters'!$J$5:$J$94,0))*'Risk parameters'!$B$37) -> 0 | Q41: =IF($B41="",0,SUMPRODUCT(('Failure rates'!R$3:R$12)*('Failure rates'!$C$3:$C$12=$C41)*('Failure rates'!$B$3:$B$12=$B41))*INDEX('Risk parameters'!$L$5:$L$94,MATCH($B41,'Risk parameters'!$J$5:$J$94,0))*'Risk parameters'!$B$37) -> 0 | R41: =IF($B41="",0,SUMPRODUCT(('Failure rates'!S$3:S$12)*('Failure rates'!$C$3:$C$12=$C41)*('Failure rates'!$B$3:$B$12=$B41))*INDEX('Risk parameters'!$L$5:$L$94,MATCH($B41,'Risk parameters'!$J$5:$J$94,0))*'Risk parameters'!$B$37) -> 0 | S41: =IF($B41="",0,SUMPRODUCT(('Failure rates'!T$3:T$12)*('Failure rates'!$C$3:$C$12=$C41)*('Failure rates'!$B$3:$B$12=$B41))*INDEX('Risk parameters'!$L$5:$L$94,MATCH($B41,'Risk parameters'!$J$5:$J$94,0))*'Risk parameters'!$B$37) -> 0 | T41: =IF($B41="",0,SUMPRODUCT(('Failure rates'!U$3:U$12)*('Failure rates'!$C$3:$C$12=$C41)*('Failure rates'!$B$3:$B$12=$B41))*INDEX('Risk parameters'!$L$5:$L$94,MATCH($B41,'Risk parameters'!$J$5:$J$94,0))*'Risk parameters'!$B$37) -> 0 | U41: =IF($B41="",0,SUMPRODUCT(('Failure rates'!V$3:V$12)*('Failure rates'!$C$3:$C$12=$C41)*('Failure rates'!$B$3:$B$12=$B41))*INDEX('Risk parameters'!$L$5:$L$94,MATCH($B41,'Risk parameters'!$J$5:$J$94,0))*'Risk parameters'!$B$37) -> 0 | V41: =IF($B41="",0,SUMPRODUCT(('Failure rates'!W$3:W$12)*('Failure rates'!$C$3:$C$12=$C41)*('Failure rates'!$B$3:$B$12=$B41))*INDEX('Risk parameters'!$L$5:$L$94,MATCH($B41,'Risk parameters'!$J$5:$J$94,0))*'Risk parameters'!$B$37) -> 0 | W41: =IF($B41="",0,SUMPRODUCT(('Failure rates'!X$3:X$12)*('Failure rates'!$C$3:$C$12=$C41)*('Failure rates'!$B$3:$B$12=$B41))*INDEX('Risk parameters'!$L$5:$L$94,MATCH($B41,'Risk parameters'!$J$5:$J$94,0))*'Risk parameters'!$B$37) -> 0 | X41: =IF($B41="",0,SUMPRODUCT(('Failure rates'!Y$3:Y$12)*('Failure rates'!$C$3:$C$12=$C41)*('Failure rates'!$B$3:$B$12=$B41))*INDEX('Risk parameters'!$L$5:$L$94,MATCH($B41,'Risk parameters'!$J$5:$J$94,0))*'Risk parameters'!$B$37) -> 0
A42: Feeder (M2-Corrective) | B42: =IF('Risk parameters'!F34="","",'Risk parameters'!F34) ->  | C42: Oil-filled Cable | D42: =IF($B42="",0,SUMPRODUCT(('Failure rates'!E$3:E$12)*('Failure rates'!$C$3:$C$12=$C42)*('Failure rates'!$B$3:$B$12=$B42))*INDEX('Risk parameters'!$L$5:$L$94,MATCH($B42,'Risk parameters'!$J$5:$J$94,0))*'Risk parameters'!$B$37) -> 0 | E42: =IF($B42="",0,SUMPRODUCT(('Failure rates'!F$3:F$12)*('Failure rates'!$C$3:$C$12=$C42)*('Failure rates'!$B$3:$B$12=$B42))*INDEX('Risk parameters'!$L$5:$L$94,MATCH($B42,'Risk parameters'!$J$5:$J$94,0))*'Risk parameters'!$B$37) -> 0 | F42: =IF($B42="",0,SUMPRODUCT(('Failure rates'!G$3:G$12)*('Failure rates'!$C$3:$C$12=$C42)*('Failure rates'!$B$3:$B$12=$B42))*INDEX('Risk parameters'!$L$5:$L$94,MATCH($B42,'Risk parameters'!$J$5:$J$94,0))*'Risk parameters'!$B$37) -> 0 | G42: =IF($B42="",0,SUMPRODUCT(('Failure rates'!H$3:H$12)*('Failure rates'!$C$3:$C$12=$C42)*('Failure rates'!$B$3:$B$12=$B42))*INDEX('Risk parameters'!$L$5:$L$94,MATCH($B42,'Risk parameters'!$J$5:$J$94,0))*'Risk parameters'!$B$37) -> 0 | H42: =IF($B42="",0,SUMPRODUCT(('Failure rates'!I$3:I$12)*('Failure rates'!$C$3:$C$12=$C42)*('Failure rates'!$B$3:$B$12=$B42))*INDEX('Risk parameters'!$L$5:$L$94,MATCH($B42,'Risk parameters'!$J$5:$J$94,0))*'Risk parameters'!$B$37) -> 0 | I42: =IF($B42="",0,SUMPRODUCT(('Failure rates'!J$3:J$12)*('Failure rates'!$C$3:$C$12=$C42)*('Failure rates'!$B$3:$B$12=$B42))*INDEX('Risk parameters'!$L$5:$L$94,MATCH($B42,'Risk parameters'!$J$5:$J$94,0))*'Risk parameters'!$B$37) -> 0 | J42: =IF($B42="",0,SUMPRODUCT(('Failure rates'!K$3:K$12)*('Failure rates'!$C$3:$C$12=$C42)*('Failure rates'!$B$3:$B$12=$B42))*INDEX('Risk parameters'!$L$5:$L$94,MATCH($B42,'Risk parameters'!$J$5:$J$94,0))*'Risk parameters'!$B$37) -> 0 | K42: =IF($B42="",0,SUMPRODUCT(('Failure rates'!L$3:L$12)*('Failure rates'!$C$3:$C$12=$C42)*('Failure rates'!$B$3:$B$12=$B42))*INDEX('Risk parameters'!$L$5:$L$94,MATCH($B42,'Risk parameters'!$J$5:$J$94,0))*'Risk parameters'!$B$37) -> 0 | L42: =IF($B42="",0,SUMPRODUCT(('Failure rates'!M$3:M$12)*('Failure rates'!$C$3:$C$12=$C42)*('Failure rates'!$B$3:$B$12=$B42))*INDEX('Risk parameters'!$L$5:$L$94,MATCH($B42,'Risk parameters'!$J$5:$J$94,0))*'Risk parameters'!$B$37) -> 0 | M42: =IF($B42="",0,SUMPRODUCT(('Failure rates'!N$3:N$12)*('Failure rates'!$C$3:$C$12=$C42)*('Failure rates'!$B$3:$B$12=$B42))*INDEX('Risk parameters'!$L$5:$L$94,MATCH($B42,'Risk parameters'!$J$5:$J$94,0))*'Risk parameters'!$B$37) -> 0 | N42: =IF($B42="",0,SUMPRODUCT(('Failure rates'!O$3:O$12)*('Failure rates'!$C$3:$C$12=$C42)*('Failure rates'!$B$3:$B$12=$B42))*INDEX('Risk parameters'!$L$5:$L$94,MATCH($B42,'Risk parameters'!$J$5:$J$94,0))*'Risk parameters'!$B$37) -> 0 | O42: =IF($B42="",0,SUMPRODUCT(('Failure rates'!P$3:P$12)*('Failure rates'!$C$3:$C$12=$C42)*('Failure rates'!$B$3:$B$12=$B42))*INDEX('Risk parameters'!$L$5:$L$94,MATCH($B42,'Risk parameters'!$J$5:$J$94,0))*'Risk parameters'!$B$37) -> 0 | P42: =IF($B42="",0,SUMPRODUCT(('Failure rates'!Q$3:Q$12)*('Failure rates'!$C$3:$C$12=$C42)*('Failure rates'!$B$3:$B$12=$B42))*INDEX('Risk parameters'!$L$5:$L$94,MATCH($B42,'Risk parameters'!$J$5:$J$94,0))*'Risk parameters'!$B$37) -> 0 | Q42: =IF($B42="",0,SUMPRODUCT(('Failure rates'!R$3:R$12)*('Failure rates'!$C$3:$C$12=$C42)*('Failure rates'!$B$3:$B$12=$B42))*INDEX('Risk parameters'!$L$5:$L$94,MATCH($B42,'Risk parameters'!$J$5:$J$94,0))*'Risk parameters'!$B$37) -> 0 | R42: =IF($B42="",0,SUMPRODUCT(('Failure rates'!S$3:S$12)*('Failure rates'!$C$3:$C$12=$C42)*('Failure rates'!$B$3:$B$12=$B42))*INDEX('Risk parameters'!$L$5:$L$94,MATCH($B42,'Risk parameters'!$J$5:$J$94,0))*'Risk parameters'!$B$37) -> 0 | S42: =IF($B42="",0,SUMPRODUCT(('Failure rates'!T$3:T$12)*('Failure rates'!$C$3:$C$12=$C42)*('Failure rates'!$B$3:$B$12=$B42))*INDEX('Risk parameters'!$L$5:$L$94,MATCH($B42,'Risk parameters'!$J$5:$J$94,0))*'Risk parameters'!$B$37) -> 0 | T42: =IF($B42="",0,SUMPRODUCT(('Failure rates'!U$3:U$12)*('Failure rates'!$C$3:$C$12=$C42)*('Failure rates'!$B$3:$B$12=$B42))*INDEX('Risk parameters'!$L$5:$L$94,MATCH($B42,'Risk parameters'!$J$5:$J$94,0))*'Risk parameters'!$B$37) -> 0 | U42: =IF($B42="",0,SUMPRODUCT(('Failure rates'!V$3:V$12)*('Failure rates'!$C$3:$C$12=$C42)*('Failure rates'!$B$3:$B$12=$B42))*INDEX('Risk parameters'!$L$5:$L$94,MATCH($B42,'Risk parameters'!$J$5:$J$94,0))*'Risk parameters'!$B$37) -> 0 | V42: =IF($B42="",0,SUMPRODUCT(('Failure rates'!W$3:W$12)*('Failure rates'!$C$3:$C$12=$C42)*('Failure rates'!$B$3:$B$12=$B42))*INDEX('Risk parameters'!$L$5:$L$94,MATCH($B42,'Risk parameters'!$J$5:$J$94,0))*'Risk parameters'!$B$37) -> 0 | W42: =IF($B42="",0,SUMPRODUCT(('Failure rates'!X$3:X$12)*('Failure rates'!$C$3:$C$12=$C42)*('Failure rates'!$B$3:$B$12=$B42))*INDEX('Risk parameters'!$L$5:$L$94,MATCH($B42,'Risk parameters'!$J$5:$J$94,0))*'Risk parameters'!$B$37) -> 0 | X42: =IF($B42="",0,SUMPRODUCT(('Failure rates'!Y$3:Y$12)*('Failure rates'!$C$3:$C$12=$C42)*('Failure rates'!$B$3:$B$12=$B42))*INDEX('Risk parameters'!$L$5:$L$94,MATCH($B42,'Risk parameters'!$J$5:$J$94,0))*'Risk parameters'!$B$37) -> 0
A43: Feeder (M2-Corrective) | B43: =IF('Risk parameters'!F35="","",'Risk parameters'!F35) ->  | C43: Oil-filled Cable | D43: =IF($B43="",0,SUMPRODUCT(('Failure rates'!E$3:E$12)*('Failure rates'!$C$3:$C$12=$C43)*('Failure rates'!$B$3:$B$12=$B43))*INDEX('Risk parameters'!$L$5:$L$94,MATCH($B43,'Risk parameters'!$J$5:$J$94,0))*'Risk parameters'!$B$37) -> 0 | E43: =IF($B43="",0,SUMPRODUCT(('Failure rates'!F$3:F$12)*('Failure rates'!$C$3:$C$12=$C43)*('Failure rates'!$B$3:$B$12=$B43))*INDEX('Risk parameters'!$L$5:$L$94,MATCH($B43,'Risk parameters'!$J$5:$J$94,0))*'Risk parameters'!$B$37) -> 0 | F43: =IF($B43="",0,SUMPRODUCT(('Failure rates'!G$3:G$12)*('Failure rates'!$C$3:$C$12=$C43)*('Failure rates'!$B$3:$B$12=$B43))*INDEX('Risk parameters'!$L$5:$L$94,MATCH($B43,'Risk parameters'!$J$5:$J$94,0))*'Risk parameters'!$B$37) -> 0 | G43: =IF($B43="",0,SUMPRODUCT(('Failure rates'!H$3:H$12)*('Failure rates'!$C$3:$C$12=$C43)*('Failure rates'!$B$3:$B$12=$B43))*INDEX('Risk parameters'!$L$5:$L$94,MATCH($B43,'Risk parameters'!$J$5:$J$94,0))*'Risk parameters'!$B$37) -> 0 | H43: =IF($B43="",0,SUMPRODUCT(('Failure rates'!I$3:I$12)*('Failure rates'!$C$3:$C$12=$C43)*('Failure rates'!$B$3:$B$12=$B43))*INDEX('Risk parameters'!$L$5:$L$94,MATCH($B43,'Risk parameters'!$J$5:$J$94,0))*'Risk parameters'!$B$37) -> 0 | I43: =IF($B43="",0,SUMPRODUCT(('Failure rates'!J$3:J$12)*('Failure rates'!$C$3:$C$12=$C43)*('Failure rates'!$B$3:$B$12=$B43))*INDEX('Risk parameters'!$L$5:$L$94,MATCH($B43,'Risk parameters'!$J$5:$J$94,0))*'Risk parameters'!$B$37) -> 0 | J43: =IF($B43="",0,SUMPRODUCT(('Failure rates'!K$3:K$12)*('Failure rates'!$C$3:$C$12=$C43)*('Failure rates'!$B$3:$B$12=$B43))*INDEX('Risk parameters'!$L$5:$L$94,MATCH($B43,'Risk parameters'!$J$5:$J$94,0))*'Risk parameters'!$B$37) -> 0 | K43: =IF($B43="",0,SUMPRODUCT(('Failure rates'!L$3:L$12)*('Failure rates'!$C$3:$C$12=$C43)*('Failure rates'!$B$3:$B$12=$B43))*INDEX('Risk parameters'!$L$5:$L$94,MATCH($B43,'Risk parameters'!$J$5:$J$94,0))*'Risk parameters'!$B$37) -> 0 | L43: =IF($B43="",0,SUMPRODUCT(('Failure rates'!M$3:M$12)*('Failure rates'!$C$3:$C$12=$C43)*('Failure rates'!$B$3:$B$12=$B43))*INDEX('Risk parameters'!$L$5:$L$94,MATCH($B43,'Risk parameters'!$J$5:$J$94,0))*'Risk parameters'!$B$37) -> 0 | M43: =IF($B43="",0,SUMPRODUCT(('Failure rates'!N$3:N$12)*('Failure rates'!$C$3:$C$12=$C43)*('Failure rates'!$B$3:$B$12=$B43))*INDEX('Risk parameters'!$L$5:$L$94,MATCH($B43,'Risk parameters'!$J$5:$J$94,0))*'Risk parameters'!$B$37) -> 0 | N43: =IF($B43="",0,SUMPRODUCT(('Failure rates'!O$3:O$12)*('Failure rates'!$C$3:$C$12=$C43)*('Failure rates'!$B$3:$B$12=$B43))*INDEX('Risk parameters'!$L$5:$L$94,MATCH($B43,'Risk parameters'!$J$5:$J$94,0))*'Risk parameters'!$B$37) -> 0 | O43: =IF($B43="",0,SUMPRODUCT(('Failure rates'!P$3:P$12)*('Failure rates'!$C$3:$C$12=$C43)*('Failure rates'!$B$3:$B$12=$B43))*INDEX('Risk parameters'!$L$5:$L$94,MATCH($B43,'Risk parameters'!$J$5:$J$94,0))*'Risk parameters'!$B$37) -> 0 | P43: =IF($B43="",0,SUMPRODUCT(('Failure rates'!Q$3:Q$12)*('Failure rates'!$C$3:$C$12=$C43)*('Failure rates'!$B$3:$B$12=$B43))*INDEX('Risk parameters'!$L$5:$L$94,MATCH($B43,'Risk parameters'!$J$5:$J$94,0))*'Risk parameters'!$B$37) -> 0 | Q43: =IF($B43="",0,SUMPRODUCT(('Failure rates'!R$3:R$12)*('Failure rates'!$C$3:$C$12=$C43)*('Failure rates'!$B$3:$B$12=$B43))*INDEX('Risk parameters'!$L$5:$L$94,MATCH($B43,'Risk parameters'!$J$5:$J$94,0))*'Risk parameters'!$B$37) -> 0 | R43: =IF($B43="",0,SUMPRODUCT(('Failure rates'!S$3:S$12)*('Failure rates'!$C$3:$C$12=$C43)*('Failure rates'!$B$3:$B$12=$B43))*INDEX('Risk parameters'!$L$5:$L$94,MATCH($B43,'Risk parameters'!$J$5:$J$94,0))*'Risk parameters'!$B$37) -> 0 | S43: =IF($B43="",0,SUMPRODUCT(('Failure rates'!T$3:T$12)*('Failure rates'!$C$3:$C$12=$C43)*('Failure rates'!$B$3:$B$12=$B43))*INDEX('Risk parameters'!$L$5:$L$94,MATCH($B43,'Risk parameters'!$J$5:$J$94,0))*'Risk parameters'!$B$37) -> 0 | T43: =IF($B43="",0,SUMPRODUCT(('Failure rates'!U$3:U$12)*('Failure rates'!$C$3:$C$12=$C43)*('Failure rates'!$B$3:$B$12=$B43))*INDEX('Risk parameters'!$L$5:$L$94,MATCH($B43,'Risk parameters'!$J$5:$J$94,0))*'Risk parameters'!$B$37) -> 0 | U43: =IF($B43="",0,SUMPRODUCT(('Failure rates'!V$3:V$12)*('Failure rates'!$C$3:$C$12=$C43)*('Failure rates'!$B$3:$B$12=$B43))*INDEX('Risk parameters'!$L$5:$L$94,MATCH($B43,'Risk parameters'!$J$5:$J$94,0))*'Risk parameters'!$B$37) -> 0 | V43: =IF($B43="",0,SUMPRODUCT(('Failure rates'!W$3:W$12)*('Failure rates'!$C$3:$C$12=$C43)*('Failure rates'!$B$3:$B$12=$B43))*INDEX('Risk parameters'!$L$5:$L$94,MATCH($B43,'Risk parameters'!$J$5:$J$94,0))*'Risk parameters'!$B$37) -> 0 | W43: =IF($B43="",0,SUMPRODUCT(('Failure rates'!X$3:X$12)*('Failure rates'!$C$3:$C$12=$C43)*('Failure rates'!$B$3:$B$12=$B43))*INDEX('Risk parameters'!$L$5:$L$94,MATCH($B43,'Risk parameters'!$J$5:$J$94,0))*'Risk parameters'!$B$37) -> 0 | X43: =IF($B43="",0,SUMPRODUCT(('Failure rates'!Y$3:Y$12)*('Failure rates'!$C$3:$C$12=$C43)*('Failure rates'!$B$3:$B$12=$B43))*INDEX('Risk parameters'!$L$5:$L$94,MATCH($B43,'Risk parameters'!$J$5:$J$94,0))*'Risk parameters'!$B$37) -> 0
A44: Feeder (M3-Third Party) | B44: =IF('Risk parameters'!F31="","",'Risk parameters'!F31) -> 9E1 | C44: Oil-filled Cable | D44: =IF($B44="",0,SUMPRODUCT(('Failure rates'!E$16:E$25)*('Failure rates'!$C$16:$C$25=$C44)*('Failure rates'!$B$16:$B$25=$B44))*INDEX('Risk parameters'!$M$5:$M$94,MATCH($B44,'Risk parameters'!$J$5:$J$94,0))*'Risk parameters'!$B$37) -> 36.60754683 | E44: =IF($B44="",0,SUMPRODUCT(('Failure rates'!F$16:F$25)*('Failure rates'!$C$16:$C$25=$C44)*('Failure rates'!$B$16:$B$25=$B44))*INDEX('Risk parameters'!$M$5:$M$94,MATCH($B44,'Risk parameters'!$J$5:$J$94,0))*'Risk parameters'!$B$37) -> 41.27345647 | F44: =IF($B44="",0,SUMPRODUCT(('Failure rates'!G$16:G$25)*('Failure rates'!$C$16:$C$25=$C44)*('Failure rates'!$B$16:$B$25=$B44))*INDEX('Risk parameters'!$M$5:$M$94,MATCH($B44,'Risk parameters'!$J$5:$J$94,0))*'Risk parameters'!$B$37) -> 46.40335036 | G44: =IF($B44="",0,SUMPRODUCT(('Failure rates'!H$16:H$25)*('Failure rates'!$C$16:$C$25=$C44)*('Failure rates'!$B$16:$B$25=$B44))*INDEX('Risk parameters'!$M$5:$M$94,MATCH($B44,'Risk parameters'!$J$5:$J$94,0))*'Risk parameters'!$B$37) -> 52.04712473 | H44: =IF($B44="",0,SUMPRODUCT(('Failure rates'!I$16:I$25)*('Failure rates'!$C$16:$C$25=$C44)*('Failure rates'!$B$16:$B$25=$B44))*INDEX('Risk parameters'!$M$5:$M$94,MATCH($B44,'Risk parameters'!$J$5:$J$94,0))*'Risk parameters'!$B$37) -> 58.20938282 | I44: =IF($B44="",0,SUMPRODUCT(('Failure rates'!J$16:J$25)*('Failure rates'!$C$16:$C$25=$C44)*('Failure rates'!$B$16:$B$25=$B44))*INDEX('Risk parameters'!$M$5:$M$94,MATCH($B44,'Risk parameters'!$J$5:$J$94,0))*'Risk parameters'!$B$37) -> 64.94184721 | J44: =IF($B44="",0,SUMPRODUCT(('Failure rates'!K$16:K$25)*('Failure rates'!$C$16:$C$25=$C44)*('Failure rates'!$B$16:$B$25=$B44))*INDEX('Risk parameters'!$M$5:$M$94,MATCH($B44,'Risk parameters'!$J$5:$J$94,0))*'Risk parameters'!$B$37) -> 72.28319017 | K44: =IF($B44="",0,SUMPRODUCT(('Failure rates'!L$16:L$25)*('Failure rates'!$C$16:$C$25=$C44)*('Failure rates'!$B$16:$B$25=$B44))*INDEX('Risk parameters'!$M$5:$M$94,MATCH($B44,'Risk parameters'!$J$5:$J$94,0))*'Risk parameters'!$B$37) -> 80.29661503 | L44: =IF($B44="",0,SUMPRODUCT(('Failure rates'!M$16:M$25)*('Failure rates'!$C$16:$C$25=$C44)*('Failure rates'!$B$16:$B$25=$B44))*INDEX('Risk parameters'!$M$5:$M$94,MATCH($B44,'Risk parameters'!$J$5:$J$94,0))*'Risk parameters'!$B$37) -> 88.98055829 | M44: =IF($B44="",0,SUMPRODUCT(('Failure rates'!N$16:N$25)*('Failure rates'!$C$16:$C$25=$C44)*('Failure rates'!$B$16:$B$25=$B44))*INDEX('Risk parameters'!$M$5:$M$94,MATCH($B44,'Risk parameters'!$J$5:$J$94,0))*'Risk parameters'!$B$37) -> 98.39992087 | N44: =IF($B44="",0,SUMPRODUCT(('Failure rates'!O$16:O$25)*('Failure rates'!$C$16:$C$25=$C44)*('Failure rates'!$B$16:$B$25=$B44))*INDEX('Risk parameters'!$M$5:$M$94,MATCH($B44,'Risk parameters'!$J$5:$J$94,0))*'Risk parameters'!$B$37) -> 108.6004371 | O44: =IF($B44="",0,SUMPRODUCT(('Failure rates'!P$16:P$25)*('Failure rates'!$C$16:$C$25=$C44)*('Failure rates'!$B$16:$B$25=$B44))*INDEX('Risk parameters'!$M$5:$M$94,MATCH($B44,'Risk parameters'!$J$5:$J$94,0))*'Risk parameters'!$B$37) -> 119.6610982 | P44: =IF($B44="",0,SUMPRODUCT(('Failure rates'!Q$16:Q$25)*('Failure rates'!$C$16:$C$25=$C44)*('Failure rates'!$B$16:$B$25=$B44))*INDEX('Risk parameters'!$M$5:$M$94,MATCH($B44,'Risk parameters'!$J$5:$J$94,0))*'Risk parameters'!$B$37) -> 131.5710632 | Q44: =IF($B44="",0,SUMPRODUCT(('Failure rates'!R$16:R$25)*('Failure rates'!$C$16:$C$25=$C44)*('Failure rates'!$B$16:$B$25=$B44))*INDEX('Risk parameters'!$M$5:$M$94,MATCH($B44,'Risk parameters'!$J$5:$J$94,0))*'Risk parameters'!$B$37) -> 144.4108147 | R44: =IF($B44="",0,SUMPRODUCT(('Failure rates'!S$16:S$25)*('Failure rates'!$C$16:$C$25=$C44)*('Failure rates'!$B$16:$B$25=$B44))*INDEX('Risk parameters'!$M$5:$M$94,MATCH($B44,'Risk parameters'!$J$5:$J$94,0))*'Risk parameters'!$B$37) -> 158.2337395 | S44: =IF($B44="",0,SUMPRODUCT(('Failure rates'!T$16:T$25)*('Failure rates'!$C$16:$C$25=$C44)*('Failure rates'!$B$16:$B$25=$B44))*INDEX('Risk parameters'!$M$5:$M$94,MATCH($B44,'Risk parameters'!$J$5:$J$94,0))*'Risk parameters'!$B$37) -> 173.1374234 | T44: =IF($B44="",0,SUMPRODUCT(('Failure rates'!U$16:U$25)*('Failure rates'!$C$16:$C$25=$C44)*('Failure rates'!$B$16:$B$25=$B44))*INDEX('Risk parameters'!$M$5:$M$94,MATCH($B44,'Risk parameters'!$J$5:$J$94,0))*'Risk parameters'!$B$37) -> 189.0979914 | U44: =IF($B44="",0,SUMPRODUCT(('Failure rates'!V$16:V$25)*('Failure rates'!$C$16:$C$25=$C44)*('Failure rates'!$B$16:$B$25=$B44))*INDEX('Risk parameters'!$M$5:$M$94,MATCH($B44,'Risk parameters'!$J$5:$J$94,0))*'Risk parameters'!$B$37) -> 206.2142301 | V44: =IF($B44="",0,SUMPRODUCT(('Failure rates'!W$16:W$25)*('Failure rates'!$C$16:$C$25=$C44)*('Failure rates'!$B$16:$B$25=$B44))*INDEX('Risk parameters'!$M$5:$M$94,MATCH($B44,'Risk parameters'!$J$5:$J$94,0))*'Risk parameters'!$B$37) -> 224.5477693 | W44: =IF($B44="",0,SUMPRODUCT(('Failure rates'!X$16:X$25)*('Failure rates'!$C$16:$C$25=$C44)*('Failure rates'!$B$16:$B$25=$B44))*INDEX('Risk parameters'!$M$5:$M$94,MATCH($B44,'Risk parameters'!$J$5:$J$94,0))*'Risk parameters'!$B$37) -> 244.2179482 | X44: =IF($B44="",0,SUMPRODUCT(('Failure rates'!Y$16:Y$25)*('Failure rates'!$C$16:$C$25=$C44)*('Failure rates'!$B$16:$B$25=$B44))*INDEX('Risk parameters'!$M$5:$M$94,MATCH($B44,'Risk parameters'!$J$5:$J$94,0))*'Risk parameters'!$B$37) -> 265.1834024
A45: Feeder (M3-Third Party) | B45: =IF('Risk parameters'!F32="","",'Risk parameters'!F32) -> 9E2 | C45: Oil-filled Cable | D45: =IF($B45="",0,SUMPRODUCT(('Failure rates'!E$16:E$25)*('Failure rates'!$C$16:$C$25=$C45)*('Failure rates'!$B$16:$B$25=$B45))*INDEX('Risk parameters'!$M$5:$M$94,MATCH($B45,'Risk parameters'!$J$5:$J$94,0))*'Risk parameters'!$B$37) -> 35.03393376 | E45: =IF($B45="",0,SUMPRODUCT(('Failure rates'!F$16:F$25)*('Failure rates'!$C$16:$C$25=$C45)*('Failure rates'!$B$16:$B$25=$B45))*INDEX('Risk parameters'!$M$5:$M$94,MATCH($B45,'Risk parameters'!$J$5:$J$94,0))*'Risk parameters'!$B$37) -> 39.45936503 | F45: =IF($B45="",0,SUMPRODUCT(('Failure rates'!G$16:G$25)*('Failure rates'!$C$16:$C$25=$C45)*('Failure rates'!$B$16:$B$25=$B45))*INDEX('Risk parameters'!$M$5:$M$94,MATCH($B45,'Risk parameters'!$J$5:$J$94,0))*'Risk parameters'!$B$37) -> 44.3199389 | G45: =IF($B45="",0,SUMPRODUCT(('Failure rates'!H$16:H$25)*('Failure rates'!$C$16:$C$25=$C45)*('Failure rates'!$B$16:$B$25=$B45))*INDEX('Risk parameters'!$M$5:$M$94,MATCH($B45,'Risk parameters'!$J$5:$J$94,0))*'Risk parameters'!$B$37) -> 49.66210948 | H45: =IF($B45="",0,SUMPRODUCT(('Failure rates'!I$16:I$25)*('Failure rates'!$C$16:$C$25=$C45)*('Failure rates'!$B$16:$B$25=$B45))*INDEX('Risk parameters'!$M$5:$M$94,MATCH($B45,'Risk parameters'!$J$5:$J$94,0))*'Risk parameters'!$B$37) -> 55.48939406 | I45: =IF($B45="",0,SUMPRODUCT(('Failure rates'!J$16:J$25)*('Failure rates'!$C$16:$C$25=$C45)*('Failure rates'!$B$16:$B$25=$B45))*INDEX('Risk parameters'!$M$5:$M$94,MATCH($B45,'Risk parameters'!$J$5:$J$94,0))*'Risk parameters'!$B$37) -> 61.84984732 | J45: =IF($B45="",0,SUMPRODUCT(('Failure rates'!K$16:K$25)*('Failure rates'!$C$16:$C$25=$C45)*('Failure rates'!$B$16:$B$25=$B45))*INDEX('Risk parameters'!$M$5:$M$94,MATCH($B45,'Risk parameters'!$J$5:$J$94,0))*'Risk parameters'!$B$37) -> 68.77908816 | K45: =IF($B45="",0,SUMPRODUCT(('Failure rates'!L$16:L$25)*('Failure rates'!$C$16:$C$25=$C45)*('Failure rates'!$B$16:$B$25=$B45))*INDEX('Risk parameters'!$M$5:$M$94,MATCH($B45,'Risk parameters'!$J$5:$J$94,0))*'Risk parameters'!$B$37) -> 76.33578594 | L45: =IF($B45="",0,SUMPRODUCT(('Failure rates'!M$16:M$25)*('Failure rates'!$C$16:$C$25=$C45)*('Failure rates'!$B$16:$B$25=$B45))*INDEX('Risk parameters'!$M$5:$M$94,MATCH($B45,'Risk parameters'!$J$5:$J$94,0))*'Risk parameters'!$B$37) -> 84.51746567 | M45: =IF($B45="",0,SUMPRODUCT(('Failure rates'!N$16:N$25)*('Failure rates'!$C$16:$C$25=$C45)*('Failure rates'!$B$16:$B$25=$B45))*INDEX('Risk parameters'!$M$5:$M$94,MATCH($B45,'Risk parameters'!$J$5:$J$94,0))*'Risk parameters'!$B$37) -> 93.38426074 | N45: =IF($B45="",0,SUMPRODUCT(('Failure rates'!O$16:O$25)*('Failure rates'!$C$16:$C$25=$C45)*('Failure rates'!$B$16:$B$25=$B45))*INDEX('Risk parameters'!$M$5:$M$94,MATCH($B45,'Risk parameters'!$J$5:$J$94,0))*'Risk parameters'!$B$37) -> 102.978139 | O45: =IF($B45="",0,SUMPRODUCT(('Failure rates'!P$16:P$25)*('Failure rates'!$C$16:$C$25=$C45)*('Failure rates'!$B$16:$B$25=$B45))*INDEX('Risk parameters'!$M$5:$M$94,MATCH($B45,'Risk parameters'!$J$5:$J$94,0))*'Risk parameters'!$B$37) -> 113.3722295 | P45: =IF($B45="",0,SUMPRODUCT(('Failure rates'!Q$16:Q$25)*('Failure rates'!$C$16:$C$25=$C45)*('Failure rates'!$B$16:$B$25=$B45))*INDEX('Risk parameters'!$M$5:$M$94,MATCH($B45,'Risk parameters'!$J$5:$J$94,0))*'Risk parameters'!$B$37) -> 124.5551696 | Q45: =IF($B45="",0,SUMPRODUCT(('Failure rates'!R$16:R$25)*('Failure rates'!$C$16:$C$25=$C45)*('Failure rates'!$B$16:$B$25=$B45))*INDEX('Risk parameters'!$M$5:$M$94,MATCH($B45,'Risk parameters'!$J$5:$J$94,0))*'Risk parameters'!$B$37) -> 136.6013454 | R45: =IF($B45="",0,SUMPRODUCT(('Failure rates'!S$16:S$25)*('Failure rates'!$C$16:$C$25=$C45)*('Failure rates'!$B$16:$B$25=$B45))*INDEX('Risk parameters'!$M$5:$M$94,MATCH($B45,'Risk parameters'!$J$5:$J$94,0))*'Risk parameters'!$B$37) -> 149.5595797 | S45: =IF($B45="",0,SUMPRODUCT(('Failure rates'!T$16:T$25)*('Failure rates'!$C$16:$C$25=$C45)*('Failure rates'!$B$16:$B$25=$B45))*INDEX('Risk parameters'!$M$5:$M$94,MATCH($B45,'Risk parameters'!$J$5:$J$94,0))*'Risk parameters'!$B$37) -> 163.5199962 | T45: =IF($B45="",0,SUMPRODUCT(('Failure rates'!U$16:U$25)*('Failure rates'!$C$16:$C$25=$C45)*('Failure rates'!$B$16:$B$25=$B45))*INDEX('Risk parameters'!$M$5:$M$94,MATCH($B45,'Risk parameters'!$J$5:$J$94,0))*'Risk parameters'!$B$37) -> 178.458868 | U45: =IF($B45="",0,SUMPRODUCT(('Failure rates'!V$16:V$25)*('Failure rates'!$C$16:$C$25=$C45)*('Failure rates'!$B$16:$B$25=$B45))*INDEX('Risk parameters'!$M$5:$M$94,MATCH($B45,'Risk parameters'!$J$5:$J$94,0))*'Risk parameters'!$B$37) -> 194.4672923 | V45: =IF($B45="",0,SUMPRODUCT(('Failure rates'!W$16:W$25)*('Failure rates'!$C$16:$C$25=$C45)*('Failure rates'!$B$16:$B$25=$B45))*INDEX('Risk parameters'!$M$5:$M$94,MATCH($B45,'Risk parameters'!$J$5:$J$94,0))*'Risk parameters'!$B$37) -> 211.6014514 | W45: =IF($B45="",0,SUMPRODUCT(('Failure rates'!X$16:X$25)*('Failure rates'!$C$16:$C$25=$C45)*('Failure rates'!$B$16:$B$25=$B45))*INDEX('Risk parameters'!$M$5:$M$94,MATCH($B45,'Risk parameters'!$J$5:$J$94,0))*'Risk parameters'!$B$37) -> 229.9713113 | X45: =IF($B45="",0,SUMPRODUCT(('Failure rates'!Y$16:Y$25)*('Failure rates'!$C$16:$C$25=$C45)*('Failure rates'!$B$16:$B$25=$B45))*INDEX('Risk parameters'!$M$5:$M$94,MATCH($B45,'Risk parameters'!$J$5:$J$94,0))*'Risk parameters'!$B$37) -> 249.536678
A46: Feeder (M3-Third Party) | B46: =IF('Risk parameters'!F33="","",'Risk parameters'!F33) ->  | C46: Oil-filled Cable | D46: =IF($B46="",0,SUMPRODUCT(('Failure rates'!E$16:E$25)*('Failure rates'!$C$16:$C$25=$C46)*('Failure rates'!$B$16:$B$25=$B46))*INDEX('Risk parameters'!$M$5:$M$94,MATCH($B46,'Risk parameters'!$J$5:$J$94,0))*'Risk parameters'!$B$37) -> 0 | E46: =IF($B46="",0,SUMPRODUCT(('Failure rates'!F$16:F$25)*('Failure rates'!$C$16:$C$25=$C46)*('Failure rates'!$B$16:$B$25=$B46))*INDEX('Risk parameters'!$M$5:$M$94,MATCH($B46,'Risk parameters'!$J$5:$J$94,0))*'Risk parameters'!$B$37) -> 0 | F46: =IF($B46="",0,SUMPRODUCT(('Failure rates'!G$16:G$25)*('Failure rates'!$C$16:$C$25=$C46)*('Failure rates'!$B$16:$B$25=$B46))*INDEX('Risk parameters'!$M$5:$M$94,MATCH($B46,'Risk parameters'!$J$5:$J$94,0))*'Risk parameters'!$B$37) -> 0 | G46: =IF($B46="",0,SUMPRODUCT(('Failure rates'!H$16:H$25)*('Failure rates'!$C$16:$C$25=$C46)*('Failure rates'!$B$16:$B$25=$B46))*INDEX('Risk parameters'!$M$5:$M$94,MATCH($B46,'Risk parameters'!$J$5:$J$94,0))*'Risk parameters'!$B$37) -> 0 | H46: =IF($B46="",0,SUMPRODUCT(('Failure rates'!I$16:I$25)*('Failure rates'!$C$16:$C$25=$C46)*('Failure rates'!$B$16:$B$25=$B46))*INDEX('Risk parameters'!$M$5:$M$94,MATCH($B46,'Risk parameters'!$J$5:$J$94,0))*'Risk parameters'!$B$37) -> 0 | I46: =IF($B46="",0,SUMPRODUCT(('Failure rates'!J$16:J$25)*('Failure rates'!$C$16:$C$25=$C46)*('Failure rates'!$B$16:$B$25=$B46))*INDEX('Risk parameters'!$M$5:$M$94,MATCH($B46,'Risk parameters'!$J$5:$J$94,0))*'Risk parameters'!$B$37) -> 0 | J46: =IF($B46="",0,SUMPRODUCT(('Failure rates'!K$16:K$25)*('Failure rates'!$C$16:$C$25=$C46)*('Failure rates'!$B$16:$B$25=$B46))*INDEX('Risk parameters'!$M$5:$M$94,MATCH($B46,'Risk parameters'!$J$5:$J$94,0))*'Risk parameters'!$B$37) -> 0 | K46: =IF($B46="",0,SUMPRODUCT(('Failure rates'!L$16:L$25)*('Failure rates'!$C$16:$C$25=$C46)*('Failure rates'!$B$16:$B$25=$B46))*INDEX('Risk parameters'!$M$5:$M$94,MATCH($B46,'Risk parameters'!$J$5:$J$94,0))*'Risk parameters'!$B$37) -> 0 | L46: =IF($B46="",0,SUMPRODUCT(('Failure rates'!M$16:M$25)*('Failure rates'!$C$16:$C$25=$C46)*('Failure rates'!$B$16:$B$25=$B46))*INDEX('Risk parameters'!$M$5:$M$94,MATCH($B46,'Risk parameters'!$J$5:$J$94,0))*'Risk parameters'!$B$37) -> 0 | M46: =IF($B46="",0,SUMPRODUCT(('Failure rates'!N$16:N$25)*('Failure rates'!$C$16:$C$25=$C46)*('Failure rates'!$B$16:$B$25=$B46))*INDEX('Risk parameters'!$M$5:$M$94,MATCH($B46,'Risk parameters'!$J$5:$J$94,0))*'Risk parameters'!$B$37) -> 0 | N46: =IF($B46="",0,SUMPRODUCT(('Failure rates'!O$16:O$25)*('Failure rates'!$C$16:$C$25=$C46)*('Failure rates'!$B$16:$B$25=$B46))*INDEX('Risk parameters'!$M$5:$M$94,MATCH($B46,'Risk parameters'!$J$5:$J$94,0))*'Risk parameters'!$B$37) -> 0 | O46: =IF($B46="",0,SUMPRODUCT(('Failure rates'!P$16:P$25)*('Failure rates'!$C$16:$C$25=$C46)*('Failure rates'!$B$16:$B$25=$B46))*INDEX('Risk parameters'!$M$5:$M$94,MATCH($B46,'Risk parameters'!$J$5:$J$94,0))*'Risk parameters'!$B$37) -> 0 | P46: =IF($B46="",0,SUMPRODUCT(('Failure rates'!Q$16:Q$25)*('Failure rates'!$C$16:$C$25=$C46)*('Failure rates'!$B$16:$B$25=$B46))*INDEX('Risk parameters'!$M$5:$M$94,MATCH($B46,'Risk parameters'!$J$5:$J$94,0))*'Risk parameters'!$B$37) -> 0 | Q46: =IF($B46="",0,SUMPRODUCT(('Failure rates'!R$16:R$25)*('Failure rates'!$C$16:$C$25=$C46)*('Failure rates'!$B$16:$B$25=$B46))*INDEX('Risk parameters'!$M$5:$M$94,MATCH($B46,'Risk parameters'!$J$5:$J$94,0))*'Risk parameters'!$B$37) -> 0 | R46: =IF($B46="",0,SUMPRODUCT(('Failure rates'!S$16:S$25)*('Failure rates'!$C$16:$C$25=$C46)*('Failure rates'!$B$16:$B$25=$B46))*INDEX('Risk parameters'!$M$5:$M$94,MATCH($B46,'Risk parameters'!$J$5:$J$94,0))*'Risk parameters'!$B$37) -> 0 | S46: =IF($B46="",0,SUMPRODUCT(('Failure rates'!T$16:T$25)*('Failure rates'!$C$16:$C$25=$C46)*('Failure rates'!$B$16:$B$25=$B46))*INDEX('Risk parameters'!$M$5:$M$94,MATCH($B46,'Risk parameters'!$J$5:$J$94,0))*'Risk parameters'!$B$37) -> 0 | T46: =IF($B46="",0,SUMPRODUCT(('Failure rates'!U$16:U$25)*('Failure rates'!$C$16:$C$25=$C46)*('Failure rates'!$B$16:$B$25=$B46))*INDEX('Risk parameters'!$M$5:$M$94,MATCH($B46,'Risk parameters'!$J$5:$J$94,0))*'Risk parameters'!$B$37) -> 0 | U46: =IF($B46="",0,SUMPRODUCT(('Failure rates'!V$16:V$25)*('Failure rates'!$C$16:$C$25=$C46)*('Failure rates'!$B$16:$B$25=$B46))*INDEX('Risk parameters'!$M$5:$M$94,MATCH($B46,'Risk parameters'!$J$5:$J$94,0))*'Risk parameters'!$B$37) -> 0 | V46: =IF($B46="",0,SUMPRODUCT(('Failure rates'!W$16:W$25)*('Failure rates'!$C$16:$C$25=$C46)*('Failure rates'!$B$16:$B$25=$B46))*INDEX('Risk parameters'!$M$5:$M$94,MATCH($B46,'Risk parameters'!$J$5:$J$94,0))*'Risk parameters'!$B$37) -> 0 | W46: =IF($B46="",0,SUMPRODUCT(('Failure rates'!X$16:X$25)*('Failure rates'!$C$16:$C$25=$C46)*('Failure rates'!$B$16:$B$25=$B46))*INDEX('Risk parameters'!$M$5:$M$94,MATCH($B46,'Risk parameters'!$J$5:$J$94,0))*'Risk parameters'!$B$37) -> 0 | X46: =IF($B46="",0,SUMPRODUCT(('Failure rates'!Y$16:Y$25)*('Failure rates'!$C$16:$C$25=$C46)*('Failure rates'!$B$16:$B$25=$B46))*INDEX('Risk parameters'!$M$5:$M$94,MATCH($B46,'Risk parameters'!$J$5:$J$94,0))*'Risk parameters'!$B$37) -> 0
A47: Feeder (M3-Third Party) | B47: =IF('Risk parameters'!F34="","",'Risk parameters'!F34) ->  | C47: Oil-filled Cable | D47: =IF($B47="",0,SUMPRODUCT(('Failure rates'!E$16:E$25)*('Failure rates'!$C$16:$C$25=$C47)*('Failure rates'!$B$16:$B$25=$B47))*INDEX('Risk parameters'!$M$5:$M$94,MATCH($B47,'Risk parameters'!$J$5:$J$94,0))*'Risk parameters'!$B$37) -> 0 | E47: =IF($B47="",0,SUMPRODUCT(('Failure rates'!F$16:F$25)*('Failure rates'!$C$16:$C$25=$C47)*('Failure rates'!$B$16:$B$25=$B47))*INDEX('Risk parameters'!$M$5:$M$94,MATCH($B47,'Risk parameters'!$J$5:$J$94,0))*'Risk parameters'!$B$37) -> 0 | F47: =IF($B47="",0,SUMPRODUCT(('Failure rates'!G$16:G$25)*('Failure rates'!$C$16:$C$25=$C47)*('Failure rates'!$B$16:$B$25=$B47))*INDEX('Risk parameters'!$M$5:$M$94,MATCH($B47,'Risk parameters'!$J$5:$J$94,0))*'Risk parameters'!$B$37) -> 0 | G47: =IF($B47="",0,SUMPRODUCT(('Failure rates'!H$16:H$25)*('Failure rates'!$C$16:$C$25=$C47)*('Failure rates'!$B$16:$B$25=$B47))*INDEX('Risk parameters'!$M$5:$M$94,MATCH($B47,'Risk parameters'!$J$5:$J$94,0))*'Risk parameters'!$B$37) -> 0 | H47: =IF($B47="",0,SUMPRODUCT(('Failure rates'!I$16:I$25)*('Failure rates'!$C$16:$C$25=$C47)*('Failure rates'!$B$16:$B$25=$B47))*INDEX('Risk parameters'!$M$5:$M$94,MATCH($B47,'Risk parameters'!$J$5:$J$94,0))*'Risk parameters'!$B$37) -> 0 | I47: =IF($B47="",0,SUMPRODUCT(('Failure rates'!J$16:J$25)*('Failure rates'!$C$16:$C$25=$C47)*('Failure rates'!$B$16:$B$25=$B47))*INDEX('Risk parameters'!$M$5:$M$94,MATCH($B47,'Risk parameters'!$J$5:$J$94,0))*'Risk parameters'!$B$37) -> 0 | J47: =IF($B47="",0,SUMPRODUCT(('Failure rates'!K$16:K$25)*('Failure rates'!$C$16:$C$25=$C47)*('Failure rates'!$B$16:$B$25=$B47))*INDEX('Risk parameters'!$M$5:$M$94,MATCH($B47,'Risk parameters'!$J$5:$J$94,0))*'Risk parameters'!$B$37) -> 0 | K47: =IF($B47="",0,SUMPRODUCT(('Failure rates'!L$16:L$25)*('Failure rates'!$C$16:$C$25=$C47)*('Failure rates'!$B$16:$B$25=$B47))*INDEX('Risk parameters'!$M$5:$M$94,MATCH($B47,'Risk parameters'!$J$5:$J$94,0))*'Risk parameters'!$B$37) -> 0 | L47: =IF($B47="",0,SUMPRODUCT(('Failure rates'!M$16:M$25)*('Failure rates'!$C$16:$C$25=$C47)*('Failure rates'!$B$16:$B$25=$B47))*INDEX('Risk parameters'!$M$5:$M$94,MATCH($B47,'Risk parameters'!$J$5:$J$94,0))*'Risk parameters'!$B$37) -> 0 | M47: =IF($B47="",0,SUMPRODUCT(('Failure rates'!N$16:N$25)*('Failure rates'!$C$16:$C$25=$C47)*('Failure rates'!$B$16:$B$25=$B47))*INDEX('Risk parameters'!$M$5:$M$94,MATCH($B47,'Risk parameters'!$J$5:$J$94,0))*'Risk parameters'!$B$37) -> 0 | N47: =IF($B47="",0,SUMPRODUCT(('Failure rates'!O$16:O$25)*('Failure rates'!$C$16:$C$25=$C47)*('Failure rates'!$B$16:$B$25=$B47))*INDEX('Risk parameters'!$M$5:$M$94,MATCH($B47,'Risk parameters'!$J$5:$J$94,0))*'Risk parameters'!$B$37) -> 0 | O47: =IF($B47="",0,SUMPRODUCT(('Failure rates'!P$16:P$25)*('Failure rates'!$C$16:$C$25=$C47)*('Failure rates'!$B$16:$B$25=$B47))*INDEX('Risk parameters'!$M$5:$M$94,MATCH($B47,'Risk parameters'!$J$5:$J$94,0))*'Risk parameters'!$B$37) -> 0 | P47: =IF($B47="",0,SUMPRODUCT(('Failure rates'!Q$16:Q$25)*('Failure rates'!$C$16:$C$25=$C47)*('Failure rates'!$B$16:$B$25=$B47))*INDEX('Risk parameters'!$M$5:$M$94,MATCH($B47,'Risk parameters'!$J$5:$J$94,0))*'Risk parameters'!$B$37) -> 0 | Q47: =IF($B47="",0,SUMPRODUCT(('Failure rates'!R$16:R$25)*('Failure rates'!$C$16:$C$25=$C47)*('Failure rates'!$B$16:$B$25=$B47))*INDEX('Risk parameters'!$M$5:$M$94,MATCH($B47,'Risk parameters'!$J$5:$J$94,0))*'Risk parameters'!$B$37) -> 0 | R47: =IF($B47="",0,SUMPRODUCT(('Failure rates'!S$16:S$25)*('Failure rates'!$C$16:$C$25=$C47)*('Failure rates'!$B$16:$B$25=$B47))*INDEX('Risk parameters'!$M$5:$M$94,MATCH($B47,'Risk parameters'!$J$5:$J$94,0))*'Risk parameters'!$B$37) -> 0 | S47: =IF($B47="",0,SUMPRODUCT(('Failure rates'!T$16:T$25)*('Failure rates'!$C$16:$C$25=$C47)*('Failure rates'!$B$16:$B$25=$B47))*INDEX('Risk parameters'!$M$5:$M$94,MATCH($B47,'Risk parameters'!$J$5:$J$94,0))*'Risk parameters'!$B$37) -> 0 | T47: =IF($B47="",0,SUMPRODUCT(('Failure rates'!U$16:U$25)*('Failure rates'!$C$16:$C$25=$C47)*('Failure rates'!$B$16:$B$25=$B47))*INDEX('Risk parameters'!$M$5:$M$94,MATCH($B47,'Risk parameters'!$J$5:$J$94,0))*'Risk parameters'!$B$37) -> 0 | U47: =IF($B47="",0,SUMPRODUCT(('Failure rates'!V$16:V$25)*('Failure rates'!$C$16:$C$25=$C47)*('Failure rates'!$B$16:$B$25=$B47))*INDEX('Risk parameters'!$M$5:$M$94,MATCH($B47,'Risk parameters'!$J$5:$J$94,0))*'Risk parameters'!$B$37) -> 0 | V47: =IF($B47="",0,SUMPRODUCT(('Failure rates'!W$16:W$25)*('Failure rates'!$C$16:$C$25=$C47)*('Failure rates'!$B$16:$B$25=$B47))*INDEX('Risk parameters'!$M$5:$M$94,MATCH($B47,'Risk parameters'!$J$5:$J$94,0))*'Risk parameters'!$B$37) -> 0 | W47: =IF($B47="",0,SUMPRODUCT(('Failure rates'!X$16:X$25)*('Failure rates'!$C$16:$C$25=$C47)*('Failure rates'!$B$16:$B$25=$B47))*INDEX('Risk parameters'!$M$5:$M$94,MATCH($B47,'Risk parameters'!$J$5:$J$94,0))*'Risk parameters'!$B$37) -> 0 | X47: =IF($B47="",0,SUMPRODUCT(('Failure rates'!Y$16:Y$25)*('Failure rates'!$C$16:$C$25=$C47)*('Failure rates'!$B$16:$B$25=$B47))*INDEX('Risk parameters'!$M$5:$M$94,MATCH($B47,'Risk parameters'!$J$5:$J$94,0))*'Risk parameters'!$B$37) -> 0
A48: Feeder (M3-Third Party) | B48: =IF('Risk parameters'!F35="","",'Risk parameters'!F35) ->  | C48: Oil-filled Cable | D48: =IF($B48="",0,SUMPRODUCT(('Failure rates'!E$16:E$25)*('Failure rates'!$C$16:$C$25=$C48)*('Failure rates'!$B$16:$B$25=$B48))*INDEX('Risk parameters'!$M$5:$M$94,MATCH($B48,'Risk parameters'!$J$5:$J$94,0))*'Risk parameters'!$B$37) -> 0 | E48: =IF($B48="",0,SUMPRODUCT(('Failure rates'!F$16:F$25)*('Failure rates'!$C$16:$C$25=$C48)*('Failure rates'!$B$16:$B$25=$B48))*INDEX('Risk parameters'!$M$5:$M$94,MATCH($B48,'Risk parameters'!$J$5:$J$94,0))*'Risk parameters'!$B$37) -> 0 | F48: =IF($B48="",0,SUMPRODUCT(('Failure rates'!G$16:G$25)*('Failure rates'!$C$16:$C$25=$C48)*('Failure rates'!$B$16:$B$25=$B48))*INDEX('Risk parameters'!$M$5:$M$94,MATCH($B48,'Risk parameters'!$J$5:$J$94,0))*'Risk parameters'!$B$37) -> 0 | G48: =IF($B48="",0,SUMPRODUCT(('Failure rates'!H$16:H$25)*('Failure rates'!$C$16:$C$25=$C48)*('Failure rates'!$B$16:$B$25=$B48))*INDEX('Risk parameters'!$M$5:$M$94,MATCH($B48,'Risk parameters'!$J$5:$J$94,0))*'Risk parameters'!$B$37) -> 0 | H48: =IF($B48="",0,SUMPRODUCT(('Failure rates'!I$16:I$25)*('Failure rates'!$C$16:$C$25=$C48)*('Failure rates'!$B$16:$B$25=$B48))*INDEX('Risk parameters'!$M$5:$M$94,MATCH($B48,'Risk parameters'!$J$5:$J$94,0))*'Risk parameters'!$B$37) -> 0 | I48: =IF($B48="",0,SUMPRODUCT(('Failure rates'!J$16:J$25)*('Failure rates'!$C$16:$C$25=$C48)*('Failure rates'!$B$16:$B$25=$B48))*INDEX('Risk parameters'!$M$5:$M$94,MATCH($B48,'Risk parameters'!$J$5:$J$94,0))*'Risk parameters'!$B$37) -> 0 | J48: =IF($B48="",0,SUMPRODUCT(('Failure rates'!K$16:K$25)*('Failure rates'!$C$16:$C$25=$C48)*('Failure rates'!$B$16:$B$25=$B48))*INDEX('Risk parameters'!$M$5:$M$94,MATCH($B48,'Risk parameters'!$J$5:$J$94,0))*'Risk parameters'!$B$37) -> 0 | K48: =IF($B48="",0,SUMPRODUCT(('Failure rates'!L$16:L$25)*('Failure rates'!$C$16:$C$25=$C48)*('Failure rates'!$B$16:$B$25=$B48))*INDEX('Risk parameters'!$M$5:$M$94,MATCH($B48,'Risk parameters'!$J$5:$J$94,0))*'Risk parameters'!$B$37) -> 0 | L48: =IF($B48="",0,SUMPRODUCT(('Failure rates'!M$16:M$25)*('Failure rates'!$C$16:$C$25=$C48)*('Failure rates'!$B$16:$B$25=$B48))*INDEX('Risk parameters'!$M$5:$M$94,MATCH($B48,'Risk parameters'!$J$5:$J$94,0))*'Risk parameters'!$B$37) -> 0 | M48: =IF($B48="",0,SUMPRODUCT(('Failure rates'!N$16:N$25)*('Failure rates'!$C$16:$C$25=$C48)*('Failure rates'!$B$16:$B$25=$B48))*INDEX('Risk parameters'!$M$5:$M$94,MATCH($B48,'Risk parameters'!$J$5:$J$94,0))*'Risk parameters'!$B$37) -> 0 | N48: =IF($B48="",0,SUMPRODUCT(('Failure rates'!O$16:O$25)*('Failure rates'!$C$16:$C$25=$C48)*('Failure rates'!$B$16:$B$25=$B48))*INDEX('Risk parameters'!$M$5:$M$94,MATCH($B48,'Risk parameters'!$J$5:$J$94,0))*'Risk parameters'!$B$37) -> 0 | O48: =IF($B48="",0,SUMPRODUCT(('Failure rates'!P$16:P$25)*('Failure rates'!$C$16:$C$25=$C48)*('Failure rates'!$B$16:$B$25=$B48))*INDEX('Risk parameters'!$M$5:$M$94,MATCH($B48,'Risk parameters'!$J$5:$J$94,0))*'Risk parameters'!$B$37) -> 0 | P48: =IF($B48="",0,SUMPRODUCT(('Failure rates'!Q$16:Q$25)*('Failure rates'!$C$16:$C$25=$C48)*('Failure rates'!$B$16:$B$25=$B48))*INDEX('Risk parameters'!$M$5:$M$94,MATCH($B48,'Risk parameters'!$J$5:$J$94,0))*'Risk parameters'!$B$37) -> 0 | Q48: =IF($B48="",0,SUMPRODUCT(('Failure rates'!R$16:R$25)*('Failure rates'!$C$16:$C$25=$C48)*('Failure rates'!$B$16:$B$25=$B48))*INDEX('Risk parameters'!$M$5:$M$94,MATCH($B48,'Risk parameters'!$J$5:$J$94,0))*'Risk parameters'!$B$37) -> 0 | R48: =IF($B48="",0,SUMPRODUCT(('Failure rates'!S$16:S$25)*('Failure rates'!$C$16:$C$25=$C48)*('Failure rates'!$B$16:$B$25=$B48))*INDEX('Risk parameters'!$M$5:$M$94,MATCH($B48,'Risk parameters'!$J$5:$J$94,0))*'Risk parameters'!$B$37) -> 0 | S48: =IF($B48="",0,SUMPRODUCT(('Failure rates'!T$16:T$25)*('Failure rates'!$C$16:$C$25=$C48)*('Failure rates'!$B$16:$B$25=$B48))*INDEX('Risk parameters'!$M$5:$M$94,MATCH($B48,'Risk parameters'!$J$5:$J$94,0))*'Risk parameters'!$B$37) -> 0 | T48: =IF($B48="",0,SUMPRODUCT(('Failure rates'!U$16:U$25)*('Failure rates'!$C$16:$C$25=$C48)*('Failure rates'!$B$16:$B$25=$B48))*INDEX('Risk parameters'!$M$5:$M$94,MATCH($B48,'Risk parameters'!$J$5:$J$94,0))*'Risk parameters'!$B$37) -> 0 | U48: =IF($B48="",0,SUMPRODUCT(('Failure rates'!V$16:V$25)*('Failure rates'!$C$16:$C$25=$C48)*('Failure rates'!$B$16:$B$25=$B48))*INDEX('Risk parameters'!$M$5:$M$94,MATCH($B48,'Risk parameters'!$J$5:$J$94,0))*'Risk parameters'!$B$37) -> 0 | V48: =IF($B48="",0,SUMPRODUCT(('Failure rates'!W$16:W$25)*('Failure rates'!$C$16:$C$25=$C48)*('Failure rates'!$B$16:$B$25=$B48))*INDEX('Risk parameters'!$M$5:$M$94,MATCH($B48,'Risk parameters'!$J$5:$J$94,0))*'Risk parameters'!$B$37) -> 0 | W48: =IF($B48="",0,SUMPRODUCT(('Failure rates'!X$16:X$25)*('Failure rates'!$C$16:$C$25=$C48)*('Failure rates'!$B$16:$B$25=$B48))*INDEX('Risk parameters'!$M$5:$M$94,MATCH($B48,'Risk parameters'!$J$5:$J$94,0))*'Risk parameters'!$B$37) -> 0 | X48: =IF($B48="",0,SUMPRODUCT(('Failure rates'!Y$16:Y$25)*('Failure rates'!$C$16:$C$25=$C48)*('Failure rates'!$B$16:$B$25=$B48))*INDEX('Risk parameters'!$M$5:$M$94,MATCH($B48,'Risk parameters'!$J$5:$J$94,0))*'Risk parameters'!$B$37) -> 0
A49: Feeder (M5-Third Party) | B49: =IF('Risk parameters'!F31="","",'Risk parameters'!F31) -> 9E1 | C49: Oil-filled Cable | D49: =IF($B49="",0,SUMPRODUCT(('Failure rates'!E$29:E$38)*('Failure rates'!$C$29:$C$38=$C49)*('Failure rates'!$B$29:$B$38=$B49))*INDEX('Risk parameters'!$N$5:$N$94,MATCH($B49,'Risk parameters'!$J$5:$J$94,0))*'Risk parameters'!$B$37) -> 508.9138995 | E49: =IF($B49="",0,SUMPRODUCT(('Failure rates'!F$29:F$38)*('Failure rates'!$C$29:$C$38=$C49)*('Failure rates'!$B$29:$B$38=$B49))*INDEX('Risk parameters'!$N$5:$N$94,MATCH($B49,'Risk parameters'!$J$5:$J$94,0))*'Risk parameters'!$B$37) -> 508.9138995 | F49: =IF($B49="",0,SUMPRODUCT(('Failure rates'!G$29:G$38)*('Failure rates'!$C$29:$C$38=$C49)*('Failure rates'!$B$29:$B$38=$B49))*INDEX('Risk parameters'!$N$5:$N$94,MATCH($B49,'Risk parameters'!$J$5:$J$94,0))*'Risk parameters'!$B$37) -> 508.9138995 | G49: =IF($B49="",0,SUMPRODUCT(('Failure rates'!H$29:H$38)*('Failure rates'!$C$29:$C$38=$C49)*('Failure rates'!$B$29:$B$38=$B49))*INDEX('Risk parameters'!$N$5:$N$94,MATCH($B49,'Risk parameters'!$J$5:$J$94,0))*'Risk parameters'!$B$37) -> 508.9138995 | H49: =IF($B49="",0,SUMPRODUCT(('Failure rates'!I$29:I$38)*('Failure rates'!$C$29:$C$38=$C49)*('Failure rates'!$B$29:$B$38=$B49))*INDEX('Risk parameters'!$N$5:$N$94,MATCH($B49,'Risk parameters'!$J$5:$J$94,0))*'Risk parameters'!$B$37) -> 508.9138995 | I49: =IF($B49="",0,SUMPRODUCT(('Failure rates'!J$29:J$38)*('Failure rates'!$C$29:$C$38=$C49)*('Failure rates'!$B$29:$B$38=$B49))*INDEX('Risk parameters'!$N$5:$N$94,MATCH($B49,'Risk parameters'!$J$5:$J$94,0))*'Risk parameters'!$B$37) -> 508.9138995 | J49: =IF($B49="",0,SUMPRODUCT(('Failure rates'!K$29:K$38)*('Failure rates'!$C$29:$C$38=$C49)*('Failure rates'!$B$29:$B$38=$B49))*INDEX('Risk parameters'!$N$5:$N$94,MATCH($B49,'Risk parameters'!$J$5:$J$94,0))*'Risk parameters'!$B$37) -> 508.9138995 | K49: =IF($B49="",0,SUMPRODUCT(('Failure rates'!L$29:L$38)*('Failure rates'!$C$29:$C$38=$C49)*('Failure rates'!$B$29:$B$38=$B49))*INDEX('Risk parameters'!$N$5:$N$94,MATCH($B49,'Risk parameters'!$J$5:$J$94,0))*'Risk parameters'!$B$37) -> 508.9138995 | L49: =IF($B49="",0,SUMPRODUCT(('Failure rates'!M$29:M$38)*('Failure rates'!$C$29:$C$38=$C49)*('Failure rates'!$B$29:$B$38=$B49))*INDEX('Risk parameters'!$N$5:$N$94,MATCH($B49,'Risk parameters'!$J$5:$J$94,0))*'Risk parameters'!$B$37) -> 508.9138995 | M49: =IF($B49="",0,SUMPRODUCT(('Failure rates'!N$29:N$38)*('Failure rates'!$C$29:$C$38=$C49)*('Failure rates'!$B$29:$B$38=$B49))*INDEX('Risk parameters'!$N$5:$N$94,MATCH($B49,'Risk parameters'!$J$5:$J$94,0))*'Risk parameters'!$B$37) -> 508.9138995 | N49: =IF($B49="",0,SUMPRODUCT(('Failure rates'!O$29:O$38)*('Failure rates'!$C$29:$C$38=$C49)*('Failure rates'!$B$29:$B$38=$B49))*INDEX('Risk parameters'!$N$5:$N$94,MATCH($B49,'Risk parameters'!$J$5:$J$94,0))*'Risk parameters'!$B$37) -> 508.9138995 | O49: =IF($B49="",0,SUMPRODUCT(('Failure rates'!P$29:P$38)*('Failure rates'!$C$29:$C$38=$C49)*('Failure rates'!$B$29:$B$38=$B49))*INDEX('Risk parameters'!$N$5:$N$94,MATCH($B49,'Risk parameters'!$J$5:$J$94,0))*'Risk parameters'!$B$37) -> 508.9138995 | P49: =IF($B49="",0,SUMPRODUCT(('Failure rates'!Q$29:Q$38)*('Failure rates'!$C$29:$C$38=$C49)*('Failure rates'!$B$29:$B$38=$B49))*INDEX('Risk parameters'!$N$5:$N$94,MATCH($B49,'Risk parameters'!$J$5:$J$94,0))*'Risk parameters'!$B$37) -> 508.9138995 | Q49: =IF($B49="",0,SUMPRODUCT(('Failure rates'!R$29:R$38)*('Failure rates'!$C$29:$C$38=$C49)*('Failure rates'!$B$29:$B$38=$B49))*INDEX('Risk parameters'!$N$5:$N$94,MATCH($B49,'Risk parameters'!$J$5:$J$94,0))*'Risk parameters'!$B$37) -> 508.9138995 | R49: =IF($B49="",0,SUMPRODUCT(('Failure rates'!S$29:S$38)*('Failure rates'!$C$29:$C$38=$C49)*('Failure rates'!$B$29:$B$38=$B49))*INDEX('Risk parameters'!$N$5:$N$94,MATCH($B49,'Risk parameters'!$J$5:$J$94,0))*'Risk parameters'!$B$37) -> 508.9138995 | S49: =IF($B49="",0,SUMPRODUCT(('Failure rates'!T$29:T$38)*('Failure rates'!$C$29:$C$38=$C49)*('Failure rates'!$B$29:$B$38=$B49))*INDEX('Risk parameters'!$N$5:$N$94,MATCH($B49,'Risk parameters'!$J$5:$J$94,0))*'Risk parameters'!$B$37) -> 508.9138995 | T49: =IF($B49="",0,SUMPRODUCT(('Failure rates'!U$29:U$38)*('Failure rates'!$C$29:$C$38=$C49)*('Failure rates'!$B$29:$B$38=$B49))*INDEX('Risk parameters'!$N$5:$N$94,MATCH($B49,'Risk parameters'!$J$5:$J$94,0))*'Risk parameters'!$B$37) -> 508.9138995 | U49: =IF($B49="",0,SUMPRODUCT(('Failure rates'!V$29:V$38)*('Failure rates'!$C$29:$C$38=$C49)*('Failure rates'!$B$29:$B$38=$B49))*INDEX('Risk parameters'!$N$5:$N$94,MATCH($B49,'Risk parameters'!$J$5:$J$94,0))*'Risk parameters'!$B$37) -> 508.9138995 | V49: =IF($B49="",0,SUMPRODUCT(('Failure rates'!W$29:W$38)*('Failure rates'!$C$29:$C$38=$C49)*('Failure rates'!$B$29:$B$38=$B49))*INDEX('Risk parameters'!$N$5:$N$94,MATCH($B49,'Risk parameters'!$J$5:$J$94,0))*'Risk parameters'!$B$37) -> 508.9138995 | W49: =IF($B49="",0,SUMPRODUCT(('Failure rates'!X$29:X$38)*('Failure rates'!$C$29:$C$38=$C49)*('Failure rates'!$B$29:$B$38=$B49))*INDEX('Risk parameters'!$N$5:$N$94,MATCH($B49,'Risk parameters'!$J$5:$J$94,0))*'Risk parameters'!$B$37) -> 508.9138995 | X49: =IF($B49="",0,SUMPRODUCT(('Failure rates'!Y$29:Y$38)*('Failure rates'!$C$29:$C$38=$C49)*('Failure rates'!$B$29:$B$38=$B49))*INDEX('Risk parameters'!$N$5:$N$94,MATCH($B49,'Risk parameters'!$J$5:$J$94,0))*'Risk parameters'!$B$37) -> 508.9138995
A50: Feeder (M5-Third Party) | B50: =IF('Risk parameters'!F32="","",'Risk parameters'!F32) -> 9E2 | C50: Oil-filled Cable | D50: =IF($B50="",0,SUMPRODUCT(('Failure rates'!E$29:E$38)*('Failure rates'!$C$29:$C$38=$C50)*('Failure rates'!$B$29:$B$38=$B50))*INDEX('Risk parameters'!$N$5:$N$94,MATCH($B50,'Risk parameters'!$J$5:$J$94,0))*'Risk parameters'!$B$37) -> 581.8545131 | E50: =IF($B50="",0,SUMPRODUCT(('Failure rates'!F$29:F$38)*('Failure rates'!$C$29:$C$38=$C50)*('Failure rates'!$B$29:$B$38=$B50))*INDEX('Risk parameters'!$N$5:$N$94,MATCH($B50,'Risk parameters'!$J$5:$J$94,0))*'Risk parameters'!$B$37) -> 581.8545131 | F50: =IF($B50="",0,SUMPRODUCT(('Failure rates'!G$29:G$38)*('Failure rates'!$C$29:$C$38=$C50)*('Failure rates'!$B$29:$B$38=$B50))*INDEX('Risk parameters'!$N$5:$N$94,MATCH($B50,'Risk parameters'!$J$5:$J$94,0))*'Risk parameters'!$B$37) -> 581.8545131 | G50: =IF($B50="",0,SUMPRODUCT(('Failure rates'!H$29:H$38)*('Failure rates'!$C$29:$C$38=$C50)*('Failure rates'!$B$29:$B$38=$B50))*INDEX('Risk parameters'!$N$5:$N$94,MATCH($B50,'Risk parameters'!$J$5:$J$94,0))*'Risk parameters'!$B$37) -> 581.8545131 | H50: =IF($B50="",0,SUMPRODUCT(('Failure rates'!I$29:I$38)*('Failure rates'!$C$29:$C$38=$C50)*('Failure rates'!$B$29:$B$38=$B50))*INDEX('Risk parameters'!$N$5:$N$94,MATCH($B50,'Risk parameters'!$J$5:$J$94,0))*'Risk parameters'!$B$37) -> 581.8545131 | I50: =IF($B50="",0,SUMPRODUCT(('Failure rates'!J$29:J$38)*('Failure rates'!$C$29:$C$38=$C50)*('Failure rates'!$B$29:$B$38=$B50))*INDEX('Risk parameters'!$N$5:$N$94,MATCH($B50,'Risk parameters'!$J$5:$J$94,0))*'Risk parameters'!$B$37) -> 581.8545131 | J50: =IF($B50="",0,SUMPRODUCT(('Failure rates'!K$29:K$38)*('Failure rates'!$C$29:$C$38=$C50)*('Failure rates'!$B$29:$B$38=$B50))*INDEX('Risk parameters'!$N$5:$N$94,MATCH($B50,'Risk parameters'!$J$5:$J$94,0))*'Risk parameters'!$B$37) -> 581.8545131 | K50: =IF($B50="",0,SUMPRODUCT(('Failure rates'!L$29:L$38)*('Failure rates'!$C$29:$C$38=$C50)*('Failure rates'!$B$29:$B$38=$B50))*INDEX('Risk parameters'!$N$5:$N$94,MATCH($B50,'Risk parameters'!$J$5:$J$94,0))*'Risk parameters'!$B$37) -> 581.8545131 | L50: =IF($B50="",0,SUMPRODUCT(('Failure rates'!M$29:M$38)*('Failure rates'!$C$29:$C$38=$C50)*('Failure rates'!$B$29:$B$38=$B50))*INDEX('Risk parameters'!$N$5:$N$94,MATCH($B50,'Risk parameters'!$J$5:$J$94,0))*'Risk parameters'!$B$37) -> 581.8545131 | M50: =IF($B50="",0,SUMPRODUCT(('Failure rates'!N$29:N$38)*('Failure rates'!$C$29:$C$38=$C50)*('Failure rates'!$B$29:$B$38=$B50))*INDEX('Risk parameters'!$N$5:$N$94,MATCH($B50,'Risk parameters'!$J$5:$J$94,0))*'Risk parameters'!$B$37) -> 581.8545131 | N50: =IF($B50="",0,SUMPRODUCT(('Failure rates'!O$29:O$38)*('Failure rates'!$C$29:$C$38=$C50)*('Failure rates'!$B$29:$B$38=$B50))*INDEX('Risk parameters'!$N$5:$N$94,MATCH($B50,'Risk parameters'!$J$5:$J$94,0))*'Risk parameters'!$B$37) -> 581.8545131 | O50: =IF($B50="",0,SUMPRODUCT(('Failure rates'!P$29:P$38)*('Failure rates'!$C$29:$C$38=$C50)*('Failure rates'!$B$29:$B$38=$B50))*INDEX('Risk parameters'!$N$5:$N$94,MATCH($B50,'Risk parameters'!$J$5:$J$94,0))*'Risk parameters'!$B$37) -> 581.8545131 | P50: =IF($B50="",0,SUMPRODUCT(('Failure rates'!Q$29:Q$38)*('Failure rates'!$C$29:$C$38=$C50)*('Failure rates'!$B$29:$B$38=$B50))*INDEX('Risk parameters'!$N$5:$N$94,MATCH($B50,'Risk parameters'!$J$5:$J$94,0))*'Risk parameters'!$B$37) -> 581.8545131 | Q50: =IF($B50="",0,SUMPRODUCT(('Failure rates'!R$29:R$38)*('Failure rates'!$C$29:$C$38=$C50)*('Failure rates'!$B$29:$B$38=$B50))*INDEX('Risk parameters'!$N$5:$N$94,MATCH($B50,'Risk parameters'!$J$5:$J$94,0))*'Risk parameters'!$B$37) -> 581.8545131 | R50: =IF($B50="",0,SUMPRODUCT(('Failure rates'!S$29:S$38)*('Failure rates'!$C$29:$C$38=$C50)*('Failure rates'!$B$29:$B$38=$B50))*INDEX('Risk parameters'!$N$5:$N$94,MATCH($B50,'Risk parameters'!$J$5:$J$94,0))*'Risk parameters'!$B$37) -> 581.8545131 | S50: =IF($B50="",0,SUMPRODUCT(('Failure rates'!T$29:T$38)*('Failure rates'!$C$29:$C$38=$C50)*('Failure rates'!$B$29:$B$38=$B50))*INDEX('Risk parameters'!$N$5:$N$94,MATCH($B50,'Risk parameters'!$J$5:$J$94,0))*'Risk parameters'!$B$37) -> 581.8545131 | T50: =IF($B50="",0,SUMPRODUCT(('Failure rates'!U$29:U$38)*('Failure rates'!$C$29:$C$38=$C50)*('Failure rates'!$B$29:$B$38=$B50))*INDEX('Risk parameters'!$N$5:$N$94,MATCH($B50,'Risk parameters'!$J$5:$J$94,0))*'Risk parameters'!$B$37) -> 581.8545131 | U50: =IF($B50="",0,SUMPRODUCT(('Failure rates'!V$29:V$38)*('Failure rates'!$C$29:$C$38=$C50)*('Failure rates'!$B$29:$B$38=$B50))*INDEX('Risk parameters'!$N$5:$N$94,MATCH($B50,'Risk parameters'!$J$5:$J$94,0))*'Risk parameters'!$B$37) -> 581.8545131 | V50: =IF($B50="",0,SUMPRODUCT(('Failure rates'!W$29:W$38)*('Failure rates'!$C$29:$C$38=$C50)*('Failure rates'!$B$29:$B$38=$B50))*INDEX('Risk parameters'!$N$5:$N$94,MATCH($B50,'Risk parameters'!$J$5:$J$94,0))*'Risk parameters'!$B$37) -> 581.8545131 | W50: =IF($B50="",0,SUMPRODUCT(('Failure rates'!X$29:X$38)*('Failure rates'!$C$29:$C$38=$C50)*('Failure rates'!$B$29:$B$38=$B50))*INDEX('Risk parameters'!$N$5:$N$94,MATCH($B50,'Risk parameters'!$J$5:$J$94,0))*'Risk parameters'!$B$37) -> 581.8545131 | X50: =IF($B50="",0,SUMPRODUCT(('Failure rates'!Y$29:Y$38)*('Failure rates'!$C$29:$C$38=$C50)*('Failure rates'!$B$29:$B$38=$B50))*INDEX('Risk parameters'!$N$5:$N$94,MATCH($B50,'Risk parameters'!$J$5:$J$94,0))*'Risk parameters'!$B$37) -> 581.8545131
A51: Feeder (M5-Third Party) | B51: =IF('Risk parameters'!F33="","",'Risk parameters'!F33) ->  | C51: Oil-filled Cable | D51: =IF($B51="",0,SUMPRODUCT(('Failure rates'!E$29:E$38)*('Failure rates'!$C$29:$C$38=$C51)*('Failure rates'!$B$29:$B$38=$B51))*INDEX('Risk parameters'!$N$5:$N$94,MATCH($B51,'Risk parameters'!$J$5:$J$94,0))*'Risk parameters'!$B$37) -> 0 | E51: =IF($B51="",0,SUMPRODUCT(('Failure rates'!F$29:F$38)*('Failure rates'!$C$29:$C$38=$C51)*('Failure rates'!$B$29:$B$38=$B51))*INDEX('Risk parameters'!$N$5:$N$94,MATCH($B51,'Risk parameters'!$J$5:$J$94,0))*'Risk parameters'!$B$37) -> 0 | F51: =IF($B51="",0,SUMPRODUCT(('Failure rates'!G$29:G$38)*('Failure rates'!$C$29:$C$38=$C51)*('Failure rates'!$B$29:$B$38=$B51))*INDEX('Risk parameters'!$N$5:$N$94,MATCH($B51,'Risk parameters'!$J$5:$J$94,0))*'Risk parameters'!$B$37) -> 0 | G51: =IF($B51="",0,SUMPRODUCT(('Failure rates'!H$29:H$38)*('Failure rates'!$C$29:$C$38=$C51)*('Failure rates'!$B$29:$B$38=$B51))*INDEX('Risk parameters'!$N$5:$N$94,MATCH($B51,'Risk parameters'!$J$5:$J$94,0))*'Risk parameters'!$B$37) -> 0 | H51: =IF($B51="",0,SUMPRODUCT(('Failure rates'!I$29:I$38)*('Failure rates'!$C$29:$C$38=$C51)*('Failure rates'!$B$29:$B$38=$B51))*INDEX('Risk parameters'!$N$5:$N$94,MATCH($B51,'Risk parameters'!$J$5:$J$94,0))*'Risk parameters'!$B$37) -> 0 | I51: =IF($B51="",0,SUMPRODUCT(('Failure rates'!J$29:J$38)*('Failure rates'!$C$29:$C$38=$C51)*('Failure rates'!$B$29:$B$38=$B51))*INDEX('Risk parameters'!$N$5:$N$94,MATCH($B51,'Risk parameters'!$J$5:$J$94,0))*'Risk parameters'!$B$37) -> 0 | J51: =IF($B51="",0,SUMPRODUCT(('Failure rates'!K$29:K$38)*('Failure rates'!$C$29:$C$38=$C51)*('Failure rates'!$B$29:$B$38=$B51))*INDEX('Risk parameters'!$N$5:$N$94,MATCH($B51,'Risk parameters'!$J$5:$J$94,0))*'Risk parameters'!$B$37) -> 0 | K51: =IF($B51="",0,SUMPRODUCT(('Failure rates'!L$29:L$38)*('Failure rates'!$C$29:$C$38=$C51)*('Failure rates'!$B$29:$B$38=$B51))*INDEX('Risk parameters'!$N$5:$N$94,MATCH($B51,'Risk parameters'!$J$5:$J$94,0))*'Risk parameters'!$B$37) -> 0 | L51: =IF($B51="",0,SUMPRODUCT(('Failure rates'!M$29:M$38)*('Failure rates'!$C$29:$C$38=$C51)*('Failure rates'!$B$29:$B$38=$B51))*INDEX('Risk parameters'!$N$5:$N$94,MATCH($B51,'Risk parameters'!$J$5:$J$94,0))*'Risk parameters'!$B$37) -> 0 | M51: =IF($B51="",0,SUMPRODUCT(('Failure rates'!N$29:N$38)*('Failure rates'!$C$29:$C$38=$C51)*('Failure rates'!$B$29:$B$38=$B51))*INDEX('Risk parameters'!$N$5:$N$94,MATCH($B51,'Risk parameters'!$J$5:$J$94,0))*'Risk parameters'!$B$37) -> 0 | N51: =IF($B51="",0,SUMPRODUCT(('Failure rates'!O$29:O$38)*('Failure rates'!$C$29:$C$38=$C51)*('Failure rates'!$B$29:$B$38=$B51))*INDEX('Risk parameters'!$N$5:$N$94,MATCH($B51,'Risk parameters'!$J$5:$J$94,0))*'Risk parameters'!$B$37) -> 0 | O51: =IF($B51="",0,SUMPRODUCT(('Failure rates'!P$29:P$38)*('Failure rates'!$C$29:$C$38=$C51)*('Failure rates'!$B$29:$B$38=$B51))*INDEX('Risk parameters'!$N$5:$N$94,MATCH($B51,'Risk parameters'!$J$5:$J$94,0))*'Risk parameters'!$B$37) -> 0 | P51: =IF($B51="",0,SUMPRODUCT(('Failure rates'!Q$29:Q$38)*('Failure rates'!$C$29:$C$38=$C51)*('Failure rates'!$B$29:$B$38=$B51))*INDEX('Risk parameters'!$N$5:$N$94,MATCH($B51,'Risk parameters'!$J$5:$J$94,0))*'Risk parameters'!$B$37) -> 0 | Q51: =IF($B51="",0,SUMPRODUCT(('Failure rates'!R$29:R$38)*('Failure rates'!$C$29:$C$38=$C51)*('Failure rates'!$B$29:$B$38=$B51))*INDEX('Risk parameters'!$N$5:$N$94,MATCH($B51,'Risk parameters'!$J$5:$J$94,0))*'Risk parameters'!$B$37) -> 0 | R51: =IF($B51="",0,SUMPRODUCT(('Failure rates'!S$29:S$38)*('Failure rates'!$C$29:$C$38=$C51)*('Failure rates'!$B$29:$B$38=$B51))*INDEX('Risk parameters'!$N$5:$N$94,MATCH($B51,'Risk parameters'!$J$5:$J$94,0))*'Risk parameters'!$B$37) -> 0 | S51: =IF($B51="",0,SUMPRODUCT(('Failure rates'!T$29:T$38)*('Failure rates'!$C$29:$C$38=$C51)*('Failure rates'!$B$29:$B$38=$B51))*INDEX('Risk parameters'!$N$5:$N$94,MATCH($B51,'Risk parameters'!$J$5:$J$94,0))*'Risk parameters'!$B$37) -> 0 | T51: =IF($B51="",0,SUMPRODUCT(('Failure rates'!U$29:U$38)*('Failure rates'!$C$29:$C$38=$C51)*('Failure rates'!$B$29:$B$38=$B51))*INDEX('Risk parameters'!$N$5:$N$94,MATCH($B51,'Risk parameters'!$J$5:$J$94,0))*'Risk parameters'!$B$37) -> 0 | U51: =IF($B51="",0,SUMPRODUCT(('Failure rates'!V$29:V$38)*('Failure rates'!$C$29:$C$38=$C51)*('Failure rates'!$B$29:$B$38=$B51))*INDEX('Risk parameters'!$N$5:$N$94,MATCH($B51,'Risk parameters'!$J$5:$J$94,0))*'Risk parameters'!$B$37) -> 0 | V51: =IF($B51="",0,SUMPRODUCT(('Failure rates'!W$29:W$38)*('Failure rates'!$C$29:$C$38=$C51)*('Failure rates'!$B$29:$B$38=$B51))*INDEX('Risk parameters'!$N$5:$N$94,MATCH($B51,'Risk parameters'!$J$5:$J$94,0))*'Risk parameters'!$B$37) -> 0 | W51: =IF($B51="",0,SUMPRODUCT(('Failure rates'!X$29:X$38)*('Failure rates'!$C$29:$C$38=$C51)*('Failure rates'!$B$29:$B$38=$B51))*INDEX('Risk parameters'!$N$5:$N$94,MATCH($B51,'Risk parameters'!$J$5:$J$94,0))*'Risk parameters'!$B$37) -> 0 | X51: =IF($B51="",0,SUMPRODUCT(('Failure rates'!Y$29:Y$38)*('Failure rates'!$C$29:$C$38=$C51)*('Failure rates'!$B$29:$B$38=$B51))*INDEX('Risk parameters'!$N$5:$N$94,MATCH($B51,'Risk parameters'!$J$5:$J$94,0))*'Risk parameters'!$B$37) -> 0
A52: Feeder (M5-Third Party) | B52: =IF('Risk parameters'!F34="","",'Risk parameters'!F34) ->  | C52: Oil-filled Cable | D52: =IF($B52="",0,SUMPRODUCT(('Failure rates'!E$29:E$38)*('Failure rates'!$C$29:$C$38=$C52)*('Failure rates'!$B$29:$B$38=$B52))*INDEX('Risk parameters'!$N$5:$N$94,MATCH($B52,'Risk parameters'!$J$5:$J$94,0))*'Risk parameters'!$B$37) -> 0 | E52: =IF($B52="",0,SUMPRODUCT(('Failure rates'!F$29:F$38)*('Failure rates'!$C$29:$C$38=$C52)*('Failure rates'!$B$29:$B$38=$B52))*INDEX('Risk parameters'!$N$5:$N$94,MATCH($B52,'Risk parameters'!$J$5:$J$94,0))*'Risk parameters'!$B$37) -> 0 | F52: =IF($B52="",0,SUMPRODUCT(('Failure rates'!G$29:G$38)*('Failure rates'!$C$29:$C$38=$C52)*('Failure rates'!$B$29:$B$38=$B52))*INDEX('Risk parameters'!$N$5:$N$94,MATCH($B52,'Risk parameters'!$J$5:$J$94,0))*'Risk parameters'!$B$37) -> 0 | G52: =IF($B52="",0,SUMPRODUCT(('Failure rates'!H$29:H$38)*('Failure rates'!$C$29:$C$38=$C52)*('Failure rates'!$B$29:$B$38=$B52))*INDEX('Risk parameters'!$N$5:$N$94,MATCH($B52,'Risk parameters'!$J$5:$J$94,0))*'Risk parameters'!$B$37) -> 0 | H52: =IF($B52="",0,SUMPRODUCT(('Failure rates'!I$29:I$38)*('Failure rates'!$C$29:$C$38=$C52)*('Failure rates'!$B$29:$B$38=$B52))*INDEX('Risk parameters'!$N$5:$N$94,MATCH($B52,'Risk parameters'!$J$5:$J$94,0))*'Risk parameters'!$B$37) -> 0 | I52: =IF($B52="",0,SUMPRODUCT(('Failure rates'!J$29:J$38)*('Failure rates'!$C$29:$C$38=$C52)*('Failure rates'!$B$29:$B$38=$B52))*INDEX('Risk parameters'!$N$5:$N$94,MATCH($B52,'Risk parameters'!$J$5:$J$94,0))*'Risk parameters'!$B$37) -> 0 | J52: =IF($B52="",0,SUMPRODUCT(('Failure rates'!K$29:K$38)*('Failure rates'!$C$29:$C$38=$C52)*('Failure rates'!$B$29:$B$38=$B52))*INDEX('Risk parameters'!$N$5:$N$94,MATCH($B52,'Risk parameters'!$J$5:$J$94,0))*'Risk parameters'!$B$37) -> 0 | K52: =IF($B52="",0,SUMPRODUCT(('Failure rates'!L$29:L$38)*('Failure rates'!$C$29:$C$38=$C52)*('Failure rates'!$B$29:$B$38=$B52))*INDEX('Risk parameters'!$N$5:$N$94,MATCH($B52,'Risk parameters'!$J$5:$J$94,0))*'Risk parameters'!$B$37) -> 0 | L52: =IF($B52="",0,SUMPRODUCT(('Failure rates'!M$29:M$38)*('Failure rates'!$C$29:$C$38=$C52)*('Failure rates'!$B$29:$B$38=$B52))*INDEX('Risk parameters'!$N$5:$N$94,MATCH($B52,'Risk parameters'!$J$5:$J$94,0))*'Risk parameters'!$B$37) -> 0 | M52: =IF($B52="",0,SUMPRODUCT(('Failure rates'!N$29:N$38)*('Failure rates'!$C$29:$C$38=$C52)*('Failure rates'!$B$29:$B$38=$B52))*INDEX('Risk parameters'!$N$5:$N$94,MATCH($B52,'Risk parameters'!$J$5:$J$94,0))*'Risk parameters'!$B$37) -> 0 | N52: =IF($B52="",0,SUMPRODUCT(('Failure rates'!O$29:O$38)*('Failure rates'!$C$29:$C$38=$C52)*('Failure rates'!$B$29:$B$38=$B52))*INDEX('Risk parameters'!$N$5:$N$94,MATCH($B52,'Risk parameters'!$J$5:$J$94,0))*'Risk parameters'!$B$37) -> 0 | O52: =IF($B52="",0,SUMPRODUCT(('Failure rates'!P$29:P$38)*('Failure rates'!$C$29:$C$38=$C52)*('Failure rates'!$B$29:$B$38=$B52))*INDEX('Risk parameters'!$N$5:$N$94,MATCH($B52,'Risk parameters'!$J$5:$J$94,0))*'Risk parameters'!$B$37) -> 0 | P52: =IF($B52="",0,SUMPRODUCT(('Failure rates'!Q$29:Q$38)*('Failure rates'!$C$29:$C$38=$C52)*('Failure rates'!$B$29:$B$38=$B52))*INDEX('Risk parameters'!$N$5:$N$94,MATCH($B52,'Risk parameters'!$J$5:$J$94,0))*'Risk parameters'!$B$37) -> 0 | Q52: =IF($B52="",0,SUMPRODUCT(('Failure rates'!R$29:R$38)*('Failure rates'!$C$29:$C$38=$C52)*('Failure rates'!$B$29:$B$38=$B52))*INDEX('Risk parameters'!$N$5:$N$94,MATCH($B52,'Risk parameters'!$J$5:$J$94,0))*'Risk parameters'!$B$37) -> 0 | R52: =IF($B52="",0,SUMPRODUCT(('Failure rates'!S$29:S$38)*('Failure rates'!$C$29:$C$38=$C52)*('Failure rates'!$B$29:$B$38=$B52))*INDEX('Risk parameters'!$N$5:$N$94,MATCH($B52,'Risk parameters'!$J$5:$J$94,0))*'Risk parameters'!$B$37) -> 0 | S52: =IF($B52="",0,SUMPRODUCT(('Failure rates'!T$29:T$38)*('Failure rates'!$C$29:$C$38=$C52)*('Failure rates'!$B$29:$B$38=$B52))*INDEX('Risk parameters'!$N$5:$N$94,MATCH($B52,'Risk parameters'!$J$5:$J$94,0))*'Risk parameters'!$B$37) -> 0 | T52: =IF($B52="",0,SUMPRODUCT(('Failure rates'!U$29:U$38)*('Failure rates'!$C$29:$C$38=$C52)*('Failure rates'!$B$29:$B$38=$B52))*INDEX('Risk parameters'!$N$5:$N$94,MATCH($B52,'Risk parameters'!$J$5:$J$94,0))*'Risk parameters'!$B$37) -> 0 | U52: =IF($B52="",0,SUMPRODUCT(('Failure rates'!V$29:V$38)*('Failure rates'!$C$29:$C$38=$C52)*('Failure rates'!$B$29:$B$38=$B52))*INDEX('Risk parameters'!$N$5:$N$94,MATCH($B52,'Risk parameters'!$J$5:$J$94,0))*'Risk parameters'!$B$37) -> 0 | V52: =IF($B52="",0,SUMPRODUCT(('Failure rates'!W$29:W$38)*('Failure rates'!$C$29:$C$38=$C52)*('Failure rates'!$B$29:$B$38=$B52))*INDEX('Risk parameters'!$N$5:$N$94,MATCH($B52,'Risk parameters'!$J$5:$J$94,0))*'Risk parameters'!$B$37) -> 0 | W52: =IF($B52="",0,SUMPRODUCT(('Failure rates'!X$29:X$38)*('Failure rates'!$C$29:$C$38=$C52)*('Failure rates'!$B$29:$B$38=$B52))*INDEX('Risk parameters'!$N$5:$N$94,MATCH($B52,'Risk parameters'!$J$5:$J$94,0))*'Risk parameters'!$B$37) -> 0 | X52: =IF($B52="",0,SUMPRODUCT(('Failure rates'!Y$29:Y$38)*('Failure rates'!$C$29:$C$38=$C52)*('Failure rates'!$B$29:$B$38=$B52))*INDEX('Risk parameters'!$N$5:$N$94,MATCH($B52,'Risk parameters'!$J$5:$J$94,0))*'Risk parameters'!$B$37) -> 0
A53: Feeder (M5-Third Party) | B53: =IF('Risk parameters'!F35="","",'Risk parameters'!F35) ->  | C53: Oil-filled Cable | D53: =IF($B53="",0,SUMPRODUCT(('Failure rates'!E$29:E$38)*('Failure rates'!$C$29:$C$38=$C53)*('Failure rates'!$B$29:$B$38=$B53))*INDEX('Risk parameters'!$N$5:$N$94,MATCH($B53,'Risk parameters'!$J$5:$J$94,0))*'Risk parameters'!$B$37) -> 0 | E53: =IF($B53="",0,SUMPRODUCT(('Failure rates'!F$29:F$38)*('Failure rates'!$C$29:$C$38=$C53)*('Failure rates'!$B$29:$B$38=$B53))*INDEX('Risk parameters'!$N$5:$N$94,MATCH($B53,'Risk parameters'!$J$5:$J$94,0))*'Risk parameters'!$B$37) -> 0 | F53: =IF($B53="",0,SUMPRODUCT(('Failure rates'!G$29:G$38)*('Failure rates'!$C$29:$C$38=$C53)*('Failure rates'!$B$29:$B$38=$B53))*INDEX('Risk parameters'!$N$5:$N$94,MATCH($B53,'Risk parameters'!$J$5:$J$94,0))*'Risk parameters'!$B$37) -> 0 | G53: =IF($B53="",0,SUMPRODUCT(('Failure rates'!H$29:H$38)*('Failure rates'!$C$29:$C$38=$C53)*('Failure rates'!$B$29:$B$38=$B53))*INDEX('Risk parameters'!$N$5:$N$94,MATCH($B53,'Risk parameters'!$J$5:$J$94,0))*'Risk parameters'!$B$37) -> 0 | H53: =IF($B53="",0,SUMPRODUCT(('Failure rates'!I$29:I$38)*('Failure rates'!$C$29:$C$38=$C53)*('Failure rates'!$B$29:$B$38=$B53))*INDEX('Risk parameters'!$N$5:$N$94,MATCH($B53,'Risk parameters'!$J$5:$J$94,0))*'Risk parameters'!$B$37) -> 0 | I53: =IF($B53="",0,SUMPRODUCT(('Failure rates'!J$29:J$38)*('Failure rates'!$C$29:$C$38=$C53)*('Failure rates'!$B$29:$B$38=$B53))*INDEX('Risk parameters'!$N$5:$N$94,MATCH($B53,'Risk parameters'!$J$5:$J$94,0))*'Risk parameters'!$B$37) -> 0 | J53: =IF($B53="",0,SUMPRODUCT(('Failure rates'!K$29:K$38)*('Failure rates'!$C$29:$C$38=$C53)*('Failure rates'!$B$29:$B$38=$B53))*INDEX('Risk parameters'!$N$5:$N$94,MATCH($B53,'Risk parameters'!$J$5:$J$94,0))*'Risk parameters'!$B$37) -> 0 | K53: =IF($B53="",0,SUMPRODUCT(('Failure rates'!L$29:L$38)*('Failure rates'!$C$29:$C$38=$C53)*('Failure rates'!$B$29:$B$38=$B53))*INDEX('Risk parameters'!$N$5:$N$94,MATCH($B53,'Risk parameters'!$J$5:$J$94,0))*'Risk parameters'!$B$37) -> 0 | L53: =IF($B53="",0,SUMPRODUCT(('Failure rates'!M$29:M$38)*('Failure rates'!$C$29:$C$38=$C53)*('Failure rates'!$B$29:$B$38=$B53))*INDEX('Risk parameters'!$N$5:$N$94,MATCH($B53,'Risk parameters'!$J$5:$J$94,0))*'Risk parameters'!$B$37) -> 0 | M53: =IF($B53="",0,SUMPRODUCT(('Failure rates'!N$29:N$38)*('Failure rates'!$C$29:$C$38=$C53)*('Failure rates'!$B$29:$B$38=$B53))*INDEX('Risk parameters'!$N$5:$N$94,MATCH($B53,'Risk parameters'!$J$5:$J$94,0))*'Risk parameters'!$B$37) -> 0 | N53: =IF($B53="",0,SUMPRODUCT(('Failure rates'!O$29:O$38)*('Failure rates'!$C$29:$C$38=$C53)*('Failure rates'!$B$29:$B$38=$B53))*INDEX('Risk parameters'!$N$5:$N$94,MATCH($B53,'Risk parameters'!$J$5:$J$94,0))*'Risk parameters'!$B$37) -> 0 | O53: =IF($B53="",0,SUMPRODUCT(('Failure rates'!P$29:P$38)*('Failure rates'!$C$29:$C$38=$C53)*('Failure rates'!$B$29:$B$38=$B53))*INDEX('Risk parameters'!$N$5:$N$94,MATCH($B53,'Risk parameters'!$J$5:$J$94,0))*'Risk parameters'!$B$37) -> 0 | P53: =IF($B53="",0,SUMPRODUCT(('Failure rates'!Q$29:Q$38)*('Failure rates'!$C$29:$C$38=$C53)*('Failure rates'!$B$29:$B$38=$B53))*INDEX('Risk parameters'!$N$5:$N$94,MATCH($B53,'Risk parameters'!$J$5:$J$94,0))*'Risk parameters'!$B$37) -> 0 | Q53: =IF($B53="",0,SUMPRODUCT(('Failure rates'!R$29:R$38)*('Failure rates'!$C$29:$C$38=$C53)*('Failure rates'!$B$29:$B$38=$B53))*INDEX('Risk parameters'!$N$5:$N$94,MATCH($B53,'Risk parameters'!$J$5:$J$94,0))*'Risk parameters'!$B$37) -> 0 | R53: =IF($B53="",0,SUMPRODUCT(('Failure rates'!S$29:S$38)*('Failure rates'!$C$29:$C$38=$C53)*('Failure rates'!$B$29:$B$38=$B53))*INDEX('Risk parameters'!$N$5:$N$94,MATCH($B53,'Risk parameters'!$J$5:$J$94,0))*'Risk parameters'!$B$37) -> 0 | S53: =IF($B53="",0,SUMPRODUCT(('Failure rates'!T$29:T$38)*('Failure rates'!$C$29:$C$38=$C53)*('Failure rates'!$B$29:$B$38=$B53))*INDEX('Risk parameters'!$N$5:$N$94,MATCH($B53,'Risk parameters'!$J$5:$J$94,0))*'Risk parameters'!$B$37) -> 0 | T53: =IF($B53="",0,SUMPRODUCT(('Failure rates'!U$29:U$38)*('Failure rates'!$C$29:$C$38=$C53)*('Failure rates'!$B$29:$B$38=$B53))*INDEX('Risk parameters'!$N$5:$N$94,MATCH($B53,'Risk parameters'!$J$5:$J$94,0))*'Risk parameters'!$B$37) -> 0 | U53: =IF($B53="",0,SUMPRODUCT(('Failure rates'!V$29:V$38)*('Failure rates'!$C$29:$C$38=$C53)*('Failure rates'!$B$29:$B$38=$B53))*INDEX('Risk parameters'!$N$5:$N$94,MATCH($B53,'Risk parameters'!$J$5:$J$94,0))*'Risk parameters'!$B$37) -> 0 | V53: =IF($B53="",0,SUMPRODUCT(('Failure rates'!W$29:W$38)*('Failure rates'!$C$29:$C$38=$C53)*('Failure rates'!$B$29:$B$38=$B53))*INDEX('Risk parameters'!$N$5:$N$94,MATCH($B53,'Risk parameters'!$J$5:$J$94,0))*'Risk parameters'!$B$37) -> 0 | W53: =IF($B53="",0,SUMPRODUCT(('Failure rates'!X$29:X$38)*('Failure rates'!$C$29:$C$38=$C53)*('Failure rates'!$B$29:$B$38=$B53))*INDEX('Risk parameters'!$N$5:$N$94,MATCH($B53,'Risk parameters'!$J$5:$J$94,0))*'Risk parameters'!$B$37) -> 0 | X53: =IF($B53="",0,SUMPRODUCT(('Failure rates'!Y$29:Y$38)*('Failure rates'!$C$29:$C$38=$C53)*('Failure rates'!$B$29:$B$38=$B53))*INDEX('Risk parameters'!$N$5:$N$94,MATCH($B53,'Risk parameters'!$J$5:$J$94,0))*'Risk parameters'!$B$37) -> 0
A55: Safety Impact Costs | D55: =D4 -> 2022 | E55: =D55+1 -> 2023 | F55: =E55+1 -> 2024 | G55: =F55+1 -> 2025 | H55: =G55+1 -> 2026 | I55: =H55+1 -> 2027 | J55: =I55+1 -> 2028 | K55: =J55+1 -> 2029 | L55: =K55+1 -> 2030 | M55: =L55+1 -> 2031 | N55: =M55+1 -> 2032 | O55: =N55+1 -> 2033 | P55: =O55+1 -> 2034 | Q55: =P55+1 -> 2035 | R55: =Q55+1 -> 2036 | S55: =R55+1 -> 2037 | T55: =S55+1 -> 2038 | U55: =T55+1 -> 2039 | V55: =U55+1 -> 2040 | W55: =V55+1 -> 2041 | X55: 2042
A57: Switchgear | B57: Switchgear | C57: Major | D57: =IF('Failure rates'!$C$41="Failure Rates",SUMPRODUCT(('Failure rates'!E$43:E$50)*('Failure rates'!$D$43:$D$50=$C57))*'Risk parameters'!$B$50*'Risk parameters'!$B$54,'Failure rates'!E56) -> 0 | E57: =IF('Failure rates'!$C$41="Failure Rates",SUMPRODUCT(('Failure rates'!F$43:F$50)*('Failure rates'!$D$43:$D$50=$C57))*'Risk parameters'!$B$50*'Risk parameters'!$B$54,'Failure rates'!F56) -> 0 | F57: =IF('Failure rates'!$C$41="Failure Rates",SUMPRODUCT(('Failure rates'!G$43:G$50)*('Failure rates'!$D$43:$D$50=$C57))*'Risk parameters'!$B$50*'Risk parameters'!$B$54,'Failure rates'!G56) -> 0 | G57: =IF('Failure rates'!$C$41="Failure Rates",SUMPRODUCT(('Failure rates'!H$43:H$50)*('Failure rates'!$D$43:$D$50=$C57))*'Risk parameters'!$B$50*'Risk parameters'!$B$54,'Failure rates'!H56) -> 0 | H57: =IF('Failure rates'!$C$41="Failure Rates",SUMPRODUCT(('Failure rates'!I$43:I$50)*('Failure rates'!$D$43:$D$50=$C57))*'Risk parameters'!$B$50*'Risk parameters'!$B$54,'Failure rates'!I56) -> 0 | I57: =IF('Failure rates'!$C$41="Failure Rates",SUMPRODUCT(('Failure rates'!J$43:J$50)*('Failure rates'!$D$43:$D$50=$C57))*'Risk parameters'!$B$50*'Risk parameters'!$B$54,'Failure rates'!J56) -> 0 | J57: =IF('Failure rates'!$C$41="Failure Rates",SUMPRODUCT(('Failure rates'!K$43:K$50)*('Failure rates'!$D$43:$D$50=$C57))*'Risk parameters'!$B$50*'Risk parameters'!$B$54,'Failure rates'!K56) -> 0 | K57: =IF('Failure rates'!$C$41="Failure Rates",SUMPRODUCT(('Failure rates'!L$43:L$50)*('Failure rates'!$D$43:$D$50=$C57))*'Risk parameters'!$B$50*'Risk parameters'!$B$54,'Failure rates'!L56) -> 0 | L57: =IF('Failure rates'!$C$41="Failure Rates",SUMPRODUCT(('Failure rates'!M$43:M$50)*('Failure rates'!$D$43:$D$50=$C57))*'Risk parameters'!$B$50*'Risk parameters'!$B$54,'Failure rates'!M56) -> 0 | M57: =IF('Failure rates'!$C$41="Failure Rates",SUMPRODUCT(('Failure rates'!N$43:N$50)*('Failure rates'!$D$43:$D$50=$C57))*'Risk parameters'!$B$50*'Risk parameters'!$B$54,'Failure rates'!N56) -> 0 | N57: =IF('Failure rates'!$C$41="Failure Rates",SUMPRODUCT(('Failure rates'!O$43:O$50)*('Failure rates'!$D$43:$D$50=$C57))*'Risk parameters'!$B$50*'Risk parameters'!$B$54,'Failure rates'!O56) -> 0 | O57: =IF('Failure rates'!$C$41="Failure Rates",SUMPRODUCT(('Failure rates'!P$43:P$50)*('Failure rates'!$D$43:$D$50=$C57))*'Risk parameters'!$B$50*'Risk parameters'!$B$54,'Failure rates'!P56) -> 0 | P57: =IF('Failure rates'!$C$41="Failure Rates",SUMPRODUCT(('Failure rates'!Q$43:Q$50)*('Failure rates'!$D$43:$D$50=$C57))*'Risk parameters'!$B$50*'Risk parameters'!$B$54,'Failure rates'!Q56) -> 0 | Q57: =IF('Failure rates'!$C$41="Failure Rates",SUMPRODUCT(('Failure rates'!R$43:R$50)*('Failure rates'!$D$43:$D$50=$C57))*'Risk parameters'!$B$50*'Risk parameters'!$B$54,'Failure rates'!R56) -> 0 | R57: =IF('Failure rates'!$C$41="Failure Rates",SUMPRODUCT(('Failure rates'!S$43:S$50)*('Failure rates'!$D$43:$D$50=$C57))*'Risk parameters'!$B$50*'Risk parameters'!$B$54,'Failure rates'!S56) -> 0 | S57: =IF('Failure rates'!$C$41="Failure Rates",SUMPRODUCT(('Failure rates'!T$43:T$50)*('Failure rates'!$D$43:$D$50=$C57))*'Risk parameters'!$B$50*'Risk parameters'!$B$54,'Failure rates'!T56) -> 0 | T57: =IF('Failure rates'!$C$41="Failure Rates",SUMPRODUCT(('Failure rates'!U$43:U$50)*('Failure rates'!$D$43:$D$50=$C57))*'Risk parameters'!$B$50*'Risk parameters'!$B$54,'Failure rates'!U56) -> 0 | U57: =IF('Failure rates'!$C$41="Failure Rates",SUMPRODUCT(('Failure rates'!V$43:V$50)*('Failure rates'!$D$43:$D$50=$C57))*'Risk parameters'!$B$50*'Risk parameters'!$B$54,'Failure rates'!V56) -> 0 | V57: =IF('Failure rates'!$C$41="Failure Rates",SUMPRODUCT(('Failure rates'!W$43:W$50)*('Failure rates'!$D$43:$D$50=$C57))*'Risk parameters'!$B$50*'Risk parameters'!$B$54,'Failure rates'!W56) -> 0 | W57: =IF('Failure rates'!$C$41="Failure Rates",SUMPRODUCT(('Failure rates'!X$43:X$50)*('Failure rates'!$D$43:$D$50=$C57))*'Risk parameters'!$B$50*'Risk parameters'!$B$54,'Failure rates'!X56) -> 0 | X57: =IF('Failure rates'!$C$41="Failure Rates",SUMPRODUCT(('Failure rates'!Y$43:Y$50)*('Failure rates'!$D$43:$D$50=$C57))*'Risk parameters'!$B$50*'Risk parameters'!$B$54,'Failure rates'!Y56) -> 0
B62: Summary | D62: =D4 -> 2022 | E62: =D62+1 -> 2023 | F62: =E62+1 -> 2024 | G62: =F62+1 -> 2025 | H62: =G62+1 -> 2026 | I62: =H62+1 -> 2027 | J62: =I62+1 -> 2028 | K62: =J62+1 -> 2029 | L62: =K62+1 -> 2030 | M62: =L62+1 -> 2031 | N62: =M62+1 -> 2032 | O62: =N62+1 -> 2033 | P62: =O62+1 -> 2034 | Q62: =P62+1 -> 2035 | R62: =Q62+1 -> 2036 | S62: =R62+1 -> 2037 | T62: =S62+1 -> 2038 | U62: =T62+1 -> 2039 | V62: =U62+1 -> 2040 | W62: =V62+1 -> 2041 | X62: 2042
A63: Feeder unserved energy risk costs | B63: Feeder unserved energy risk costs | D63: =D6 -> 342591.5651 | E63: 364985.423 | F63: 388904.778 | G63: 412274.7206 | H63: 435957.5694 | I63: 462214.6324 | J63: 490193.7941 | K63: 521096.5689 | L63: 557696.8805 | M63: 597995.9352 | N63: 643328.4461 | O63: 695365.8803 | P63: 748771.8969 | Q63: 806969.8803 | R63: 872184.6346 | S63: 942182.0474 | T63: 1025315.625 | U63: 1104820.421 | V63: 1189633.445 | W63: 1274964.062 | X63: 1381043.966
A64: Feeder Repair Costs | B64: Feeder Repair Costs | D64: =SUM(D13:D30) -> 34543.52585 | E64: 35001.73521 | F64: 35507.94738 | G64: 36066.75863 | H64: 36681.30463 | I64: 37354.93559 | J64: 38092.74775 | K64: 38900.50812 | L64: 39781.89245 | M64: 40740.71249 | N64: 41783.30365 | O64: 42916.79237 | P64: 44145.4137 | Q64: 45473.38827 | R64: 46908.4982 | S64: 48459.43667 | T64: 50131.01087 | U64: 51927.76607 | V64: 53859.16495 | W64: 55935.69451 | X64: 58162.74056
A65: Feeder Environmental Impact Costs | B65: Feeder Environmental Impact Costs | D65: =SUM(D39:D53) -> 1697.597539 | E65: =SUM(E39:E53) -> 1782.065207 | F65: 1875.847308 | G65: 1979.746102 | H65: 2094.812045 | I65: 2221.371857 | J65: 2360.599247 | K65: 2513.492267 | L65: 2681.400691 | M65: 2864.595728 | N65: 3064.577109 | O65: 3282.564891 | P65: 3520.267492 | Q65: 3777.841805 | R65: 4057.178235 | S65: 4359.74632 | T65: 4687.68089 | U65: 5040.949148 | V65: 5421.906232 | W65: 5832.299922 | X65: 6274.768521
A66: Switchgear unserved energy risk costs | B66: Switchgear unserved energy risk costs | D66: =D9 -> 0 | E66: 0 | F66: 0 | G66: 0 | H66: 0 | I66: 0 | J66: 0 | K66: 0 | L66: 0 | M66: 0 | N66: 0 | O66: 0 | P66: 0 | Q66: 0 | R66: 0 | S66: 0 | T66: 0 | U66: 0 | V66: 0 | W66: 0 | X66: 0
A67: Switchgear Repair Costs | B67: Switchgear Repair Costs | D67: =SUM(D33:D34) -> 0 | E67: 0 | F67: 0 | G67: 0 | H67: 0 | I67: 0 | J67: 0 | K67: 0 | L67: 0 | M67: 0 | N67: 0 | O67: 0 | P67: 0 | Q67: 0 | R67: 0 | S67: 0 | T67: 0 | U67: 0 | V67: 0 | W67: 0 | X67: 0
A68: Switchgear safety risk costs | B68: Switchgear safety risk costs | D68: =D57 -> 0 | E68: =E57 -> 0 | F68: 0 | G68: 0 | H68: 0 | I68: 0 | J68: 0 | K68: 0 | L68: 0 | M68: 0 | N68: 0 | O68: 0 | P68: 0 | Q68: 0 | R68: 0 | S68: 0 | T68: 0 | U68: 0 | V68: 0 | W68: 0 | X68: =X57 -> 0
A70: Total Risk Costs | B70: Total Risk Costs | D70: =SUM(D63:D68) -> 378832.6885 | E70: =SUM(E63:E68) -> 401769.2234 | F70: 426288.5727 | G70: 450321.2253 | H70: 474733.686 | I70: 501790.9399 | J70: 530647.1411 | K70: 562510.5693 | L70: 600160.1736 | M70: 641601.2434 | N70: 688176.3269 | O70: 741565.2376 | P70: 796437.5781 | Q70: 856221.1104 | R70: 923150.311 | S70: 995001.2304 | T70: 1080134.316 | U70: 1161789.136 | V70: 1248914.517 | W70: 1336732.056 | X70: =SUM(X63:X68) -> 1445481.475

Sheet Output (DO NOT TOUCH)
J1: Value of EUE ($) | AE1: Safety risk cost ($) | AZ1: Repair risk cost ($) | BU1: Environmental risk cost ($)
A2: Project Name | B2: Reg ID | C2: Project Cost | D2: Discount Rate | E2: Deferral Benefit | F2: VCR | G2: Gate 3 date | H2: Proposed date | I2: Need Date | J2: =Summary!E52 -> 2022 | K2: =Summary!F52 -> 2023 | L2: =Summary!G52 -> 2024 | M2: =Summary!H52 -> 2025 | N2: =Summary!I52 -> 2026 | O2: =Summary!J52 -> 2027 | P2: =Summary!K52 -> 2028 | Q2: =Summary!L52 -> 2029 | R2: =Summary!M52 -> 2030 | S2: =Summary!N52 -> 2031 | T2: =Summary!O52 -> 2032 | U2: =Summary!P52 -> 2033 | V2: =Summary!Q52 -> 2034 | W2: =Summary!R52 -> 2035 | X2: =Summary!S52 -> 2036 | Y2: =Summary!T52 -> 2037 | Z2: =Summary!U52 -> 2038 | AA2: =Summary!V52 -> 2039 | AB2: =Summary!W52 -> 2040 | AC2: =Summary!X52 -> 2041 | AD2: =Summary!Y52 -> 2042 | AE2: =Summary!E52 -> 2022 | AF2: =Summary!F52 -> 2023 | AG2: =Summary!G52 -> 2024 | AH2: =Summary!H52 -> 2025 | AI2: =Summary!I52 -> 2026 | AJ2: =Summary!J52 -> 2027 | AK2: =Summary!K52 -> 2028 | AL2: =Summary!L52 -> 2029 | AM2: =Summary!M52 -> 2030 | AN2: =Summary!N52 -> 2031 | AO2: =Summary!O52 -> 2032 | AP2: =Summary!P52 -> 2033 | AQ2: =Summary!Q52 -> 2034 | AR2: =Summary!R52 -> 2035 | AS2: =Summary!S52 -> 2036 | AT2: =Summary!T52 -> 2037 | AU2: =Summary!U52 -> 2038 | AV2: =Summary!V52 -> 2039 | AW2: =Summary!W52 -> 2040 | AX2: =Summary!X52 -> 2041 | AY2: =Summary!Y52 -> 2042 | AZ2: =Summary!E52 -> 2022 | BA2: =Summary!F52 -> 2023 | BB2: =Summary!G52 -> 2024 | BC2: =Summary!H52 -> 2025 | BD2: =Summary!I52 -> 2026 | BE2: =Summary!J52 -> 2027 | BF2: =Summary!K52 -> 2028 | BG2: =Summary!L52 -> 2029 | BH2: =Summary!M52 -> 2030 | BI2: =Summary!N52 -> 2031 | BJ2: =Summary!O52 -> 2032 | BK2: =Summary!P52 -> 2033 | BL2: =Summary!Q52 -> 2034 | BM2: =Summary!R52 -> 2035 | BN2: =Summary!S52 -> 2036 | BO2: =Summary!T52 -> 2037 | BP2: =Summary!U52 -> 2038 | BQ2: =Summary!V52 -> 2039 | BR2: =Summary!W52 -> 2040 | BS2: =Summary!X52 -> 2041 | BT2: =Summary!Y52 -> 2042 | BU2: =Summary!E52 -> 2022 | BV2: =Summary!F52 -> 2023 | BW2: =Summary!G52 -> 2024 | BX2: =Summary!H52 -> 2025 | BY2: =Summary!I52 -> 2026 | BZ2: =Summary!J52 -> 2027 | CA2: =Summary!K52 -> 2028 | CB2: =Summary!L52 -> 2029 | CC2: =Summary!M52 -> 2030 | CD2: =Summary!N52 -> 2031 | CE2: =Summary!O52 -> 2032 | CF2: =Summary!P52 -> 2033 | CG2: =Summary!Q52 -> 2034 | CH2: =Summary!R52 -> 2035 | CI2: =Summary!S52 -> 2036 | CJ2: =Summary!T52 -> 2037 | CK2: =Summary!U52 -> 2038 | CL2: =Summary!V52 -> 2039 | CM2: =Summary!W52 -> 2040 | CN2: =Summary!X52 -> 2041 | CO2: =Summary!Y52 -> 2042
A3: =Summary!B3 -> REP 132KV FDRS 9E1 & 9E2 SYD EAST-KURINGAI | B3: ARA_01.1.0042A | C3: =Summary!D3 -> 7967409.864 | D3: =Summary!E9 -> 0.0344 | E3: ='Global inputs'!D26 -> 264964.1331 | F3: =Summary!E10 -> 46025 | I3: =Summary!F3 -> 2022 | J3: =B28 -> 342591.5651 | K3: =C28 -> 364985.423 | L3: 388904.778 | M3: 412274.7206 | N3: 435957.5694 | O3: 462214.6324 | P3: 490193.7941 | Q3: 521096.5689 | R3: 557696.8805 | S3: 597995.9352 | T3: 643328.4461 | U3: 695365.8803 | V3: 748771.8969 | W3: 806969.8803 | X3: 872184.6346 | Y3: 942182.0474 | Z3: 1025315.625 | AA3: 1104820.421 | AB3: 1189633.445 | AC3: 1274964.062 | AD3: 1381043.966 | AE3: =B29 -> 0 | AF3: =C29 -> 0 | AG3: 0 | AH3: 0 | AI3: 0 | AJ3: 0 | AK3: 0 | AL3: 0 | AM3: 0 | AN3: 0 | AO3: 0 | AP3: 0 | AQ3: 0 | AR3: 0 | AS3: 0 | AT3: 0 | AU3: 0 | AV3: 0 | AW3: 0 | AX3: 0 | AY3: 0 | AZ3: =B30 -> 34543.52585 | BA3: =C30 -> 35001.73521 | BB3: 35507.94738 | BC3: 36066.75863 | BD3: 36681.30463 | BE3: 37354.93559 | BF3: 38092.74775 | BG3: 38900.50812 | BH3: 39781.89245 | BI3: 40740.71249 | BJ3: 41783.30365 | BK3: 42916.79237 | BL3: 44145.4137 | BM3: 45473.38827 | BN3: 46908.4982 | BO3: 48459.43667 | BP3: 50131.01087 | BQ3: 51927.76607 | BR3: 53859.16495 | BS3: 55935.69451 | BT3: 58162.74056 | BU3: =B31 -> 1697.597539 | BV3: =C31 -> 1782.065207 | BW3: 1875.847308 | BX3: 1979.746102 | BY3: 2094.812045 | BZ3: 2221.371857 | CA3: 2360.599247 | CB3: 2513.492267 | CC3: 2681.400691 | CD3: 2864.595728 | CE3: 3064.577109 | CF3: 3282.564891 | CG3: 3520.267492 | CH3: 3777.841805 | CI3: 4057.178235 | CJ3: 4359.74632 | CK3: 4687.68089 | CL3: 5040.949148 | CM3: 5421.906232 | CN3: 5832.299922 | CO3: 6274.768521
A26: (Data for the graph)
A27: Year | B27: =Summary!E52 -> 2022 | C27: =Summary!F52 -> 2023 | D27: =Summary!G52 -> 2024 | E27: =Summary!H52 -> 2025 | F27: =Summary!I52 -> 2026 | G27: =Summary!J52 -> 2027 | H27: =Summary!K52 -> 2028 | I27: =Summary!L52 -> 2029 | J27: =Summary!M52 -> 2030 | K27: =Summary!N52 -> 2031 | L27: =Summary!O52 -> 2032 | M27: =Summary!P52 -> 2033 | N27: =Summary!Q52 -> 2034 | O27: =Summary!R52 -> 2035 | P27: =Summary!S52 -> 2036 | Q27: =Summary!T52 -> 2037 | R27: =Summary!U52 -> 2038 | S27: =Summary!V52 -> 2039 | T27: =Summary!W52 -> 2040 | U27: =Summary!X52 -> 2041 | V27: =Summary!Y52 -> 2042
A28: Value of Unserved Energy (AER VCR) | B28: =Summary!E55 -> 342591.5651 | C28: =Summary!F55 -> 364985.423 | D28: =Summary!G55 -> 388904.778 | E28: =Summary!H55 -> 412274.7206 | F28: =Summary!I55 -> 435957.5694 | G28: =Summary!J55 -> 462214.6324 | H28: =Summary!K55 -> 490193.7941 | I28: =Summary!L55 -> 521096.5689 | J28: =Summary!M55 -> 557696.8805 | K28: =Summary!N55 -> 597995.9352 | L28: =Summary!O55 -> 643328.4461 | M28: =Summary!P55 -> 695365.8803 | N28: =Summary!Q55 -> 748771.8969 | O28: =Summary!R55 -> 806969.8803 | P28: =Summary!S55 -> 872184.6346 | Q28: =Summary!T55 -> 942182.0474 | R28: =Summary!U55 -> 1025315.625 | S28: =Summary!V55 -> 1104820.421 | T28: =Summary!W55 -> 1189633.445 | U28: =Summary!X55 -> 1274964.062 | V28: =Summary!Y55 -> 1381043.966
A29: Annual Value of Safety Risk | B29: =Summary!E57 -> 0 | C29: =Summary!F57 -> 0 | D29: =Summary!G57 -> 0 | E29: =Summary!H57 -> 0 | F29: =Summary!I57 -> 0 | G29: =Summary!J57 -> 0 | H29: =Summary!K57 -> 0 | I29: =Summary!L57 -> 0 | J29: =Summary!M57 -> 0 | K29: =Summary!N57 -> 0 | L29: =Summary!O57 -> 0 | M29: =Summary!P57 -> 0 | N29: =Summary!Q57 -> 0 | O29: =Summary!R57 -> 0 | P29: =Summary!S57 -> 0 | Q29: =Summary!T57 -> 0 | R29: =Summary!U57 -> 0 | S29: =Summary!V57 -> 0 | T29: =Summary!W57 -> 0 | U29: =Summary!X57 -> 0 | V29: =Summary!Y57 -> 0
A30: Annual Value of major repairs | B30: =Summary!E53+Summary!E56 -> 34543.52585 | C30: =Summary!F53+Summary!F56 -> 35001.73521 | D30: =Summary!G53+Summary!G56 -> 35507.94738 | E30: =Summary!H53+Summary!H56 -> 36066.75863 | F30: =Summary!I53+Summary!I56 -> 36681.30463 | G30: =Summary!J53+Summary!J56 -> 37354.93559 | H30: =Summary!K53+Summary!K56 -> 38092.74775 | I30: =Summary!L53+Summary!L56 -> 38900.50812 | J30: =Summary!M53+Summary!M56 -> 39781.89245 | K30: =Summary!N53+Summary!N56 -> 40740.71249 | L30: =Summary!O53+Summary!O56 -> 41783.30365 | M30: =Summary!P53+Summary!P56 -> 42916.79237 | N30: =Summary!Q53+Summary!Q56 -> 44145.4137 | O30: =Summary!R53+Summary!R56 -> 45473.38827 | P30: =Summary!S53+Summary!S56 -> 46908.4982 | Q30: =Summary!T53+Summary!T56 -> 48459.43667 | R30: =Summary!U53+Summary!U56 -> 50131.01087 | S30: =Summary!V53+Summary!V56 -> 51927.76607 | T30: =Summary!W53+Summary!W56 -> 53859.16495 | U30: =Summary!X53+Summary!X56 -> 55935.69451 | V30: =Summary!Y53+Summary!Y56 -> 58162.74056
A31: Avoided environmental risk | B31: =Summary!E54 -> 1697.597539 | C31: =Summary!F54 -> 1782.065207 | D31: =Summary!G54 -> 1875.847308 | E31: =Summary!H54 -> 1979.746102 | F31: =Summary!I54 -> 2094.812045 | G31: =Summary!J54 -> 2221.371857 | H31: =Summary!K54 -> 2360.599247 | I31: =Summary!L54 -> 2513.492267 | J31: =Summary!M54 -> 2681.400691 | K31: =Summary!N54 -> 2864.595728 | L31: =Summary!O54 -> 3064.577109 | M31: =Summary!P54 -> 3282.564891 | N31: =Summary!Q54 -> 3520.267492 | O31: =Summary!R54 -> 3777.841805 | P31: =Summary!S54 -> 4057.178235 | Q31: =Summary!T54 -> 4359.74632 | R31: =Summary!U54 -> 4687.68089 | S31: =Summary!V54 -> 5040.949148 | T31: =Summary!W54 -> 5421.906232 | U31: =Summary!X54 -> 5832.299922 | V31: =Summary!Y54 -> 6274.768521
A32: TOTAL (AER VCR) | B32: =Summary!E58 -> 378832.6885 | C32: =Summary!F58 -> 401769.2234 | D32: =Summary!G58 -> 426288.5727 | E32: =Summary!H58 -> 450321.2253 | F32: =Summary!I58 -> 474733.686 | G32: =Summary!J58 -> 501790.9399 | H32: =Summary!K58 -> 530647.1411 | I32: =Summary!L58 -> 562510.5693 | J32: =Summary!M58 -> 600160.1736 | K32: =Summary!N58 -> 641601.2434 | L32: =Summary!O58 -> 688176.3269 | M32: =Summary!P58 -> 741565.2376 | N32: =Summary!Q58 -> 796437.5781 | O32: =Summary!R58 -> 856221.1104 | P32: =Summary!S58 -> 923150.311 | Q32: =Summary!T58 -> 995001.2304 | R32: =Summary!U58 -> 1080134.316 | S32: =Summary!V58 -> 1161789.136 | T32: =Summary!W58 -> 1248914.517 | U32: =Summary!X58 -> 1336732.056 | V32: =Summary!Y58 -> 1445481.475
A33: Annual Project Cost | B33: =Summary!E60 -> 264964.1331 | C33: =Summary!F60 -> 264964.1331 | D33: =Summary!G60 -> 264964.1331 | E33: =Summary!H60 -> 264964.1331 | F33: =Summary!I60 -> 264964.1331 | G33: =Summary!J60 -> 264964.1331 | H33: =Summary!K60 -> 264964.1331 | I33: =Summary!L60 -> 264964.1331 | J33: =Summary!M60 -> 264964.1331 | K33: =Summary!N60 -> 264964.1331 | L33: =Summary!O60 -> 264964.1331 | M33: =Summary!P60 -> 264964.1331 | N33: =Summary!Q60 -> 264964.1331 | O33: =Summary!R60 -> 264964.1331 | P33: =Summary!S60 -> 264964.1331 | Q33: =Summary!T60 -> 264964.1331 | R33: =Summary!U60 -> 264964.1331 | S33: =Summary!V60 -> 264964.1331 | T33: =Summary!W60 -> 264964.1331 | U33: =Summary!X60 -> 264964.1331 | V33: =Summary!Y60 -> 264964.1331
B35: =SUM(B28:B31) -> 378832.6885 | C35: =SUM(C28:C31) -> 401769.2234 | D35: 426288.5727 | E35: 450321.2253 | F35: 474733.686 | G35: 501790.9399 | H35: 530647.1411 | I35: 562510.5693 | J35: 600160.1736 | K35: 641601.2434 | L35: 688176.3269 | M35: 741565.2376 | N35: 796437.5781 | O35: 856221.1104 | P35: 923150.311 | Q35: 995001.2304 | R35: 1080134.316 | S35: 1161789.136 | T35: 1248914.517 | U35: 1336732.056 | V35: 1445481.475
